Workbook

Sheet Startseite
B1: - | C1: - | D1: - | E1: - | F1: - | G1: - | H1: - | I1: - | J1: - | K1: - | L1: - | M1: - | N1: - | O1: - | P1: - | Q1: - | R1: - | S1: - | T1: - | U1: - | V1: - | W1: - | Y1: FALSE
B2: - | C2: - | D2: - | E2: - | F2: - | G2: - | H2: - | I2: - | J2: - | K2: - | L2: - | M2: - | N2: - | O2: - | P2: - | Q2: - | R2: - | S2: - | T2: - | U2: - | V2: - | W2: - | Y2: FALSE
B3: - | C3: - | D3: - | E3: - | F3: - | G3: - | H3: - | I3: - | J3: - | K3: - | L3: - | M3: - | N3: - | O3: - | P3: - | Q3: - | R3: - | S3: - | T3: - | U3: - | V3: - | W3: - | Y3: FALSE
Y4: TRUE
Y5: TRUE
C6: =Programmversionen!J5 -> Version: 26.02 | G6: ="Förderrechner - Mietwohnraumförderung" -> Förderrechner - Mietwohnraumförderung | Y6: TRUE
C7: =Programmversionen!B5 -> 2026-03-23 | Y7: TRUE
Y8: TRUE
D9: Sehr geehrte Kunden, sehr geehrte Interessenten, | U9: =IF(Daten!C2<>"","Achtung: Testversion bis zum "&TEXT(Daten!C2,"TT.MM.JJJJ")&"!","") ->  | Y9: TRUE
D10: ="der Förderrechner soll Ihnen einen Überblick zu den möglichen Förderhöhen geben."&" Grundlage ist die Richtlinie zur Förderung der generationengerechten und barrierefreien Anpassung von Mietwohngebäuden durch Modernisierung und Instandsetzung und des Mietwohnungsneubaus (MietwohnungsbauförderR) vom "&TEXT(Daten!$J$12,"TT.MM.JJJJ")&IF(COUNTIF(Daten!$L$12:$L$19,TRUE)<>1,"",IF(INDEX(Daten!$N$12:$N$19,MATCH(TRUE,Daten!$L$12:$L$19,0),1)="",""," ("&INDEX(Daten!$N$12:$N$19,MATCH(TRUE,Daten!$L$12:$L$19,0),1)&")"))&". Abgebildet werden Förderungen für folgende Maßnahmen:" -> der Förderrechner soll Ihnen einen Überblick zu den möglichen Förderhöhen geben. Grundlage ist die Richtlinie zur Förderung der generationengerechten und barrierefreien Anpassung von Mietwohngebäuden durch Modernisierung und Instandsetzung und des Mietwohnungsneubaus (MietwohnungsbauförderR) vom 01.01.2026. Abgebildet werden Förderungen für folgende Maßnahmen: | Y10: TRUE
D11: - | E11: Modernisierung und Instandsetzung nach § 3 Absatz 6 BbgWoFG | Y11: TRUE
Y12: TRUE
D13: - | E13: Mietwohnungsneubau gemäß § 3 Absatz 5 Nr. 1 BbgWoFG sowie | Y13: TRUE
Y14: TRUE
D15: - | E15: Maßnahmen der Wiederherstellung, Erweiterung, Nutzungsänderung und Anpassung (Umnutzung) | Y15: TRUE
E16: gemäß § 3 Absatz 5 Nummer 2 - 4 BbgWoFG. | Y16: TRUE
D17: - | E17: Nachträglicher An- / Einbau von Aufzügen | Y17: TRUE
Y18: TRUE
D19: Benutzerhinweise: | Y19: TRUE
D20: - | E20: Bitte aktivieren / erlauben Sie die Makros (entweder gleich beim Öffnen bzw. mittels Schalter "Inhalte aktivieren"). | Y20: TRUE
Y21: TRUE
D22: - | E22: ="Diese Version "&VLOOKUP(TODAY(),Programmversionen!$B$10:$C$109,2)&" des Förderrechners vom "&TEXT(VLOOKUP(TODAY(),Programmversionen!$B$10:$C$109,1),"TT.MM.JJJJ")&" ist für folgende Anwender vorgesehen: "&Daten!M2&"." -> Diese Version 26.02 des Förderrechners vom 23.03.2026 ist für folgende Anwender vorgesehen: Kunde (Extern). | Y22: TRUE
Y23: TRUE
D24: - | E24: Wählen Sie die zu fördernde Maßnahme auf Grundlage von Nr. 2.1 a - d der MietwohnungsbauförderR. | Y24: TRUE
Y25: TRUE
D26: - | E26: Füllen Sie alle markierten Felder aus. Erst anschließend wird ein mögliches Förderdarlehen errechnet. Sollten Angaben | Y26: TRUE
E27: fehlen oder nicht plausibel sein, wird Ihnen dies dadurch angezeigt, dass der Text vor den Eingabefeldern | Y27: TRUE
E28: bzw. in deren Bereich rot erscheint und / oder die Eingabezelle farblich hervorgehoben wird. | Y28: TRUE
Y29: TRUE
D30: - | E30: Nehmen Sie möglichst realistische Eintragungen vor. Um so genauer wird das Ergebnis sein. | Y30: TRUE
Y31: TRUE
D32: - | E32: In der Berechnung finden Sie in der Überschriftenzeile auch eine Hilfefunktion (?), in der ggf. vorhandene Unplausibilitäten | Y32: TRUE
E33: bzw. unvollständige Eingaben erläutert werden. | Y33: TRUE
Y34: TRUE
D35: - | E35: Bei diesem Förderrechner handelt es sich um eine Berechnungshilfe. Das Ergebnis ist nicht verbindlich. | Y35: TRUE
E36: Bitte setzen sie sich zur Antragstellung mit den zuständigen Ansprechpartnern bei der ILB in Verbindung. | Y36: TRUE
E37: Hier erhalten sie auch weitere Hilfe beim Umgang mit dem Förderrechner. | Y37: TRUE
Y38: TRUE
D39: Feldbeschreibungen: | Y39: TRUE
D40: - | E40: Felder, welche eine manuelle Eingabe zulassen, sind immer mit einem entsprechendem Rahmen versehen! | Y40: TRUE
Y41: TRUE
D42: - | E42: Felder mit fehlender Pflichteingabe: | Y42: TRUE
Y43: TRUE
D44: - | E44: Optionale Felder ohne Eingabe: | Y44: TRUE
Y45: TRUE
D46: - | E46: Feld mit erfolgter manueller Eingabe (Pflicht / Optional): | Y46: TRUE
Y47: TRUE
D48: - | E48: Berechnete und / oder gesperrte Felder: | Y48: TRUE
Y49: TRUE
Y50: TRUE
Y51: TRUE
Y52: TRUE
D53: Erklärung / Bedeutung der Schaltflächen (unten dargestellte Schaltflächen nur beispielhaft und inaktiv): | Y53: TRUE
E54: Sprung zum Reiter "Programmversionen" | Y54: =IF(OR(Daten!$C$4=TRUE,Daten!$M$3=TRUE),TRUE,FALSE) -> FALSE
E55: Sprung zum Reiter "Startseite" | Y55: TRUE
E56: Sprung zum Reiter "Grunddaten" | Y56: =Y54 -> FALSE
E57: Aufruf des Dialogfeldes "Informationen" | Y57: TRUE
E58: Aufruf des Dialogfeldes "Hilfe" | Y58: TRUE
E59: Aufruf des Dialogfeldes "Datensicherung" | Y59: =Y54 -> FALSE
E60: Aufruf des Dialogfeldes "PDF Export / Ausdruck" | Y60: =Y54 -> FALSE
E61: Auslösen einer Neuberechnung des Förderrechners (mit optionaler Anpassung der Basis für Eigenkapitalverzinsung) | Y61: =Y54 -> FALSE
E62: Auslösen der Löschung aller oder einzelner Eingaben | Y62: TRUE
Y63: TRUE
Y64: TRUE

Sheet Berechnung
B1: - | C1: - | D1: =COLUMN() -> 4 | E1: - | F1: - | G1: =D1 -> 4 | H1: - | I1: =D1 -> 4 | J1: =D1 -> 4 | K1: =D1 -> 4 | L1: =D1 -> 4 | M1: - | N1: - | O1: - | P1: =COLUMN() -> 16 | Q1: =D1 -> 4 | R1: - | S1: =D1 -> 4 | T1: - | U1: =COLUMN() -> 21 | V1: =P1 -> 16 | W1: - | X1: - | Y1: - | Z1: - | AB1: FALSE
B2: - | C2: - | D2: =D1 -> 4 | E2: - | F2: - | G2: =G1 -> 4 | H2: - | I2: =I1 -> 4 | J2: =J1 -> 4 | K2: =K1 -> 4 | L2: =L1 -> 4 | M2: - | N2: - | O2: - | P2: =P1 -> 16 | Q2: =Q1 -> 4 | R2: - | S2: =S1 -> 4 | T2: - | U2: =COLUMN() -> 21 | V2: =D1 -> 4 | W2: - | X2: - | Y2: - | Z2: - | AB2: FALSE
AB3: =IF(B4="",FALSE,TRUE) -> FALSE
B4: =IF(AND(Daten!$M$3=TRUE,Daten!$U$3=FALSE),"Achtung: Es findet keine automatische Neuberechnung des Förderdarlehens (Maßnahme) statt; bitte nutzen Sie die entsprechende Schaltfläche für eine Neuberechnung!","") ->  | AB4: TRUE
AB5: TRUE
C6: =Programmversionen!J5 -> Version: 26.02 | H6: ="Förderrechner - Mietwohnraumförderung" -> Förderrechner - Mietwohnraumförderung | AB6: TRUE | AD6: Druckvorgang? | AE6: 3. EK-Grenze? | AF6: Mod / Inst?
C7: =Programmversionen!B5 -> 2026-03-23 | AB7: TRUE | AD7: =Daten!$J$2 -> FALSE | AE7: =Daten!L17 -> FALSE | AF7: =IF(OR(Daten!$M$79=TRUE,Daten!$M$80=TRUE),TRUE,FALSE) -> FALSE
C8: Art der Maßnahme | AB8: TRUE
D9: Neubau | I9: Umnutzung / Wiederherstellung | N9: Modernisierung / Instandsetzung | U9: =IF(OR(Daten!$L$16=TRUE,Daten!$L$17=TRUE,Daten!$L$18=TRUE),"Solo-Förderung Aufzug","") -> Solo-Förderung Aufzug | AB9: TRUE | AD9: Anpassung Tilgungssatz? | AE9: Vollständigkeit? | AF9: Solo-Aufzug?
D10: =IF(Daten!$M$5=TRUE,"Keine Auswahl möglich!",IF(Daten!$L$18=TRUE,"MIT Aufwendungszuschuss",IF(Daten!$O$75=TRUE,"Ohne Verlängerung Belegungsbindung",""))) -> MIT Aufwendungszuschuss | I10: =IF(Daten!$L$18=TRUE,"MIT Aufwendungszuschuss",IF(Daten!$O$77=TRUE,"Ohne Verlängerung Belegungsbindung","")) -> MIT Aufwendungszuschuss | N10: =IF(Daten!$L$18=TRUE,"OHNE Aufwendungszuschuss",IF(Daten!$O$79=TRUE,"Ohne Verlängerung "&IF(Daten!$M$79=TRUE,"Belegungsb.","Belegungsbindung"),"")) -> OHNE Aufwendungszuschuss | U10: =IF(Daten!O81=TRUE,"Nachträglicher "&IF(Daten!M81=TRUE,"Aufzug","Aufzugsanbau"),"") -> Nachträglicher Aufzugsanbau | AB10: TRUE | AD10: =IF(Daten!$D$50<=0,TRUE,FALSE) -> TRUE | AE10: =IF(Daten!$L$71=Daten!$M$71,TRUE,FALSE) -> FALSE | AF10: =IF(Daten!$M$81=TRUE,TRUE,FALSE) -> FALSE
D11: =IF(Daten!$M$5=TRUE,"Angepasste Version für LBV!",IF(Daten!$O$76=TRUE,"ZUSCHUSS: Verlängerung "&IF(Daten!M76=TRUE,"Belegungsb.","Belegungsbindung"),"")) ->  | I11: =IF(Daten!$O$78=TRUE,"ZUSCHUSS: Verlängerung "&IF(Daten!$M$78=TRUE,"Belegungsb.","Belegungsbindung"),"") ->  | N11: =IF(Daten!$O$80=TRUE,"ZUSCHUSS: Verlängerung "&IF(Daten!$M$80=TRUE,"Belegungsb.","Belegungsbindung"),"") ->  | X11: ="Richtlinie vom "&TEXT(Daten!J12,"TT.MM.JJJJ") -> Richtlinie vom 01.01.2026 | AB11: TRUE
D12: =IF(OR(Daten!$M$83="",Daten!$M$83=0),"Bitte wählen Sie zuerst die Maßnahmeart aus!",IF(Daten!$L$71<>Daten!$M$71,"Bitte nutzen Sie den Hilfedialog (obere Schaltfläche mit "&CHAR(34)&"?"&CHAR(34)&") für weitere Informationen zu den noch fehlenden oder nicht plausibel getätigten Eingaben!","")) -> Bitte nutzen Sie den Hilfedialog (obere Schaltfläche mit "?") für weitere Informationen zu den noch fehlenden oder nicht plausibel getätigten Eingaben! | X12: =Startseite!U9 ->  | AB12: TRUE | AD12: Prüfung Bindungsquoten Einkommensgrenzen
C13: Kunde / Objekt | AB13: TRUE | AD13: 1. Einkommensgrenze: | AE13: =IF(OR(Daten!$L$17=TRUE,Daten!$L$18=TRUE),O21,Grunddaten!$H$69) -> 35.00% | AF13: =IF(OR(Daten!$L$17=TRUE,Daten!$L$18=TRUE),IF(OR(AE13<Grunddaten!$H$69,AE13<0),FALSE,TRUE),TRUE) -> TRUE
D14: Partnername: | V14: Antragsnummer: | AB14: TRUE | AD14: 2. Einkommensgrenze: | AE14: =IF(OR(Daten!$L$17=TRUE,Daten!$L$18=TRUE),S21,Grunddaten!$H$70) -> 35.00% | AF14: =IF(OR(Daten!$L$17=TRUE,Daten!$L$18=TRUE),IF(OR(SUM($AE$13:$AE$15)>100,AE13<0,AE14<0,AE15<0),FALSE,TRUE),TRUE) -> TRUE
D15: Objektanschrift: | AB15: TRUE | AD15: 3. Einkommensgrenze: | AE15: =IF(OR(Daten!$L$17=TRUE,Daten!$L$18=TRUE),MAX(0,100-AE13-AE14),Grunddaten!$H$71) -> 30.00% | AF15: =IF(OR(Daten!$L$17=TRUE,Daten!$L$18=TRUE),IF(OR($AE$13<>Grunddaten!$H$69,$AE$14<>Grunddaten!$H$70),TRUE,FALSE),TRUE) -> FALSE
AB16: TRUE
D17: Gemeinde gemäß Anlage 2 der Richtlinie: | N17: =IF(OR(Daten!$M$83="",Daten!$M$83=0),"",IF(Daten!$L$17=TRUE,"","Mindestens ")&TEXT(Daten!$D$87,"#0")&" % der geförderten WE unterliegen der Belegungsbindung!") -> Mindestens 100 % der geförderten WE unterliegen der Belegungsbindung! | AB17: TRUE
D18: Anzahl der Wohneinheiten (WE): | N18: =Daten!X28 -> Die Bindungen orientieren sich an den Einkommensgrenzen des §22 (2) BbgWoFG, unter welche mindestens 35,00% der WE direkt fallen (1. EK-Grenze). In der Regel gilt für 35,00% der WE diese Einkommensgrenze zzgl. 40% (2. EK-Grenze) und für die verbleibenden 30,00% gilt die Einkommensgrenze zzgl. 60% (3. EK-Grenze). | AB18: TRUE | AD18: Ansatz Instandhaltungs- / Bewirtschaftungskosten
D19: Gesamtwohnfläche in m²: | AB19: TRUE | AD19: =IF(OR(Daten!$M$81=TRUE,AND($D$21<>"",$K$21="Ja")),$L$34,0) -> 0.00 | AE19: =IF(AND($D$72<>"",$G$72="Ja"),$G$73,0) -> 0.00 | AF19: =IF(AND(OR(Daten!$M$81=TRUE,$K$21="Ja",$G$72="Ja"),$AD$19=0,$AE$19=0),$K$19,IF($D$34="",0,IF(AD19>0,0,$K$19/$K$18*$J$34))) -> 0.00
D20: =IF(Daten!M82=FALSE,"Grundstücksfläche in m²:","Anzahl Wohnplätze (WP) im Studentenwohnheim:") -> Grundstücksfläche in m²: | J20: =IF(OR(Daten!$M$79=TRUE,Daten!$M$80=TRUE,Daten!$M$81=TRUE,K20="",K20=0,I40="",I40=0),"","≙ "&TEXT(I40/K20,"#.##0,00")&" € / m² ") ->  | AB20: TRUE | AD20: Einstufung | AE20: Fläche / Anzahl | AF20: Kosten pro Einheit
D21: =IF(AND(OR(Daten!$L$16=TRUE,Daten!$L$17=TRUE,Daten!$L$18=TRUE),Daten!$M$81=TRUE),"",IF(AND(OR(Daten!$L$16=TRUE,Daten!$L$17=TRUE,Daten!$L$18=TRUE),Daten!$M$81=FALSE),"Inanspruchnahme Aufzugsförderung:","Aufzug im Förderobjekt vorhanden:")) -> Inanspruchnahme Aufzugsförderung: | N21: =IF(OR(Daten!$L$17=TRUE,Daten!$L$18=TRUE),"1. EK:","") -> 1. EK: | O21: =Grunddaten!$H$69 -> 35.00% | R21: =IF(OR(Daten!$L$17=TRUE,Daten!$L$18=TRUE),"2. EK:","") -> 2. EK: | S21: =Grunddaten!$H$70 -> 35.00% | V21: =IF(OR(Daten!$L$17=TRUE,Daten!$L$18=TRUE),"3. EK:","") -> 3. EK: | W21: =IF(AE15>100,"-",AE15) -> 30.00% | AB21: =IF(AND(OR(Daten!$L$16=TRUE,Daten!$L$17=TRUE,Daten!$L$18=TRUE),OR(Daten!$L$17=TRUE,Daten!$L$18=TRUE,AND(Daten!$L$16=TRUE,Daten!$M$81=FALSE))),TRUE,FALSE) -> TRUE | AD21: Mit Aufzug: | AE21: =MAX(AD19:AF19) -> 0.00 | AF21: =Daten!D80 -> 11.50 €
D22: =IF(Daten!$L$16=FALSE,"",IF(Daten!$M$3=TRUE,"Erreichter Förderstandard "&CHAR(34)&"Klimabaustein"&CHAR(34)&":","Erreichung Mindeststandard "&CHAR(34)&"Klimabaustein"&CHAR(34)&":")) ->  | N22: =IF(OR($K$22="",Daten!$L$16=FALSE),"",IF(AND(Daten!$M$3=TRUE,Daten!$Q$89<>Daten!$Q$75,OR(Daten!$M$77=TRUE,Daten!$M$78=TRUE)),"Fördergegenstand: ","")) ->  | X22: =IF(OR($N$22="",Daten!$M$3=FALSE,$AB$22=FALSE,Daten!$R$86=FALSE),"",IF(AND(Q22<>"",Daten!$R$90=TRUE),"a",IF(Daten!$Q$89=Daten!$Q$75,"","r"))) ->  | AB22: =IF(AND(Daten!$L$16=TRUE,Daten!$M$81=FALSE,Daten!$R$86=TRUE),TRUE,FALSE) -> FALSE | AD22: Ohne Aufzug: | AE22: =$K$19-$AE$21 -> 0.00 | AF22: =Daten!D81 -> 11.50 €
AB23: TRUE | AD23: =IF(AND(AE21>0,AE22>0),TRUE,FALSE) -> FALSE | AE23: =AE21+AE22 -> 0.00 | AF23: =IF(AE23=0,(AF21+AF22)/2,(AE21*AF21+AE22*AF22)/AE23) -> 11.50 €
C24: Aufteilung der geförderten Wohneinheiten (WE) / Einnahmen | AB24: TRUE | AD24: Garagen: | AE24: =IF(OR(Daten!L67=FALSE,Daten!L67<>Daten!M67),0,G71) -> 0 | AF24: =Grunddaten!$P$90 -> 110.13 €
C25: =IF(COUNTIF(Grunddaten!T65:T70,TRUE)>0,"i","") ->  | D25: Aufteilung der WE / m² | G25: =IF(OR($K$17="",$K$18="",$K$19=""),"",IF($AF$139=TRUE,"Mindest WE / m²","Mindest m²")) ->  | J25: Anzahl WE | L25: Wohnfläche WE | P25: Mieteinnahmen | V25: =IF(OR(L30="",L30=0),"",((L27*V27)+(L28*V28)+(L29*V29))/L30) ->  | Y25: =IF(OR(Y27<>"",Y28<>""),"i","") ->  | AB25: TRUE | AD25: Stellplätze: | AE25: =IF(OR(Daten!L66=FALSE,Daten!L66<>Daten!M66),0,G70) -> 0
AB26: TRUE
C27: =IF(Grunddaten!T69=TRUE,"i","") ->  | D27: WE / m² für 1. EK-Grenze: | G27: =IF(OR($K$17="",$K$18="",$K$19=""),"",IF($AF$139=FALSE,"",TEXT(AE127,"#.##0")&" WE / ")&TEXT(AE145,"#.##0,00")&" m² ") ->  | K27: =IF(OR(J27="",J27=0,ISERROR(J27*100/$K$18)),0,ROUND(J27*100/$K$18,0)) -> 0.0 % | M27: =IF(OR(L27="",L27=0,ISERROR(L27*100/$K$19)),0,L27*100/$K$19) -> 0.0 % | P27: Miethöhe / m² / Monat: | U27: =IF($K$17="","","max. "&TEXT(Daten!$D$95,"#.##0,00")&" € / m² ") ->  | Y27: =IF(OR(Grunddaten!T74=TRUE,Grunddaten!T77=TRUE),"i","") ->  | AB27: TRUE | AD27: Solver Auslesung
C28: =IF(Grunddaten!T70=TRUE,"i","") ->  | D28: WE / m² für 2. EK-Grenze: | G28: =IF(OR($K$17="",$K$18="",$K$19=""),"",IF($AF$139=FALSE,"",TEXT(AE129,"#.##0")&" WE / ")&TEXT(AE147,"#.##0,00")&" m² ") ->  | K28: =IF(OR(J28="",J28=0,ISERROR(J28*100/$K$18)),0,ROUND(J28*100/$K$18,0)) -> 0.0 % | M28: =IF(OR(L28="",L28=0,ISERROR(L28*100/$K$19)),0,L28*100/$K$19) -> 0.0 % | P28: Miethöhe / m² / Monat: | U28: =IF($K$17="","","max. "&TEXT(Daten!$D$97,"#.##0,00")&" € / m² ") ->  | Y28: =IF(OR(Grunddaten!T75=TRUE,Grunddaten!T78=TRUE),"i","") ->  | AB28: TRUE | AD28: Variable | AE28: =Daten!$D$56 -> 0.00 € | AF28: Zelle
D29: =IF(OR(Daten!L17=TRUE,Daten!$L$18=TRUE),"WE / m² für 3. EK-Grenze:","WE / m² ohne Belegungsbindung:") -> WE / m² für 3. EK-Grenze: | G29: =IF(OR($K$17="",$K$18="",$K$19=""),"",IF($AF$139=FALSE,"",TEXT(AE131,"#.##0")&" WE / ")&TEXT(AE149,"#.##0,00")&" m² ") ->  | K29: =IF(OR(J29="",J29=0,ISERROR(J29*100/$K$18)),0,ROUND(J29*100/$K$18,0)) -> 0.0 % | M29: =IF(OR(L29="",L29=0,ISERROR(L29*100/$K$19)),0,L29*100/$K$19) -> 0.0 % | P29: Miethöhe / m² / Monat: | U29: =IF($K$17="","",IF(Daten!$D$143=3,"max. "&TEXT(Daten!$D$99,"#.##0,00")&" € / m² ","mögliche Marktmiete ")) ->  | AB29: TRUE | AD29: Referenz A: | AE29: =Daten!$D$56 -> 0.00 € | AF29: $D$56
D30: WE / m² gesamt: | J30: =IF(OR(Daten!L28<>Daten!M28,J27<0,ISTEXT(J27),J28<0,ISTEXT(J28),J29<0,ISTEXT(J29)),0,SUM(J27:J29)) -> 0 | K30: =IF(OR(J30="",J30=0,ISERROR(J30*100/$K$18)),0,SUM(K27:K29)) -> 0.0 % | L30: =IF(OR(Daten!L29<>Daten!M29,L27<0,ISTEXT(L27),L28<0,ISTEXT(L28),L29<0,ISTEXT(L29)),0,SUM(L27:L29)) -> 0.00 | M30: =IF(OR(L30="",L30=0,ISERROR(L30*100/$K$19)),0,SUM(M27:M29)) -> 0.0 % | AB30: TRUE | AD30: Referenz B: | AE30: =Daten!G50 -> 0.00 € | AF30: $G$50
J31: =AD138 ->  | L31: =AD156 ->  | P31: Sonstige Einnahmen p. a.: | AB31: TRUE | AD31: Referenz C: | AE31: =Daten!G56 -> 0.00 € | AF31: $G$56
D32: … davon belegungsgebundene WE / m²: | J32: =IF(OR(AND(J27="",J28="",AND(OR(Daten!$L$17=TRUE,Daten!$L$18=TRUE),J29="")),J27<0,ISTEXT(J27),J28<0,ISTEXT(J28),ISTEXT(J29),J29<0),0,IF(OR(Daten!$L$17=TRUE,Daten!$L$18=TRUE),SUM(J27:J29),SUM(J27:J28))) -> 0 | K32: =IF(OR(J32="",J32=0,ISERROR(J32*100/$K$18)),0,ROUND(J32*100/$K$18,0)) -> 0.0 % | L32: =IF(OR(AND(L27="",L28="",AND(OR(Daten!$L$17=TRUE,Daten!$L$18=TRUE),L29="")),L27<0,ISTEXT(L27),L28<0,ISTEXT(L28),L29<0,ISTEXT(L29)),0,IF(OR(Daten!$L$17=TRUE,Daten!$L$18=TRUE),SUM(L27:L29),SUM(L27:L28))) -> 0.00 | M32: =IF(OR(L32="",L32=0,ISERROR(L32*100/$K$19)),0,ROUND(L32*100/$K$19,0)) -> 0.0 % | P32: =IF(AND(Daten!$L$18=TRUE,OR(Daten!$M$4=TRUE,Daten!$M$5=TRUE,$G$74="Nein")),"(aus dem geförderten Objekt resultierend; OHNE Stellplätze / Garagen)","(aus den geförderten WE resultierend; z. B. zugewiesene Stellplätze)") -> (aus dem geförderten Objekt resultierend; OHNE Stellplätze / Garagen) | AB32: TRUE | AD32: Referenz D: | AE32: =Daten!D55 -> 120.00 € | AF32: $D$55
AB33: =IF(AND(OR(Daten!$L$16=TRUE,Daten!$L$17=TRUE),OR(Daten!$M$81=TRUE,Berechnung!$K$21="Ja")),TRUE,FALSE) -> FALSE
D34: =IF(AND(OR(Daten!$L$16=TRUE,Daten!$L$17=TRUE,Daten!$L$18=TRUE),OR($K$21="Ja",Daten!$M$81=TRUE)),"Mit gefördertem Aufzug erreichbare WE / m²:","") ->  | K34: =IF(AND(OR(Daten!$L$16=TRUE,Daten!$L$17=TRUE,Daten!$L$18=TRUE),$K$21="Ja"),IF(OR(J34="",J34=0,ISERROR(J34*100/$K$18)),0,ROUND(J34*100/$K$18,0)),"") ->  | M34: =IF(AND(OR(Daten!$L$16=TRUE,Daten!$L$17=TRUE,Daten!$L$18=TRUE),$K$21="Ja"),IF(OR(L34="",L34=0,ISERROR(L34*100/$K$19)),0,ROUND(L34*100/$K$19,0)),"") ->  | P34: =IF(AND(Daten!$M$79=FALSE,Daten!$M$80=FALSE,Daten!$M$81=FALSE,Daten!$L$18=TRUE),"zzgl. Aufwendungszuschuss 1. Jahr:","") -> zzgl. Aufwendungszuschuss 1. Jahr: | V34: =IF(P34="","",Daten!D151) -> 0.00 € | AB34: TRUE
D35: =IF(AND(OR(Daten!$L$16=TRUE,Daten!$L$17=TRUE,Daten!$L$18=TRUE),OR($K$21="Ja",Daten!$M$81=TRUE))," … davon durch Aufzug barrierefrei erreichbare WE / m²:","") ->  | K35: =IF(AND(OR(Daten!$L$16=TRUE,Daten!$L$17=TRUE,Daten!$L$18=TRUE),$K$21="Ja"),IF(OR(J35="",J35=0,ISERROR(J35*100/$K$18)),0,ROUND(J35*100/$K$18,0)),"") ->  | M35: =IF(AND(OR(Daten!$L$16=TRUE,Daten!$L$17=TRUE,Daten!$L$18=TRUE),$K$21="Ja"),IF(OR(L35="",L35=0,ISERROR(L35*100/$K$19)),0,ROUND(L35*100/$K$19,0)),"") ->  | P35: =UPPER("≙ Jährliche Gesamteinnahmen:") -> ≙ JÄHRLICHE GESAMTEINNAHMEN: | V35: =IF(OR(Daten!L27<>Daten!M27,Daten!L28<>Daten!M28,Daten!L29<>Daten!M29,Daten!L36<>Daten!M36,Daten!L37<>Daten!M37,Daten!L38<>Daten!M38,Daten!L39<>Daten!M39,Daten!L42<>Daten!M42,Daten!L43<>Daten!M43,Daten!L44<>Daten!M44,Daten!L45<>Daten!M45),0,((V27*L27+V28*L28+V29*L29)*12)+V31+IF(AND(Daten!$M$79=FALSE,Daten!$M$80=FALSE,Daten!$M$81=FALSE,Daten!$L$18=TRUE),V34,0)) -> 0.00 € | AB35: TRUE | AD35: Ansatz Mietausfallwagnis / Betriebskosten Leerstand
AB36: TRUE | AD36: TRUE | AE36: =IF(AD36=TRUE,"Mietausfallwagnis ("&TEXT(Grunddaten!P91,"#.##0,00")&"% p. a.)","") -> Mietausfallwagnis (2,00% p. a.)
C37: Kosten / Finanzierung | AB37: TRUE | AD37: =IF(AND(Grunddaten!$P$91>0,Grunddaten!$P$92>0),TRUE,FALSE) -> FALSE | AE37: =IF(AD37=TRUE," + Betriebskosten ("&TEXT(Grunddaten!P92,"#.##0,00")&" € / m² / Wfl. Leerstand p. m.):","") -> 
D38: Förderfähige Kosten | P38: Eigenleistungen | X38: =IF(OR(Daten!$L$55=FALSE,I44="",I44=0),"",IF(I44>0,"min. "&TEXT(Daten!$D$84,"#.##0")&"% der Gesamtkosten ≙ "&TEXT(ROUND(I44*Daten!$D$84/100,2),"#.##0,00 €"),"mindestens "&TEXT(Daten!$D$84,"#.##0")&" % der Gesamtkosten")) ->  | Y38: =IF(Grunddaten!T61=TRUE,"i","") ->  | AB38: TRUE
AB39: TRUE
D40: =IF(OR(Daten!$M$79=TRUE,Daten!$M$80=TRUE,Daten!$M$81=TRUE),"Baukosten:","Grundstückskosten:") -> Grundstückskosten: | G40: =IF(D40="","",IF($I$44=0,0,I40*100/$I$44)) -> 0.00 % | L40: =IF(Daten!L47<>Daten!M47,0,IF(OR($K$19="",$K$19=0,I40="",I40=0),0,IF(OR(Daten!$L$16=FALSE,Daten!$M$81=FALSE),ROUND(I40/$K$19,2),IF(OR($J$34=0,$J$34=""),0,ROUND(I40/$J$34,2))))) -> 0.00 € | M40: =IF(Daten!$M$81=FALSE," pro m² Wfl."," pro WE") -> pro m² Wfl. | P40: Eigenkapital: | T40: =IF(Daten!L51<>Daten!M51,0,IF(OR($I$44="",$I$44=0,V40="",V40=0),0,ROUND(V40*100/$I$44,IF(Daten!$M$81=TRUE,8,1)))) -> 0.00 % | AB40: TRUE | AD40: Nebenrechnung: Eigenkapital
D41: =IF(OR(Daten!$M$79=TRUE,Daten!$M$80=TRUE,Daten!$M$81=TRUE),"Baunebenkosten:","Erwerbskosten / Herrichtung:") -> Erwerbskosten / Herrichtung: | G41: =IF(D41="","",IF($I$44=0,0,I41*100/$I$44)) -> 0.00 % | L41: =IF(Daten!L48<>Daten!M48,0,IF(OR($K$19="",$K$19=0,I41="",I41=0),0,IF(OR(Daten!$L$16=FALSE,Daten!$M$81=FALSE),ROUND(I41/$K$19,2),IF(OR($J$34=0,$J$34=""),0,ROUND(I41/$J$34,2))))) -> 0.00 € | M41: =$M$40 -> pro m² Wfl. | P41: Selbsthilfeleistungen: | T41: =IF(Daten!L52<>Daten!M52,0,IF(OR($I$44="",$I$44=0,V41="",V41=0),0,ROUND(V41*100/$I$44,IF(Daten!$M$81=TRUE,8,1)))) -> 0.00 % | AB41: TRUE
D42: =IF(OR(Daten!$M$79=TRUE,Daten!$M$80=TRUE),"","Baukosten:") -> Baukosten: | G42: =IF(D42="","",IF($I$44=0,0,I42*100/$I$44)) -> 0.00 % | L42: =IF(Daten!M79=TRUE,"",IF(Daten!L49<>Daten!M49,0,IF(OR($K$19="",$K$19=0,I42="",I42=0),0,IF(OR(Daten!$L$16=FALSE,Daten!$M$81=FALSE),ROUND(I42/$K$19,2),IF(OR($J$34=0,$J$34=""),0,ROUND(I42/$J$34,2)))))) -> 0.00 € | M42: =$M$40 -> pro m² Wfl. | P42: =IF(AND(Daten!$M$79=FALSE,Daten!$M$80=FALSE),"Wert des Baugrundstückes:","") -> Wert des Baugrundstückes: | T42: =IF(Daten!M79=TRUE,"",IF(Daten!L53<>Daten!M53,0,IF(OR($I$44="",$I$44=0,V42="",V42=0),0,ROUND(V42*100/$I$44,1)))) -> 0.00 % | AB42: =IF(OR(Daten!$M$79=TRUE,Daten!$M$80=TRUE,Daten!$M$81=TRUE),FALSE,TRUE) -> TRUE | AD42: Mindestbetrag | AE42: =ROUND(I44*Daten!$D$84/100,2) -> 0.00 € | AF42: =ADDRESS(ROW(V40),COLUMN(V40),TRUE) -> $V$40
D43: =IF(OR(Daten!$M$79=TRUE,Daten!$M$80=TRUE),"","Baunebenkosten:") -> Baunebenkosten: | G43: =IF(D43="","",IF($I$44=0,0,I43*100/$I$44)) -> 0.00 % | L43: =IF(Daten!M79=TRUE,"",IF(Daten!L50<>Daten!M50,0,IF(OR($K$19="",$K$19=0,I43="",I43=0),0,IF(OR(Daten!$L$16=FALSE,Daten!$M$81=FALSE),ROUND(I43/$K$19,2),IF(OR($J$34=0,$J$34=""),0,ROUND(I43/$J$34,2)))))) -> 0.00 € | M43: =$M$40 -> pro m² Wfl. | P43: =IF(OR(Daten!$M$77=TRUE,Daten!$M$78=TRUE),"Wert vorh. Gebäudeteile:","") ->  | T43: =IF(AND(Daten!M77=FALSE,Daten!M78=FALSE),"",IF(Daten!L54<>Daten!M54,0,IF(OR($I$44="",$I$44=0,V43="",V43=0),0,ROUND(V43*100/$I$44,1)))) ->  | AB43: =AB42 -> TRUE | AD43: Anrechnungen | AE43: =SUMPRODUCT((P41:P43<>"")*(AB41:AB43=TRUE)*(V41:X43)) -> 0.00 € | AF43: -
D44: Kosten (Gesamt): | G44: =SUM(G40:G43) -> 0.00 % | I44: =IF(OR(Daten!L47<>Daten!M47,Daten!L48<>Daten!M48,Daten!L49<>Daten!M49,Daten!L50<>Daten!M50,AND(I40="",I41="",I42="",I43="")),0,SUMIF(AB40:AB43,TRUE,I40:K43)) -> 0.00 € | L44: =IF(OR($K$19="",$K$19=0,I44="",I44=0),0,IF(Daten!$M$81=FALSE,ROUND(I44/$K$19,2),IF(OR($J$34=0,$J$34=""),0,ROUND(I44/$J$34,2)))) -> 0.00 € | M44: =$M$40 -> pro m² Wfl. | P44: Eigenleistungen (Gesamt): | T44: =IF(OR($I$44="",$I$44=0,V44="",V44=0),0,ROUND(V44*100/$I$44,IF(Daten!$M$81=TRUE,8,1))) -> 0.00 % | V44: =IF(OR(Daten!L51<>Daten!M51,Daten!L52<>Daten!M52,Daten!L53<>Daten!M53,Daten!L54<>Daten!M54,AND(V40="",V41="",V42="",V43="")),0,IF(AND(Daten!$M$77=FALSE,Daten!$M$78=FALSE),SUMIF(AB40:AB42,TRUE,V40:V42),SUMIF(AB40:AB43,TRUE,V40:V43))) -> 0.00 € | Y44: =IF(Grunddaten!T61=TRUE,"i","") ->  | AB44: TRUE | AD44: Restbetrag | AE44: =MAX(0,AE42-AE43) -> 0.00 € | AF44: -
AB45: =IF(AND(Daten!M81=FALSE,Berechnung!K21="Ja"),TRUE,FALSE) -> FALSE
D46: =IF($AB$46=TRUE,"… davon auf geförderte Aufzüge entfallend:","") ->  | L46: =IF(D46="","",IF(OR(J34="",J34=0),0,I46/J34)) ->  | M46: =IF(D46="","","pro WE") ->  | O46: =IF($L$46=0,"",IF(AND($AB$46=TRUE,$D$46<>"",$I$46<>"",$L$46<Daten!$H$80),"← Die Aufzugskosten liegen "&$AF$78&" den maximal förderfähigen Kosten!","")) ->  | AB46: =AB45 -> FALSE
AB47: TRUE
D48: Finanzierung | P48: Zuschüsse | AB48: TRUE
AB49: TRUE
D50: Eigenleistungen: | G50: =IF(D50="","",IF($I$44=0,0,I50*100/$I$44)) -> 0.00 % | I50: =IF(Daten!L71<>Daten!M71,0,V44) -> 0.00 € | L50: =IF(OR($K$19="",$K$19=0,I50="",I50=0),0,IF(OR(Daten!$L$16=FALSE,Daten!$M$81=FALSE),ROUND(I50/$K$19,2),IF(OR($J$34=0,$J$34=""),0,ROUND(I50/$J$34,2)))) -> 0.00 € | M50: =$M$40 -> pro m² Wfl. | P50: Sonstiger Zuschuss I (bitte benennen): | T50: =IF(OR($I$44="",$I$44=0,V50="",V50=0),0,ROUND(V50*100/$I$44,IF(Daten!$M$81=TRUE,8,1))) -> 0.00 % | Y50: =IF($AE$91=1,"~","") ->  | AB50: TRUE | AD50: Zuschussbestandteile
D51: Zuschüsse (ILB): | G51: =IF(D51="","",IF($I$44=0,0,I51*100/$I$44)) -> 0.00 % | I51: =IF(V50+V51>0,SUM(V52:X54),IF(Daten!L71<>Daten!M71,0,V55)) -> 0.00 € | L51: =IF(OR($K$19="",$K$19=0,I51="",I51=0),0,IF(OR(Daten!$L$16=FALSE,Daten!$M$81=FALSE),ROUND(I51/$K$19,2),IF(OR($J$34=0,$J$34=""),0,ROUND(I51/$J$34,2)))) -> 0.00 € | M51: =$M$40 -> pro m² Wfl. | P51: Sonstiger Zuschuss II (bitte benennen): | T51: =IF(OR($I$44="",$I$44=0,V51="",V51=0),0,ROUND(V51*100/$I$44,IF(Daten!$M$81=TRUE,8,1))) -> 0.00 % | Y51: =IF($AE$91=2,"~","") ->  | AB51: TRUE | AD51: Bindung: | AE51: =Daten!$D$73 -> 0.00 € | AF51: =IF(AE51>0,TRUE) -> FALSE
D52: =IF(V50+V51>0,"Zuschüsse (Sonstige):","Maximal mögliche Förderdarlehen:") -> Maximal mögliche Förderdarlehen: | G52: =IF(D52="","",IF($I$44=0,0,I52*100/$I$44)) -> 0.00 % | I52: =IF(V50+V51>0,V50+V51,IF(Daten!L71<>Daten!M71,0,SUM(L61:P63))) -> 0.00 € | L52: =IF(OR($K$19="",$K$19=0,I52="",I52=0),0,IF(OR(Daten!$L$16=FALSE,Daten!$M$81=FALSE),ROUND(I52/$K$19,2),IF(OR($J$34=0,$J$34=""),0,ROUND(I52/$J$34,2)))) -> 0.00 € | M52: =$M$40 -> pro m² Wfl. | P52: =Daten!$K$112 ->  | T52: =IF(P52="","",IF(OR($I$44="",$I$44=0,V52="",V52=0),0,ROUND(V52*100/$I$44,IF(Daten!$M$81=TRUE,8,1)))) ->  | V52: =IF(AND($D$12<>"",$P$52<>""),0,Daten!$M$112) ->  | Y52: =IF(Grunddaten!T47=TRUE,"i","") ->  | AB52: TRUE | AD52: Aufzug: | AE52: =Daten!$H$101 -> 0.00 € | AF52: =IF(AE52>0,TRUE) -> FALSE
D53: =IF(V50+V51>0,"Maximal mögliche Förderdarlehen:",IF(Daten!$M$3=TRUE,"Sonstige / Restfinanzierung(en):","Notwendige Restfinanzierung:")) -> Notwendige Restfinanzierung: | G53: =IF(D53="","",IF($I$44=0,0,I53*100/$I$44)) -> 0.00 % | I53: =IF(V50+V51>0,IF(Daten!$L$71<>Daten!$M$71,0,SUM($L$61:$P$62)),IF(Daten!$L$71<>Daten!$M$71,0,$L$65+IF(AND($L$64<>"",$L$64>0),$L$64,0))) -> 0.00 € | L53: =IF(OR($K$19="",$K$19=0,I53="",I53=0),0,IF(OR(Daten!$L$16=FALSE,Daten!$M$81=FALSE),ROUND(I53/$K$19,2),IF(OR($J$34=0,$J$34=""),0,ROUND(I53/$J$34,2)))) -> 0.00 € | M53: =$M$40 -> pro m² Wfl. | P53: =Daten!$K$113 ->  | T53: =IF(P53="","",IF(OR($I$44="",$I$44=0,V53="",V53=0),0,ROUND(V53*100/$I$44,IF(Daten!$M$81=TRUE,8,1)))) ->  | V53: =Daten!$M$113 ->  | AB53: TRUE | AD53: =IF(Daten!L16=TRUE,"Klimabaustein:","Grundförderung:") -> Grundförderung: | AE53: =IF(Daten!$L$16=TRUE,Daten!$D$128,Daten!$D$136) -> 0.00 € | AF53: =IF(AE53>0,TRUE) -> FALSE
D54: =IF(V50+V51>0,IF(Daten!$M$3=TRUE,"Sonstige / Restfinanzierung(en):","Notwendige Restfinanzierung:"),"") ->  | G54: =IF(D54="","",IF($I$44=0,0,I54*100/$I$44)) ->  | I54: =IF(V50+V51>0,IF(Daten!$L$71<>Daten!$M$71,0,$L$65+IF(AND($L$64<>"",$L$64>0),$L$64,0)),"") ->  | L54: =IF(D54="","",IF(OR($K$19="",$K$19=0,I54="",I54=0),0,IF(OR(Daten!$L$16=FALSE,Daten!$M$81=FALSE),ROUND(I54/$K$19,2),IF(OR($J$34=0,$J$34=""),0,ROUND(I54/$J$34,2))))) ->  | M54: =IF(D54="","",$M$40) ->  | P54: =Daten!$K$114 ->  | T54: =IF(P54="","",IF(OR($I$44="",$I$44=0,V54="",V54=0),0,ROUND(V54*100/$I$44,IF(Daten!$M$81=TRUE,8,1)))) ->  | V54: =Daten!$M$114 ->  | AB54: =IF(AND(OR(Daten!$L$17=TRUE,AND($AB$22=TRUE,Daten!$R$90=TRUE)),OR(D54<>"",P54<>"")),TRUE,FALSE) -> FALSE | AD54: Zuschuss I | AE54: =V50 -> 0.00 € | AF54: =IF(AE54>0,TRUE) -> FALSE
D55: Finanzierung (Gesamt): | G55: =SUM(G50:G54) -> 0.00 % | I55: =IF(OR(I50="",I51="",I52="",I53=""),0,SUM(I50:K54)) -> 0.00 € | L55: =IF(OR($K$19="",$K$19=0,I55="",I55=0),0,IF(OR(Daten!$L$16=FALSE,Daten!$M$81=FALSE),ROUND(I55/$K$19,2),IF(OR($J$34=0,$J$34=""),0,ROUND(I55/$J$34,2)))) -> 0.00 € | M55: =$M$40 -> pro m² Wfl. | P55: Zuschüsse (Gesamt): | T55: =IF(OR($I$44="",$I$44=0,V55="",V55=0),0,ROUND(V55*100/$I$44,IF(Daten!$M$81=TRUE,8,1))) -> 0.00 % | V55: =IF(Daten!L56<>Daten!M56,0,SUM(V50:X54)) -> 0.00 € | AB55: TRUE | AD55: Zuschuss II: | AE55: =V51 -> 0.00 € | AF55: =IF(AE55>0,TRUE) -> FALSE
AB56: TRUE | AD56: Gesamt: | AE56: =SUM(AE51:AE55) -> 0.00 € | AF56: -
C57: Darlehen / Laufende Aufwendungen | AB57: TRUE
C58: =C61 ->  | D58: Finanzierungsbestandteil | N58: Darlehenshöhe | Q58: Zins / LVKB | S58: Tilgung | V58: Kapitaldienst p. a. | Y58: =Y61 ->  | AB58: TRUE
AB59: TRUE
D60: Kapitaldienst aus bereits vor Maßnahmebeginn für das Förderobjekt bestehenden Finanzierungen (gesamt): | AB60: TRUE | AD60: Anpassung Freie Miete
C61: =IF(COUNTIF(Grunddaten!T57:T58,TRUE)>0,"i","") ->  | D61: =Daten!$K$115 -> Förderdarlehen (Maßnahme; maximal bis zu 2.200,00 € / m²): | L61: =IF(AND(D12<>"",D61<>""),0,Daten!$M$115) -> 0.00 € | Q61: =Grunddaten!$H$57 -> 0.5000 % | S61: 2.0000 % | V61: =IF(Daten!L71<>Daten!M71,0,L61*(Q61+S61)/100) -> 0.00 € | Y61: =IF(COUNTIF(Grunddaten!T57:T58,TRUE)>0,"i","") ->  | AB61: TRUE | AD61: Anpassungsbedarf: | AE61: =ROUND(V65-L65/100*3,2) -> 0.00 € | AF61: Mietobergrenze:
C62: =C61 ->  | D62: =Daten!$K$116 ->  | L62: =Daten!$M$116 ->  | Q62: =IF(D62="","",IF(OR(Daten!$L$71<>Daten!$M$71,$D$62=""),$Q$61,$Q$61)) ->  | S62: =IF(D62="","",S61) ->  | V62: =IF(D62="","",IF(OR(Daten!$L$71<>Daten!$M$71,$D$62=""),0,L62*(Q62+S62)/100)) ->  | Y62: =Y61 ->  | AB62: =IF(AND(Daten!$L$16=TRUE,Daten!$M$81=TRUE),FALSE,IF(D62="",FALSE,TRUE)) -> FALSE | AD62: Mietreduzierung: | AE62: =IF(OR(L29="",L29=0),0,ROUNDDOWN(AE61/12/L29,2)) -> 0.00 € | AF62: =Daten!D99 -> 10.50 €
D63: =Daten!$K$117 ->  | L63: =Daten!$M$117 ->  | Q63: =IF(D63="","",IF(OR(Daten!$L$71<>Daten!$M$71,$D$63=""),$Q$61,$Q$61)) ->  | S63: =IF(D63="","",IF(OR(Daten!$L$71<>Daten!$M$71,$D$63=""),$S$61,$S$61)) ->  | V63: =IF(D63="","",IF(OR(Daten!$L$71<>Daten!$M$71,$D$63=""),0,L63*(Q63+S63)/100)) ->  | AB63: FALSE | AD63: Freie Miete: | AE63: =MAX(AF62,MAX(V28,V29-AE62)) -> 10.50 € | AF63: =IF(AND(L65>0,Daten!$L$17=FALSE,Daten!$M$3=TRUE,S61=3,AE63>V28,AE10=TRUE),TRUE,FALSE) -> FALSE
V64: =IF(OR(Daten!$L$71<>Daten!$M$71,$D$64=""),0,L64*(Q64+S64)/100) -> 0.00 € | AB64: =IF(Daten!$M$3=TRUE,TRUE,FALSE) -> FALSE
D65: Notwendige Restfinanzierung (Höhe wird automatisch berechnet): | L65: =IF(Daten!$L$71<>Daten!$M$71,0,IF(AND(OR(Daten!$L$16=TRUE,Daten!$L$17=TRUE),Daten!$M$81=TRUE),MAX(0,IF(Daten!$H$128=0,0,ROUNDUP(Daten!$H$128,-2))),IF(Daten!$D$46<0,0,IF(Daten!$D$46=0,0,MAX(0,ROUNDUP(ROUNDDOWN(Daten!$D$46,0),-2)))))) -> 0.00 € | Q65: 4.0000 % | S65: 2.0000 % | V65: =IF(Daten!L71<>Daten!M71,0,IF(OR(Daten!M62=FALSE,Daten!M63=FALSE),0,L65*(Q65+S65)/100)) -> 0.00 € | AB65: TRUE
K66: Darlehen gesamt: | L66: =IF(OR(L61="",L65=""),0,SUM(L61:L65)) -> 0.00 € | U66: Kapitaldienst p. a.: | V66: =IF(Daten!L71<>Daten!M71,0,SUM(V60:X65)) -> 0.00 € | AB66: TRUE | AD66: Annuitäten-Check
D67: =IF(AND(Q65<>"",S65<>"",(Q61+S61)>=(Q65+S65)),"Die Kapitalkosten (prozentuale Gesamtannuität) für die "&CHAR(34)&"Notwendige Restfinanzierung"&CHAR(34)&" müssen größer sein, als für "&IF(Daten!M109>1,"die","das")&" Förderdarlehen!","") ->  | AB67: TRUE
X68: Bewirtschaftungskosten p. a. | Y68: =IF(COUNTIF(Grunddaten!T86:T91,TRUE)>0,"i","") ->  | AB68: TRUE | AD68: Zinssatz | AE68: Förderdarlehen | AF68: =Q61 -> 0.5000 %
D69: =IF(Daten!M3=FALSE,"","Ansatz Bewirtschaftungskosten:") ->  | J69: =Y68 ->  | U69: ="Verwaltungskosten ("&TEXT(Grunddaten!P86,"#.##0,00")&" € / WE / p. a."&IF(OR(OR(Daten!L66=FALSE,Daten!L66<>Daten!M66),OR(Daten!L67=FALSE,Daten!L67<>Daten!M67)),"):",IF(G70+G71>0," + "&TEXT(Grunddaten!P87,"#.##0,00")&" € / "&IF(AND($AE$24>0,$AE$25>0),"Stellpl. & Garage",IF($AE$25>0,"Stellplatz",IF($AE$24>0,"Garage","")))&" / p. a.):","):")) -> Verwaltungskosten (372,46 € / WE / p. a.): | V69: =IF(OR(Daten!L28<>Daten!M28,Daten!L66<>Daten!M66,Daten!L67<>Daten!M67),0,Grunddaten!$P$86*$K$18+Grunddaten!$P$87*$AE$24+Grunddaten!$P$87*$AE$25) -> 0.00 € | Y69: =IF(COUNTIF(Grunddaten!T86:T87,TRUE)>0,"i","") ->  | AB69: TRUE | AD69: Tilgungssatz | AF69: =S61 -> 2.0000 %
D70: Anzahl ungedeckte Stellplätze: | U70: =IF(OR(Daten!$L$65<>Daten!$M$65,Daten!$L$66<>Daten!$M$66),"Instandhaltungskosten:","Instandhaltungskosten ("&IF(AD23=TRUE,"Ø ","")&TEXT(AF23,"#.##0,00")&" € / m² / Wfl. / p. a."&IF(AE24>0," + "&TEXT(Grunddaten!P90,"#.##0,00")&" € / Garage / p. a.):","):")) -> Instandhaltungskosten (11,50 € / m² / Wfl. / p. a.): | V70: =AE21*AF21+AE22*AF22+AE24*AF24 -> 0.00 € | Y70: =IF(COUNTIF(Grunddaten!T88:T90,TRUE)>0,"i","") ->  | AB70: TRUE | AD70: Annuität | AF70: =AF68+AF69 -> 2.5000 %
D71: Anzahl Garagen / Carports: | U71: =AE36&IF(AD37=TRUE,AE37,"") -> Mietausfallwagnis (2,00% p. a.) | V71: =IF(V35="","",V35*Grunddaten!$P$91/100+((($K$19*Grunddaten!$P$91)/100)*Grunddaten!$P$92*12)) -> 0.00 € | Y71: =IF(Grunddaten!T91=TRUE,"i","") ->  | AB71: TRUE | AD71: Zinssatz | AE71: Notwendige Fremdfinanzierung | AF71: =Q65 -> 4.0000 %
D72: =IF(AND(Daten!$M$81=FALSE,$K$21="Nein"),"Aufzüg(e) im Objekt vorhanden:","Zusätzliche Aufzüg(e) vorhanden:") -> Zusätzliche Aufzüg(e) vorhanden: | G72: Nein | U72: =IF(OR(Daten!M12=FALSE,Daten!M75=TRUE,Daten!M77=TRUE,Daten!M79=TRUE),"","Pauschalaufwand für Besetzungsrechte:") ->  | V72: =IF(OR(Daten!M12=FALSE,Daten!M75=TRUE,Daten!M77=TRUE,Daten!M79=TRUE),"",Daten!D107) ->  | AB72: TRUE | AD72: Tilgungssatz | AF72: =S65 -> 2.0000 %
D73: =IF(AND(D72<>"",G72="Ja"),"∑ Fläche mit Aufzüg(en) erreichbar:","") ->  | U73: Bewirtschaftungskosten p. a.: | V73: =SUM(V69:X72) -> 0.00 € | AB73: TRUE | AD73: Annuität | AF73: =AF71+AF72 -> 6.0000 %
D74: =IF(AND(Daten!$L$18=TRUE,Daten!$M$4=FALSE,Daten!$M$5=FALSE),"Berücksichtigung von Einnahmen und Kosten aus Stellplätzen & Garagen:","") ->  | AB74: =IF(Daten!$M$3=TRUE,TRUE,FALSE) -> FALSE | AD74: Differenz zwischen Annuitäten | AF74: =IF(AF70>AF73,AF70-AF73+0.0001,0) -> 0.0000 %
U75: Sonstige zu berücksichtigende Kosten aus dem Objekt p. a.: | AB75: =AB74 -> FALSE | AD75: Anpassungsbedarf | AF75: =IF(D67<>"",TRUE,FALSE) -> FALSE
AB76: TRUE
X77: Eigenkapitalverzinsung p. a. | Y77: =IF(COUNTIF(Grunddaten!T81:T82,TRUE)>0,"i","") ->  | AB77: TRUE | AD77: Prüfung Aufzugskosten
U78: ="Zu verzinsende Eigenleistungen (max. "&TEXT(V44,"#.##0,00")&" €; leer lassen für vollen Ansatz"&IF($V$78<>"","; unverzinslich: "&TEXT(Daten!$D$106,"#.##0,00")&" €","")&"):" -> Zu verzinsende Eigenleistungen (max. 0,00 €; leer lassen für vollen Ansatz): | AB78: =IF(Daten!$M$3=TRUE,TRUE,FALSE) -> FALSE | AD78: Quote / Ausweis | AE78: =IF(Daten!$H$80=0,0,$L$46/Daten!$H$80/(1-Daten!$D$84%)) -> 0 | AF78: =IF(AE78<=(1/3*100)%,"signifikant unter",IF(AE78<=(1/2*100)%,"erheblich unter",IF(AE78<=(3/4*100)%,"deutlich unter","unter"))) -> signifikant unter
AB79: =AB78 -> FALSE
U80: ="Eigenkapitalverzinsung auf bis zu ≙ "&TEXT(Grunddaten!E81,"#.##0")&"% der förderfähigen Baukosten ("&TEXT(Daten!E103/100,"#.##0,00%")&" auf "&TEXT(Daten!$D$103,"#.##0,00 €")&" p. a.):" -> Eigenkapitalverzinsung auf bis zu ≙ 15% der förderfähigen Baukosten (2,00% auf 0,00 € p. a.): | V80: =IF(Daten!L51<>Daten!M51,"",Daten!D103*Grunddaten!H81/100) -> 0.00 € | Y80: =IF(Grunddaten!T81=TRUE,"i","") ->  | AB80: TRUE | AD80: Nebenrechnung: Spitzenfinanzierung
U81: ="Eigenkapitalverzinsung auf darüber hinausgehende Eigenleistungen ("&TEXT(Daten!E104/100,"#.##0,00%")&" auf "&TEXT(Daten!$D$104,"#.##0,00 €")&" p. a.):" -> Eigenkapitalverzinsung auf darüber hinausgehende Eigenleistungen (4,00% auf 0,00 € p. a.): | V81: =IF(Daten!L51<>Daten!M51,"",Daten!D104*Grunddaten!H82/100) -> 0.00 € | Y81: =IF(Grunddaten!T82=TRUE,"i","") ->  | AB81: TRUE
U82: ="Eigenkapitalverzinsung (Ø "&TEXT(Daten!$E$105,"#.##0,0000")&"%; bezogen auf "&TEXT(V44,"#.##0,00")&" € gesamte Eigenleistungen) p. a.:" -> Eigenkapitalverzinsung (Ø 0,0000%; bezogen auf 0,00 € gesamte Eigenleistungen) p. a.: | V82: =SUM(V80:X81) -> 0.00 € | AB82: TRUE | AD82: Fehlbetrag: | AE82: =V94 -> 0.00 € | AF82: =SUM(AF83:AF84) -> 0.00 €
AB83: TRUE | AD83: Restdarlehen: | AE83: =MIN(V65,ABS(AE82)) -> 0.00 € | AF83: =IF((Q65+S65)=0,0,AE83/(Q65+S65)*100) -> 0.00 €
U84: =UPPER("≙ Jährliche Gesamtaufwendungen:") -> ≙ JÄHRLICHE GESAMTAUFWENDUNGEN: | V84: =IF(OR(V66="",V69="",V70="",V71="",V80="",V81=""),0,SUM(V66,V73,V75,V82)) -> 0.00 € | AB84: TRUE | AD84: Förderdarlehen: | AE84: =MIN(ABS(AE82+AE83),V61) -> 0.00 € | AF84: =AE84/(Q61+S61)*100 -> 0.00 €
AB85: TRUE | AD85: Prüfcheck I: | AE85: - | AF85: =IF(AF84>=L61,FALSE,TRUE) -> FALSE
C86: Objektwirtschaftlichkeit (Alt) | AB86: =IF(OR(Daten!$M$79=TRUE,Daten!$M$80=TRUE),TRUE,FALSE) -> FALSE | AD86: Prüfcheck II: | AE86: =AE82+AE83+AE84 -> 0.00 € | AF86: =IF(AE86<0,FALSE,TRUE) -> TRUE
D87: Nutzung eines rückgerechneten Deckungsbeitrages vor Maßnahmebeginn (z. B. bei langfristigem Leerstand / Leerzug): | V87: =IF(OR(U87="",U87="Nein"),0,AF108) -> 0.00 € | AB87: =IF(AND(Daten!$M$3=TRUE,OR(Daten!$M$79=TRUE,Daten!$M$80=TRUE)),TRUE,FALSE) -> FALSE | AD87: EK-Verzinsung II: | AE87: =MIN(V81,ABS(SUM(AE82:AE84))) -> 0.00 € | AF87: =IF(Daten!$E$104=0,0,AE87/Daten!$E$104*100) -> 0.00 €
D88: =IF(OR(Daten!C4=TRUE,Daten!L70=TRUE),"Jährlicher Deckungsbeitrag vor Maßnahmebeginn (∑ Nettokaltmiete abzgl. ∑ bestehender Kapitaldienst; ILB-Vordruck KE1605200756):","") ->  | AB88: =IF(AND(OR(Daten!$M$79=TRUE,Daten!$M$80=TRUE),OR(Daten!$M$3=FALSE,U87="",U87="Nein")),TRUE,FALSE) -> FALSE | AD88: EK-Verzinsung I: | AE88: =MIN(V80,ABS(SUM(AE82:AE84))) -> 0.00 € | AF88: =IF(Daten!$E$103=0,0,AE88/Daten!$E$103*100) -> 0.00 €
D89: =IF(OR(Daten!$C$4=TRUE,Daten!$L$70=TRUE,Daten!$L$69=TRUE),"≙ einem jährlichen Deckungsbeitrag, abzüglich pauschaler Bewirtschaftungskosten ("&TEXT(SUM(V69:X72),"#.##0,00")&" €):","") ->  | V89: =IF(OR(Daten!$M$79=TRUE,Daten!$M$80=TRUE),IF($AB$86=FALSE,0,IF(AND(Daten!$M$3=TRUE,$U$87="Ja"),AF108,IF(V88="",0,IF(V88=0,Daten!$D$142,V88)))-V73),0) -> 0.00 € | AB89: =IF(OR(Daten!$M$79=TRUE,Daten!$M$80=TRUE),TRUE,FALSE) -> FALSE | AD89: Prüfcheck III: | AE89: - | AF89: =IF(SUM(AE87:AE88)<ABS(AE86),FALSE,TRUE) -> TRUE
AB90: =IF(AND(Daten!M3=TRUE,Berechnung!U87="Ja"),TRUE,FALSE) -> FALSE | AD90: Prüfcheck IV: | AE90: =AE86+AE87+AE88 -> 0.00 € | AF90: =IF(AE90<0,FALSE,TRUE) -> TRUE
D91: =IF(AB90=TRUE,AD105,"") ->  | AB91: =AB90 -> FALSE | AD91: Zuschussfeld: | AE91: 0 | AF91: =IF(OR(AE91="",AE91=0),0,INDEX(V50:X51,AE91,1)+AF82) -> 0.00 €
AB92: =IF(OR(Daten!$M$79=TRUE,Daten!$M$80=TRUE),TRUE,FALSE) -> FALSE
C93: =IF(Daten!M79=TRUE,"Objektwirtschaftlichkeit (Neu)","Objektwirtschaftlichkeit") -> Objektwirtschaftlichkeit | AB93: TRUE
F94: Einnahmen p. a.: | G94: =V35 -> 0.00 € | L94: Ausgaben p. a.: | M94: =V84 -> 0.00 € | U94: =IF(AND(OR(Daten!$M$79=TRUE,Daten!$M$80=TRUE),Daten!$G$60=TRUE),"Nach Reduzierung Förderdarlehen ►","") ->  | V94: =IF(OR(G94="",M94=""),"",ROUND(G94-M94,2)) -> 0.00 € | Y94: =IF(Grunddaten!S48>0,"i","") ->  | AB94: TRUE
AB95: =AB111 -> TRUE
U96: ="Die Objektwirtschaftlichkeit würde sich ohne den Aufwendungszuschuss i. H. v. "&TEXT(V34,"#.##0,00")&" EUR wie folgt darstellen:" -> Die Objektwirtschaftlichkeit würde sich ohne den Aufwendungszuschuss i. H. v. 0,00 EUR wie folgt darstellen: | V96: =IF(AND(Daten!$M$79=FALSE,Daten!$M$80=FALSE,Daten!$M$81=FALSE,Daten!$L$18=TRUE),V94-V34,0) -> 0.00 € | AB96: =AB95 -> TRUE
AB97: TRUE
C98: Ergebnis | AB98: TRUE
D99: =IF(Daten!$L$71<>Daten!$M$71,"Die Angaben sind noch nicht vollständig bzw. nicht plausibel. Eine Ergebnisanzeige ist derzeit nicht möglich.",IF(AND(L61=0,Daten!$G$50>Daten!$D$55),"Eine Wirtschaftlichkeit des Vorhabens ist bereits ohne weitere Förderung über das "&CHAR(34)&"Notwendige Fremddarlehen"&CHAR(34)&" darstellbar!",IF(Daten!$R$5=TRUE,"Auf Basis der vorliegenden Daten konnte leider keine verläßliche Höhe für das Förderdarlehen (Maßnahme) ermittelt werden!"&IF(Daten!$M$3=FALSE,UPPER(" Bitte kontaktieren Sie Ihre ILB für eine weiterführende Beratung!"),""),IF(ROUNDDOWN($V$94,0)<0,"Eine Förderung kann ohne Anpassungen "&IF(AND(V94+V82<0,Daten!$M$3=TRUE),UPPER("(auch unter Verzicht der Eigenkapitalverzinsung) "),IF(AND(V94+V82>=0),"(teilweiser Verzicht auf die Eigenkapitalverzinsung) ",""))&"nicht gewährt werden."&IF(OR(Daten!$C$4=TRUE,Daten!$M$3=FALSE),UPPER(" Bitte kontaktieren Sie Ihre ILB für eine weiterführende Beratung!"),"")&" Nachfolgend werden die grundsätzlich möglichen Förderbeträge zur Information ausgewiesen:",IF(AND(V78>0,V78<V44,V94>0),"Eine Förderung ist nur durch den teilweisen Verzicht der Eigenkapitalverzinsung (unverzinslich: "&TEXT(Daten!$D$106,"#.##0,00")&" €) wirtschaftlich darstellbar.",IF(Daten!$C$4=TRUE,"Feld für Hinweismeldungen ...","")))))) -> Die Angaben sind noch nicht vollständig bzw. nicht plausibel. Eine Ergebnisanzeige ist derzeit nicht möglich. | AB99: =IF(D99="",FALSE,TRUE) -> TRUE
AB100: =AB99 -> TRUE
AB101: =IF(Daten!$L$71<>Daten!$M$71,FALSE,AB99) -> FALSE
D102: Förderbestandteil | J102: Max. Betrag | L102: … entspricht ≙ | X102: Gesamtsummen (aufgerundet) | AB102: =IF(Daten!$L$71<>Daten!$M$71,FALSE,TRUE) -> FALSE | AD102: Geschätzter Deckungsbeitrag vor Maßnahme (Vollvermietung)
AB103: =AB102 -> FALSE
D104: ="Mögliche Höhe für "&IF(Daten!$Q$143=FALSE,D61,LEFT(D61,SEARCH(";",D61)-1)&"):") -> Mögliche Höhe für Förderdarlehen (Maßnahme): | J104: =IF(OR(Daten!$L$71<>Daten!$M$71),"",Daten!$N$115) ->  | L104: =IF(OR(Daten!$L$71<>Daten!$M$71),"",Daten!$O$115) ->  | M104: =IF(OR(Daten!$L$71<>Daten!$M$71),"",Daten!$P$115) ->  | O104: =IF(Daten!M109>1,"∑ der möglichen Förderdarlehen:","∑ des möglichen Förderdarlehens:") -> ∑ des möglichen Förderdarlehens: | V104: =IF(J104="",0,ROUNDUP(J104,-2))+IF(J105="",0,ROUNDUP(J105,-2))+IF(J106="",0,ROUNDUP(J106,-2)) -> 0.00 € | AB104: =IF($AB$102=FALSE,FALSE,IF(Daten!$M$109>0,TRUE,FALSE)) -> FALSE
D105: ="Mögliche Höhe für "&IF(D62="","…:",D62) -> Mögliche Höhe für …: | J105: =IF(OR(Daten!$L$71<>Daten!$M$71),"",Daten!$N$116) ->  | L105: =IF(OR(Daten!$L$71<>Daten!$M$71),"",Daten!$O$116) ->  | M105: =IF(OR(Daten!$L$71<>Daten!$M$71),"",Daten!$P$116) ->  | AB105: =IF($AB$102=FALSE,FALSE,IF(Daten!$M$109>1,TRUE,FALSE)) -> FALSE | AD105: ="Der rückgerechnete Deckungsbeitrag vor Maßnahmebeginn unterstellt eine Ø Ausgangsmiete von "&TEXT(AF110,"#.##0,00 €")&" pro m² Wfl. (Modernisierungsumlage von "&TEXT(AF114,"#.##0,00 €")&" pro m² Wfl. / "&TEXT(AF113*100,"#.##0,00")&"% Modernisierungskostenanteil)." -> Der rückgerechnete Deckungsbeitrag vor Maßnahmebeginn unterstellt eine Ø Ausgangsmiete von 0,00 € pro m² Wfl. (Modernisierungsumlage von 0,00 € pro m² Wfl. / 60,00% Modernisierungskostenanteil).
D106: ="Mögliche Höhe für "&IF(D63="","…:",D63) -> Mögliche Höhe für …: | J106: =IF(OR(Daten!$L$71<>Daten!$M$71),"",Daten!$N$117) ->  | L106: =IF(OR(Daten!$L$71<>Daten!$M$71),"",Daten!$O$117) ->  | M106: =IF(OR(Daten!$L$71<>Daten!$M$71),"",Daten!$P$117) ->  | AB106: =IF($AB$102=FALSE,FALSE,IF(Daten!$M$109>2,TRUE,FALSE)) -> FALSE
AB107: =$AB$102 -> FALSE
D108: ="Mögliche Höhe für "&IF(P52="","…:",P52) -> Mögliche Höhe für …: | J108: =IF(OR(Daten!$L$71<>Daten!$M$71),"",Daten!$N$112) ->  | L108: =IF(OR(Daten!$L$71<>Daten!$M$71),"",Daten!$O$112) ->  | M108: =Daten!$P$112 ->  | O108: =IF(Daten!$M$108>1,"∑ der möglichen Förderzuschüsse:","∑ des möglichen Förderzuschusses:") -> ∑ des möglichen Förderzuschusses: | V108: =IF(J108="",0,ROUNDUP(J108,-2))+IF(J109="",0,ROUNDUP(J109,-2))+IF(J110="",0,ROUNDUP(J110,-2))+IF(J111="",0,ROUNDUP(J111,-2)) -> 0.00 € | AB108: =IF($AB$102=FALSE,FALSE,IF(Daten!$M$108>0,TRUE,FALSE)) -> FALSE | AD108: Mieteinnahmen: | AE108: =IF(OR(SUM(L27:L29)=0,SUM(V27:X29)=0),0,(((V27*L27+V28*L28+V29*L29)*12)-AF109)) -> 0.00 € | AF108: =AE108+AE109-AE110 -> 0.00 €
D109: ="Mögliche Höhe für "&IF(P53="","…:",P53) -> Mögliche Höhe für …: | J109: =IF(OR(Daten!$L$71<>Daten!$M$71),"",Daten!$N$113) ->  | L109: =IF(OR(Daten!$L$71<>Daten!$M$71),"",Daten!$O$113) ->  | M109: =Daten!$P$113 ->  | AB109: =IF($AB$102=FALSE,FALSE,IF(Daten!$M$108>1,TRUE,FALSE)) -> FALSE | AD109: Sonstige Einnahmen: | AE109: =V31 -> 0.00 € | AF109: =AF114*K19*12 -> 0.00 €
D110: ="Mögliche Höhe für "&IF(P54="","…:",P54) -> Mögliche Höhe für …: | J110: =IF(OR(Daten!$L$71<>Daten!$M$71),"",Daten!$N$114) ->  | L110: =IF(OR(Daten!$L$71<>Daten!$M$71),"",Daten!$O$114) ->  | M110: =Daten!$P$114 ->  | AB110: =IF($AB$102=FALSE,FALSE,IF(Daten!$M$108>2,TRUE,FALSE)) -> FALSE | AD110: Alter Kapitaldienst: | AE110: =V60 -> 0.00 € | AF110: =IF(OR(K19="",K19=0),0,AE108/K19/12) -> 0.00 €
D111: =IF(AB111=TRUE,"Mögliche Höhe für "&Daten!K141,"") -> Mögliche Höhe für Förderzuschuss (Aufwendg.): | J111: =IF(AB111=TRUE,Daten!N141,"") -> 0.00 € | L111: =IF(AB111=TRUE,Daten!O141,"") ->  | M111: =IF(AB111=TRUE,Daten!P141,"") -> pro m² | AB111: =IF(AND(Daten!$M$79=FALSE,Daten!$M$80=FALSE,Daten!$M$81=FALSE,Daten!$L$18=TRUE),TRUE,FALSE) -> TRUE
AB112: =AB102 -> FALSE
D113: =Daten!J133&IF(Daten!$J$134="",""," "&Daten!$J$134) ->  | AB113: =AB102 -> FALSE | AD113: Modernisierungskosten: | AE113: =I40*AF113 -> 0.00 € | AF113: =Grunddaten!H93/100 -> 60.00%
AB114: =IF(AB113=FALSE,FALSE,IF(AND(Daten!$J$134="",Daten!$L$18=FALSE),FALSE,TRUE)) -> FALSE | AD114: … umlagefähig p. a.: | AE114: =AE113*IF(OR(Daten!$L$14=TRUE,Daten!$L$15=TRUE,Daten!$L$16=TRUE,Daten!$L$17=TRUE),8%,11%) -> 0.00 € | AF114: =IF(AE114=0,0,MIN(AE114/K19/12,IF(OR(Daten!$L$14=TRUE,Daten!$L$15=TRUE,Daten!$L$16=TRUE,Daten!$L$17=TRUE),2,3/1.95583))) -> 0.00 €
AB115: TRUE
L116: =IF(O116<>"","Hinweis:","") ->  | O116: =IF(Grunddaten!$T$98>0,"Die Grunddaten der Richtlinien wurden in mindestens einem Punkt manuell angepasst. Die Berechnung entspricht nicht mehr den grundsätzlichen Regelungen der geltenden Richtlinie.",IF(Daten!J101<>"",Daten!J101,"")) ->  | AB116: TRUE | AD116: Nebenrechnung: EK-Verzinsung
D117: =TODAY() -> 2026-04-07 | L117: =IF(O116<>"","i","") ->  | AB117: TRUE
D118: Datum / Unterschrift | AB118: TRUE | AD118: EK-Verzinsung: | AE118: =V82 -> 0.00 € | AF118: =IF(AE118>0,TRUE,FALSE) -> FALSE
AB119: TRUE | AD119: Unterdeckung: | AE119: =MIN(0,V94) -> 0.00 € | AF119: =IF(AE119<0,TRUE,FALSE) -> FALSE
C120: =C6 -> Version: 26.02 | H120: Förderrechner - Erläuterungen | AB120: =IF(Daten!$G$60=TRUE,TRUE,FALSE) -> FALSE | AD120: Differenz: | AE120: =AE118+AE119 -> 0.00 € | AF120: =IF(AE120>0,TRUE,FALSE) -> FALSE
C121: =C7 -> 2026-03-23 | AB121: =$AB$120 -> FALSE | AD121: Anzeige Schaltfläche? | AF121: =IF(AND(V78<>"",V78=0),FALSE,IF(OR(V78<>"",V94<0),TRUE,FALSE)) -> FALSE
C122: Erläuterungen | AB122: FALSE
D123: =IF(AND(Daten!C4=FALSE,Daten!G60=FALSE),"",UPPER("Zusätzliche Erläuterungen zur Berechnung (Kürzung) des Förderdarlehens"&IF(AND(Daten!$L$16=TRUE,D62<>"")," I",""))) ->  | AB123: FALSE | AD123: Nebenrechnung: Wohneinheiten
AB124: FALSE
D125: =IF(AND(Daten!$C$4=FALSE,Daten!$G$60=FALSE),"","Das grundsätzlich mögliche Förderdarlehen von "&TEXT(Daten!$B$64,"#.##0,00")&" € / m² ("&TEXT(Daten!$D$61,"#.##0,00")&" €) wurde aufgrund des Vergleichs der jährlichen Deckungsbeiträge (vor Beginn der Maßnahme und hinterher) um "&TEXT(Daten!$B$64-Daten!$D$56,"#.##0,00")&" € / m² auf "&TEXT(Daten!$D$56,"#.##0,00")&" € / m² ("&TEXT(Daten!D47,"#.##0,00")&" €) gekürzt."&" Die Ermittlung der Kürzung stellt sich wie folgt dar:") ->  | AB125: FALSE | AD125: Ist | AE125: Minimum | AF125: Soll
AB126: FALSE | AD126: 1. EK-Grenze
AB127: FALSE | AD127: =J27 -> 0 | AE127: =AF127 -> 0 | AF127: =Daten!C91 -> 0
AB128: FALSE | AD128: 2. EK-Grenze
AB129: FALSE | AD129: =J28 -> 0 | AE129: =MIN(AF129,MAX(0,AF127+AF129-AD127)) -> 0 | AF129: =Daten!C92 -> 0
D130: =IF(AND(Daten!C4=FALSE,Daten!G60=FALSE),"","Darstellung der Objektwirtschaftlichkeit bei maximal möglicher Förderung") ->  | AB130: FALSE | AD130: =IF(Daten!$L$17=TRUE,"3. EK-Grenze","Freie WE") -> Freie WE
AB131: FALSE | AD131: =J29 -> 0 | AE131: =MAX(0,MIN(AF131,MAX(0,AF127+AF129+AF131-AD127-AD129))) -> 0 | AF131: =Daten!C93 -> 0
D132: =IF(AND(Daten!C4=FALSE,Daten!G60=FALSE),"","Mieteinnahmen p. a.:") ->  | O132: =IF(AND(Daten!$C$4=FALSE,Daten!$G$60=FALSE),"",Daten!$G$38) ->  | S132: =IF(AND(Daten!C4=FALSE,Daten!G60=FALSE),"","Vergleich") ->  | AB132: FALSE | AD132: Gesamt
S133: =IF(OR(AB86=FALSE,AND(Daten!C4=FALSE,Daten!G60=FALSE)),"","Jährlicher Deckungsbeitrag vor Beginn der Maßnahme:"&CHAR(10)&TEXT(IF(AND(Daten!$M$3=TRUE,$U$87="Ja"),AF108,V88),"#.##0,00")&" EUR"&CHAR(10)&CHAR(10)&"Abzgl. pauschaler Bewirtschaftungskosten:"&CHAR(10)&TEXT(SUM(V69:X72),"#.##0,00")&" EUR") ->  | AB133: FALSE | AD133: =AD127+AD129+AD131 -> 0 | AE133: =AF133 -> 0 | AF133: =IF(AF139=FALSE,K18,AF127+AF129+AF131) -> 0
D134: =IF(AND(Daten!C4=FALSE,Daten!G60=FALSE),"","./. abzgl. Kapitaldienst p. a. aus bereits bestehenden Finanzierungen:") ->  | O134: =IF(AND(Daten!$C$4=FALSE,Daten!$G$60=FALSE),"",Daten!$G$44) ->  | AB134: FALSE | AD134: Prüfungen
AB135: FALSE | AD135: =AD126 -> 1. EK-Grenze | AE135: =AD128 -> 2. EK-Grenze | AF135: =AD130 -> Freie WE
D136: =IF(AND(Daten!C4=FALSE,Daten!G60=FALSE),"","./. abzgl. Kapitaldienst p. a. neu (bei voller Förderung i. H. v. "&TEXT(Daten!$D$61,"#.##0,00")&" €):") ->  | O136: =IF(AND(Daten!$C$4=FALSE,Daten!$G$60=FALSE),"",SUM(Daten!$G$61:$G$63)) ->  | AB136: FALSE | AD136: =IF(AND(AD127>=AF127,AE127>=0),TRUE,FALSE) -> TRUE | AE136: =IF(AND(AE129=0,OR(J28=0,J28="")),TRUE,IF(AND(AD127+AD129>=AF127+AF129,AE129>=0),TRUE,FALSE)) -> TRUE | AF136: =IF(OR(AF139=FALSE,AND(AD133=AF133,AE131>=0)),TRUE,FALSE) -> TRUE
AB137: FALSE | AD137: =IF(OR($K$17="",$K$18="",$K$19=""),"",TEXT(AE127,"#.##0")&" WE") ->  | AE137: =IF(OR($K$17="",$K$18="",$K$19=""),"",TEXT(AE129,"#.##0")&" WE") ->  | AF137: =IF(OR($K$17="",$K$18="",$K$19=""),"",TEXT(AE131,"#.##0")&" WE") -> 
D138: =IF(AND(Daten!C4=FALSE,Daten!G60=FALSE),"","./. abzgl. Eigenkapitalverzinsung p. a.:") ->  | O138: =IF(AND(Daten!$C$4=FALSE,Daten!$G$60=FALSE),"",Daten!$G$48) ->  | AB138: FALSE | AD138: =IF(AND(AF139=TRUE,AF133>AD133),IF(AF133-AD133=1,"… es fehlt 1 WE!","… es fehlen "&TEXT(AF133-AD133,"#.##")&" WE!"),IF(AD133>AF133,IF(AD133-AF133=1," … es ist 1 WE zuviel!","… es sind "&TEXT(AD133-AF133,"#.##")&" WE zuviel!"),"")) -> 
S139: =IF(AND(Daten!C4=FALSE,Daten!G60=FALSE),"","ò") ->  | AB139: FALSE | AD139: Erfüllung Bindungsquoten für WE: | AF139: =IF(OR(Daten!$M$4=TRUE,AND(Daten!$M$3=TRUE,Grunddaten!$H$72=TRUE)),TRUE,FALSE) -> TRUE
D140: =IF(AND(Daten!C4=FALSE,Daten!G60=FALSE),"","./. abzgl. pauschale Bewirtschaftungskosten p. a.:") ->  | O140: =IF(AND(Daten!C4=FALSE,Daten!G60=FALSE),"",SUM(V69:X71)) ->  | AB140: FALSE | AD140: Gesamtbindung | AE140: 4 | AF140: =K19*Daten!D87% -> 0.00 m²
AB141: FALSE | AD141: Nebenrechnung: Wohnflächen
D142: =IF(AND(Daten!C4=FALSE,Daten!G60=FALSE),"","= Jährlicher Deckungsbeitrag (bei voller Förderung):") ->  | O142: =IF(AND(Daten!C4=FALSE,Daten!G60=FALSE),"",O132-SUM(O134,O136,O138,O140)) ->  | R142: =IF(O142="","","NEU") ->  | S142: =IF(AND(Daten!$C$4=FALSE,Daten!$G$60=FALSE),"",IF(AB86=FALSE,0,IF(AND(Daten!$M$3=TRUE,$U$87="Ja"),AF108,V88)-SUM(V69:X71))) ->  | W142: =IF(S142="","","ALT") ->  | AB142: FALSE
AB143: FALSE | AD143: Ist | AE143: Minimum | AF143: Soll
D144: =IF(AND(Daten!C4=FALSE,Daten!G60=FALSE),"","∆ Differenz jährlicher Deckungsbeitrag ALT zu NEU (≙ monatlicher Kürzungsbetrag):") ->  | O144: =IF(AND(Daten!C4=FALSE,Daten!G60=FALSE),"",IF(AB86=FALSE,0,O142-S142)) ->  | AB144: FALSE | AD144: 1. EK-Grenze
AB145: FALSE | AD145: =L27 -> 0.00 m² | AE145: =AF145 -> 0.00 m² | AF145: =ROUND(Daten!D91,2) -> 0.00 m²
AB146: FALSE | AD146: 2. EK-Grenze
D147: =IF(AND(Daten!$C$4=FALSE,Daten!$G$60=FALSE),"",IF(AND(V89<V94,O144<0),"Der jährliche Deckungsbeitrag nach Maßnahmedurchführung ("&TEXT(V94,"#.##0,00")&" €) ist bereits ohne Nutzung eines Förderdarlehens größer, als der Deckungsbeitrag vor Beginn der Maßnahme ("&TEXT(V89,"#.##0,00")&" €). Damit kann kein leider kein entsprechendes Förderdarlehen gewährt werden.","Der jährliche Deckungsbeitrag nach der Förderung ("&TEXT(O142,"#.##0,00")&" €) muss um ca. "&TEXT(O142-S142,"#.##0,00")&" € reduziert werden, damit sich die Objektwirtschaftlichkeit nach Abschluss der Maßnahme nicht besser darstellt, als vorher ("&TEXT(S142,"#.##0,00")&" €)."&" Erreicht wird dies durch die Erhöhung der Kapitalkosten zu Lasten der Förderung (Reduzierung Förderdarlehen und Erhöhung "&CHAR(34)&"Notwendige Restfinanzierung"&CHAR(34)&").")) ->  | AB147: FALSE | AD147: =L28 -> 0.00 m² | AE147: =MIN(AF147,MAX(0,AF145+AF147-AD145)) -> 0.00 m² | AF147: =ROUND(Daten!D92,2) -> 0.00 m²
AB148: FALSE | AD148: =IF(Daten!$D$143=3,"3. EK-Grenze","Freie WE") -> 3. EK-Grenze
AB149: FALSE | AD149: =L29 -> 0.00 m² | AE149: =MIN(AF149,MAX(0,AF145+AF147+AF149-AD145-AD147)) -> 0.00 m² | AF149: =ROUND(Daten!D93,2) -> 0.00 m²
AB150: FALSE | AD150: Gesamt
AB151: FALSE | AD151: =AD145+AD147+AD149 -> 0.00 m² | AE151: =AF151 -> 0.00 m² | AF151: =AF145+AF147+AF149 -> 0.00 m²
D152: =IF(AND(Daten!C4=FALSE,Daten!G60=FALSE),"","Darstellung der Objektwirtschaftlichkeit bei reduzierter Förderung") ->  | AB152: FALSE | AD152: Prüfungen
AB153: FALSE | AD153: =AD144 -> 1. EK-Grenze | AE153: =AD146 -> 2. EK-Grenze | AF153: =AD148 -> 3. EK-Grenze
D154: =IF(AND(Daten!C4=FALSE,Daten!G60=FALSE),"","Mieteinnahmen p. a.:") ->  | O154: =IF(AND(Daten!C4=FALSE,Daten!G60=FALSE),"",Daten!G38) ->  | S154: =IF(AND(Daten!C4=FALSE,Daten!G60=FALSE),"","Vergleich") ->  | AB154: FALSE | AD154: =IF(AND(AD145>=AF145,AE127>=0),TRUE,FALSE) -> TRUE | AE154: =IF(AND(AE147=0,OR(L28=0,L28="")),TRUE,IF(AND(AD145+AD147>=AF145+AF147,AE129>=0),TRUE,FALSE)) -> TRUE | AF154: =IF(AND(AD151=AF151,AE131>=0),TRUE,FALSE) -> TRUE
S155: =IF(OR(AB86=FALSE,AND(Daten!C4=FALSE,Daten!G60=FALSE)),"","Jährlicher Deckungsbeitrag vor Beginn der Maßnahme:"&CHAR(10)&TEXT(IF(AND(Daten!$M$3=TRUE,$U$87="Ja"),AF108,V88),"#.##0,00")&" EUR"&CHAR(10)&CHAR(10)&"Abzgl. pauschaler Bewirtschaftungskosten "&CHAR(10)&TEXT(SUM(V69:X72),"#.##0,00")&" EUR") ->  | AB155: FALSE | AD155: =IF(OR($K$17="",$K$18="",$K$19=""),"",TEXT(AE145,"#.##0,00")&" m²") ->  | AE155: =IF(OR($K$17="",$K$18="",$K$19=""),"",TEXT(AE147,"#.##0,00")&" m²") ->  | AF155: =IF(OR($K$17="",$K$18="",$K$19=""),"",TEXT(AE149,"#.##0,00")&" m²") -> 
D156: =IF(AND(Daten!C4=FALSE,Daten!G60=FALSE),"","./. abzgl. Kapitaldienst p. a. aus bereits bestehenden Finanzierungen:") ->  | O156: =IF(AND(Daten!C4=FALSE,Daten!G60=FALSE),"",Daten!G44) ->  | AB156: FALSE | AD156: =IF(AF151>AD151,"… es fehlen "&TEXT(AF151-AD151,"#.##0,00")&" m²!",IF(AD151>AF151,"… es sind "&TEXT(AD151-AF151,"#.##0,00")&" m² zuviel!","")) -> 
AB157: FALSE
D158: =IF(AND(Daten!C4=FALSE,Daten!G60=FALSE),"","./. abzgl. Kapitaldienst p. a. neu (nach Kürzung der Förderung auf "&TEXT(Daten!D47,"#.##0,00")&" €):") ->  | O158: =IF(AND(Daten!C4=FALSE,Daten!G60=FALSE),"",SUM(V61:X65)) ->  | AB158: FALSE
AB159: FALSE | AD159: Nebenrechnung: Absenkung Tilgungssatz Baudarlehen
D160: =IF(AND(Daten!C4=FALSE,Daten!G60=FALSE),"","./. abzgl. Eigenkapitalverzinsung p. a.:") ->  | O160: =IF(AND(Daten!C4=FALSE,Daten!G60=FALSE),"",V80+V81) ->  | AB160: FALSE
S161: =IF(AND(Daten!C4=FALSE,Daten!G60=FALSE),"","ò") ->  | AB161: FALSE | AD161: Eigenkapitalzinsbasis: | AE161: =V78 -> 0.00 € | AF161: =IF(AE161=0,TRUE,FALSE) -> TRUE
D162: =IF(AND(Daten!C4=FALSE,Daten!G60=FALSE),"","./. abzgl. pauschale Bewirtschaftungskosten p. a.:") ->  | O162: =IF(AND(Daten!C4=FALSE,Daten!G60=FALSE),"",SUM(V69:X71)) ->  | AB162: FALSE | AD162: Jahresüberschuss: | AE162: =V94 -> 0.00 € | AF162: =IF(AE162>0,FALSE,TRUE) -> TRUE
AB163: FALSE | AD163: Spielraum Tilgungssatz: | AE163: =S61%-Grunddaten!$H$58% -> 0.00000000% | AF163: =IF(AE163>0,TRUE,FALSE) -> FALSE
D164: =IF(AND(Daten!C4=FALSE,Daten!G60=FALSE),"","= Jährlicher Deckungsbeitrag (bei reduzierter Förderung):") ->  | O164: =IF(AND(Daten!C4=FALSE,Daten!G60=FALSE),"",O154-SUM(O156,O158,O160,O162)) ->  | R164: =IF(O164="","","NEU") ->  | S164: =IF(AND(Daten!C4=FALSE,Daten!G60=FALSE),"",IF(AB86=FALSE,0,IF(AND(Daten!$M$3=TRUE,$U$87="Ja"),AF108,V88)-SUM(V69:X71))) ->  | W164: =IF(S164="","","ALT") ->  | AB164: FALSE | AD164: Absenkung Tilgungssatz: | AE164: =IF(OR(SUM(L61:P62)=0,AE163=0),0,MIN(AE163,ABS((AE162/SUM(L61:P62))))) -> 0.00000000% | AF164: =IF(AE164>0,TRUE,FALSE) -> FALSE
AB165: FALSE | AD165: Finaler Tilgungssatz: | AE165: =ROUND(S61%-AE164,6) -> 2.00000000% | AF165: =IF(AND(COUNTIF(AF161:AF164,TRUE)=4,S61/100<>AE165),TRUE,FALSE) -> FALSE
D166: =IF(AND(Daten!C4=FALSE,Daten!G60=FALSE),"","∆ Differenz jährlicher Deckungsbeitrag alt zu neu (nach reduzierter Förderung):") ->  | O166: =IF(AND(Daten!C4=FALSE,Daten!G60=FALSE),"",IF(AB86=FALSE,0,ROUND(O164,2)-ROUND(S164,2))) ->  | AB166: FALSE
AB167: FALSE
AB168: TRUE

Sheet Grunddaten (hidden)
B1: Daten gesichert: | D1: TRUE | E1: Bewirtschaftungskosten: | G1: FALSE | H1: Grunddaten: | I1: FALSE | K1: FALSE
B2: - | C2: - | D2: - | E2: - | F2: - | G2: - | H2: - | I2: - | K2: FALSE
B3: - | C3: - | D3: - | E3: - | F3: - | G3: - | H3: - | I3: - | K3: FALSE
K4: TRUE
B5: =Programmversionen!B5 -> 2026-03-23 | D5: Grunddaten MWB-Förderrechner | H5: =Programmversionen!J5 -> Version: 26.02 | K5: TRUE
K6: TRUE
K7: TRUE
K8: TRUE
D9: Bewirtschaftungskosten | K9: TRUE
B10: Gültig ab | C10: Instandhaltungs- kosten pro m² Wfl. p. a. | D10: Erhöhung bei Aufzug pro m² Wfl. p. a. | E10: Instandhaltungs- kosten pro Garage p. a. | F10: Verwaltungs- kosten pro Wohneinheit p. a. | G10: Verwaltungs- kosten pro Garage p. a. | H10: Mietausfallwagnis (Wohnraum) | I10: Leerstandkosten pro m² Wfl. P. a. | K10: TRUE
B11: 2014-01-01 | C11: 8.62 € | D11: 1.22 € | E11: 82.60 € | F11: 279.35 € | G11: 36.43 € | H11: 2.0000 % | I11: 1.00 € | K11: =IF(B11="",FALSE,TRUE) -> TRUE | M11: =IF(AND(B11<>"",B11<=Daten!$O$5,OR(B12="",B12>Daten!$O$5)),TRUE,FALSE) -> FALSE
B12: 2017-01-01 | C12: 8.78 € | D12: 1.24 € | E12: 84.16 € | F12: 284.63 € | G12: 37.12 € | H12: 2.0000 % | I12: 1.00 € | K12: TRUE | M12: =IF(AND(B12<>"",B12<=Daten!$O$5,OR(B13="",B13>Daten!$O$5)),TRUE,FALSE) -> FALSE
B13: 2020-01-01 | C13: 9.21 € | D13: 1.30 € | E13: 88.23 € | F13: 298.41 € | G13: 38.92 € | H13: 2.0000 % | I13: 1.00 € | K13: TRUE | M13: =IF(AND(B13<>"",B13<=Daten!$O$5,OR(B14="",B14>Daten!$O$5)),TRUE,FALSE) -> FALSE
B14: 2023-01-01 | C14: 10.61 € | D14: 1.50 € | E14: 101.62 € | F14: 343.69 € | G14: 44.83 € | H14: 2.0000 % | I14: 1.00 € | K14: TRUE | M14: =IF(AND(B14<>"",B14<=Daten!$O$5,OR(B15="",B15>Daten!$O$5)),TRUE,FALSE) -> FALSE
B15: 2026-01-01 | C15: 11.50 € | D15: 1.63 € | E15: 110.13 € | F15: 372.46 € | G15: 48.58 € | H15: 2.0000 % | I15: 1.00 € | K15: TRUE | M15: =IF(AND(B15<>"",B15<=Daten!$O$5,OR(B16="",B16>Daten!$O$5)),TRUE,FALSE) -> TRUE
K16: FALSE | M16: =IF(AND(B16<>"",B16<=Daten!$O$5,OR(B17="",B17>Daten!$O$5)),TRUE,FALSE) -> FALSE
K17: FALSE | M17: =IF(AND(B17<>"",B17<=Daten!$O$5,OR(B18="",B18>Daten!$O$5)),TRUE,FALSE) -> FALSE
K18: FALSE | M18: =IF(AND(B18<>"",B18<=Daten!$O$5,OR(B19="",B19>Daten!$O$5)),TRUE,FALSE) -> FALSE
K19: FALSE | M19: =IF(AND(B19<>"",B19<=Daten!$O$5,OR(B20="",B20>Daten!$O$5)),TRUE,FALSE) -> FALSE
K20: FALSE | M20: =IF(AND(B20<>"",B20<=Daten!$O$5,OR(B21="",B21>Daten!$O$5)),TRUE,FALSE) -> FALSE
K21: FALSE | M21: =IF(AND(B21<>"",B21<=Daten!$O$5,OR(B22="",B22>Daten!$O$5)),TRUE,FALSE) -> FALSE
K22: FALSE | M22: =IF(AND(B22<>"",B22<=Daten!$O$5,OR(B23="",B23>Daten!$O$5)),TRUE,FALSE) -> FALSE
K23: FALSE | M23: =IF(AND(B23<>"",B23<=Daten!$O$5,OR(B24="",B24>Daten!$O$5)),TRUE,FALSE) -> FALSE
K24: FALSE | M24: =IF(AND(B24<>"",B24<=Daten!$O$5,OR(B25="",B25>Daten!$O$5)),TRUE,FALSE) -> FALSE
K25: FALSE | M25: =IF(AND(B25<>"",B25<=Daten!$O$5,OR(B26="",B26>Daten!$O$5)),TRUE,FALSE) -> FALSE
K26: FALSE | M26: =IF(AND(B26<>"",B26<=Daten!$O$5,OR(B27="",B27>Daten!$O$5)),TRUE,FALSE) -> FALSE
K27: FALSE | M27: =IF(AND(B27<>"",B27<=Daten!$O$5,OR(B28="",B28>Daten!$O$5)),TRUE,FALSE) -> FALSE
K28: FALSE | M28: =IF(AND(B28<>"",B28<=Daten!$O$5,OR(B29="",B29>Daten!$O$5)),TRUE,FALSE) -> FALSE
K29: FALSE | M29: =IF(AND(B29<>"",B29<=Daten!$O$5,OR(B30="",B30>Daten!$O$5)),TRUE,FALSE) -> FALSE
K30: FALSE | M30: =IF(AND(B30<>"",B30<=Daten!$O$5,OR(B31="",B31>Daten!$O$5)),TRUE,FALSE) -> FALSE
K31: FALSE | M31: =IF(AND(B31<>"",B31<=Daten!$O$5,OR(B32="",B32>Daten!$O$5)),TRUE,FALSE) -> FALSE
K32: FALSE | M32: =IF(AND(B32<>"",B32<=Daten!$O$5,OR(B33="",B33>Daten!$O$5)),TRUE,FALSE) -> FALSE
K33: FALSE | M33: =IF(AND(B33<>"",B33<=Daten!$O$5,OR(B34="",B34>Daten!$O$5)),TRUE,FALSE) -> FALSE
K34: FALSE | M34: =IF(AND(B34<>"",B34<=Daten!$O$5,OR(B35="",B35>Daten!$O$5)),TRUE,FALSE) -> FALSE
K35: FALSE | M35: =IF(AND(B35<>"",B35<=Daten!$O$5,OR(B36="",B36>Daten!$O$5)),TRUE,FALSE) -> FALSE
K36: TRUE
K37: TRUE
C38: ="Richtlinienkennzahlen / Grunddaten" -> Richtlinienkennzahlen / Grunddaten | K38: TRUE | M38: Prüfung auf Änderungen der Richtlinienkennzahlen
C39: =IF(Daten!$L$16=FALSE,"Förderhöhen","Förderhöhen (Maßnahme)") -> Förderhöhen | K39: TRUE | M39: Förderhöhen (Maßnahme) | Q39: Antrag | R39: Richtlinie | S39: Abweichung? | T39: Hinweis? | U39: Freigabe MA?
C40: ="Darlehenskappung bei Überschreitung der Höchstförderung (bei Nutzung "&CHAR(34)&IF(Daten!$L$16=TRUE,"Klimabaustein","Verlängerung Bindung")&CHAR(34)&")" -> Darlehenskappung bei Überschreitung der Höchstförderung (bei Nutzung "Verlängerung Bindung") | H40: =R40 -> TRUE | K40: =IF(OR(Daten!$L$16=TRUE,Daten!$L$17=TRUE),TRUE,FALSE) -> FALSE | M40: =C40 -> Darlehenskappung bei Überschreitung der Höchstförderung (bei Nutzung "Verlängerung Bindung") | Q40: TRUE | R40: =IF(AND(Daten!$L$16=TRUE,OR(Daten!$M$3=TRUE,Daten!$M$79=TRUE)),FALSE,TRUE) -> TRUE | S40: =IF(AND(Q40=TRUE,H40<>R40),1,0) -> 0 | T40: =IF(AND(Daten!$M$75=TRUE,S40>0,Daten!$D$56>R40),TRUE,FALSE) -> FALSE | U40: TRUE
C41: Höchstförderung Darlehen - Neubau, Umnutzung ohne Zuschuss | H41: =R41 -> 2,200.00 € | I41: =IF(S41=1,"i","") ->  | K41: =IF(OR(Daten!$L$18=TRUE),FALSE,TRUE) -> FALSE | M41: Höchstförderung Darlehen - Neubau, Umnutzung ohne Zuschuss | Q41: =IF(OR(Daten!M75=TRUE,Daten!M77=TRUE),TRUE,FALSE) -> TRUE | R41: =Daten!$O$55 -> 2,200.00 € | S41: =IF(AND(Q41=TRUE,H41<>R41),1,0) -> 0 | T41: =IF(AND(Daten!$M$75=TRUE,S41>0,Daten!$D$56>R41),TRUE,FALSE) -> FALSE | U41: FALSE
C42: =IF(Daten!$L$18=TRUE,"Höchstförderung Darlehen - Neubau, Umnutzung","Höchstförderung Darlehen - Neubau, Umnutzung mit Zuschuss") -> Höchstförderung Darlehen - Neubau, Umnutzung | H42: =R42 -> 2,200.00 € | I42: =IF(S42=1,"i","") ->  | K42: TRUE | M42: Höchstförderung Darlehen - Neubau, Umnutzung | Q42: =IF(OR(Daten!M76=TRUE,Daten!M78=TRUE),TRUE,FALSE) -> FALSE | R42: =Daten!$O$57 -> 2,200.00 € | S42: =IF(AND(Q42=TRUE,H42<>R42),1,0) -> 0 | T42: =IF(AND(Daten!$M$76=TRUE,S42>0,Daten!$D$56>R42),TRUE,FALSE) -> FALSE | U42: FALSE
C43: Höchstförderung Darlehen - ModInst | H43: =R43 -> 2,000.00 € | I43: =IF(S43=1,"i","") ->  | K43: TRUE | M43: Höchstförderung Darlehen - ModInst | Q43: =IF(Daten!M79=TRUE,TRUE,FALSE) -> FALSE | R43: =Daten!$O$59 -> 2,000.00 € | S43: =IF(AND(Q43=TRUE,H43<>R43),1,0) -> 0 | T43: =IF(AND(Daten!$M$79=TRUE,S43>0,Daten!$D$56>R43),TRUE,FALSE) -> FALSE | U43: FALSE
C44: =IF(Daten!$L$16=TRUE,"Höchstförderung Zuschuss + Darlehen Aufzug","Höchstförderung Darlehen - Aufzug (nur informativ)") -> Höchstförderung Darlehen - Aufzug (nur informativ) | H44: =R44 -> 25,000.00 € | K44: =NOT(Daten!$L$16) -> TRUE | M44: Höchstförderung Darlehen - Aufzug (nur informativ) | Q44: =IF(Daten!L16=FALSE,TRUE,FALSE) -> TRUE | R44: 25,000.00 € | S44: 0 | T44: =IF(AND(Daten!$L$16=FALSE,S44>0),TRUE,FALSE) -> FALSE | U44: FALSE
C45: =IF(Daten!$L$18=TRUE,"Höchstförderung Zuschuss - Baukosten","Höchstförderung Zuschuss - Grundförderung (Neubau / Umnutzung)") -> Höchstförderung Zuschuss - Baukosten | H45: =R45 -> 500.00 € | K45: =Daten!$L$18 -> TRUE | M45: Höchstförderung Zuschuss - Baukosten | Q45: =IF(Daten!$L$17=TRUE,TRUE,FALSE) -> FALSE | R45: =Daten!D134 -> 500.00 € | S45: =IF(AND(Q45=TRUE,H45<>R45),1,0) -> 0 | T45: =IF(S45>0,TRUE,FALSE) -> FALSE | U45: FALSE
C46: Höchstförderung Zuschuss - Grundförderung (ModInst) | H46: =R46 -> 500.00 € | K46: =Daten!$L$17 -> FALSE | M46: Höchstförderung Zuschuss - Grundförderung (ModInst) | Q46: =IF(Daten!$L$17=TRUE,TRUE,FALSE) -> FALSE | R46: =Daten!D135 -> 500.00 € | S46: =IF(AND(Q46=TRUE,H46<>R46),1,0) -> 0 | T46: =IF(S46>0,TRUE,FALSE) -> FALSE | U46: FALSE
C47: Höchstförderung Zuschuss - Verlängerung Belegungsbindung | H47: =R47 -> 0.00 € | K47: =IF(OR(Daten!$L$17=TRUE),TRUE,FALSE) -> FALSE | M47: Höchstförderung Zuschuss - Verlängerung Belegungsbindung | Q47: =Q42 -> FALSE | R47: =Daten!$O$61 -> 0.00 € | S47: 0 | T47: =IF(AND(OR(Daten!$M$76=TRUE,Daten!$M$78=TRUE,Daten!$M$80=TRUE),S47>0,Daten!$G$74>R47),TRUE,FALSE) -> FALSE | U47: FALSE
C48: Maximale Überdeckung p. a. (nur Neubau und Umnutzung) | H48: =R48 -> 120.00 € | K48: TRUE | M48: Maximale Überdeckung p. a. (nur Neubau und Umnutzung) | Q48: =IF(OR(Q41=TRUE,Q42=TRUE),TRUE,FALSE) -> TRUE | R48: 120.00 € | S48: 0 | T48: =IF(OR(Daten!$M$79=TRUE,Daten!$M$81=TRUE),FALSE,IF(S48>0,TRUE,FALSE)) -> FALSE | U48: FALSE
C49: Förderhöhen (Aufzug) | K49: =IF(Daten!$L$16=TRUE,TRUE,FALSE) -> FALSE | M49: Förderhöhen (Aufzug)
C50: Zuschuss für mit Aufzug NICHT barrierefrei erreichbare Wohneinheiten | H50: =R50 -> 5,000.00 € | I50: =IF(S50=1,"i","") ->  | K50: =K49 -> FALSE | M50: Zuschuss für NICHT barrierefrei erreichbare Wohneinheiten | Q50: =IF(AND(OR(Daten!$L$16=TRUE,Daten!$L$17=TRUE),Daten!$H$77=TRUE),TRUE,FALSE) -> FALSE | R50: 5,000.00 € | S50: =IF(AND(Q50=TRUE,H50<>R50),1,0) -> 0 | T50: =IF(AND(Daten!$H$77=TRUE,Daten!$H$98>0,S50>0,H50>R50),TRUE,FALSE) -> FALSE | U50: FALSE
C51: Darlehen für mit Aufzug NICHT barrierefrei erreichbare Wohneinheiten | H51: =R51 -> 20,000.00 € | I51: =IF(S51=1,"i","") ->  | K51: =K50 -> FALSE | M51: Darlehen für NICHT barrierefrei erreichbare Wohneinheiten | Q51: =$Q$50 -> FALSE | R51: 20,000.00 € | S51: =IF(AND(Q51=TRUE,H51<>R51),1,0) -> 0 | T51: =IF(AND(Daten!$H$77=TRUE,Daten!$H$98>0,S51>0,H51>R51),TRUE,FALSE) -> FALSE | U51: FALSE
C52: Zuschuss für mit Aufzug barrierefrei erreichbare Wohneinheiten | H52: =R52 -> 10,000.00 € | I52: =IF(S52=1,"i","") ->  | K52: =K51 -> FALSE | M52: Zuschuss für barrierefrei erreichbare Wohneinheiten | Q52: =$Q$50 -> FALSE | R52: 10,000.00 € | S52: =IF(AND(Q52=TRUE,H52<>R52),1,0) -> 0 | T52: =IF(AND(Daten!$H$77=TRUE,Daten!$H$94>0,S52>0,H52>R52),TRUE,FALSE) -> FALSE | U52: FALSE
C53: Darlehen für mit Aufzug barrierefrei erreichbare Wohneinheiten | H53: =R53 -> 15,000.00 € | I53: =IF(S53=1,"i","") ->  | K53: =K52 -> FALSE | M53: Darlehen für barrierefrei erreichbare Wohneinheiten | Q53: =$Q$50 -> FALSE | R53: 15,000.00 € | S53: =IF(AND(Q53=TRUE,H53<>R53),1,0) -> 0 | T53: =IF(AND(Daten!$H$77=TRUE,Daten!$H$94>0,S53>0,H53>R53),TRUE,FALSE) -> FALSE | U53: FALSE
C54: Förderhöhen (Klimabaustein) | K54: =IF(Daten!$L$16=TRUE,TRUE,FALSE) -> FALSE | M54: =C54 -> Förderhöhen (Klimabaustein)
C55: Zuschuss pro m² für Wohnfläche mit erreichten Standard | H55: =R55 -> 300.00 € | I55: =IF(S55=1,"i","") ->  | K55: =K54 -> FALSE | M55: =C55 -> Zuschuss pro m² für Wohnfläche mit erreichten Standard | Q55: =IF(Daten!$L$16=TRUE,TRUE,FALSE) -> FALSE | R55: 300.00 € | S55: =IF(AND(Q55=TRUE,H55<>R55),1,0) -> 0 | T55: =IF(S55>0,TRUE,FALSE) -> FALSE | U55: FALSE
C56: Konditionen Förderdarlehen | K56: TRUE | M56: Konditionen Förderdarlehen
C57: Zinssatz bzw. LVKB Förderdarlehen | H57: =R57 -> 0.5000 % | I57: =IF(S57=1,"i","") ->  | K57: TRUE | M57: Zinssatz bzw. LVKB Förderdarlehen | Q57: TRUE | R57: 0.5000 % | S57: =IF(AND(Q57=TRUE,H57<>R57),1,0) -> 0 | T57: =IF(S57>0,TRUE,FALSE) -> FALSE | U57: TRUE
C58: Mindesttilgungssatz Förderdarlehen | H58: =R58 -> 2.0000 % | I58: =IF(S58=1,"i","") ->  | K58: TRUE | M58: Tilgungssatz Förderdarlehen | Q58: TRUE | R58: 2.0000 % | S58: =IF(AND(Q58=TRUE,H58<>R58),1,0) -> 0 | T58: =IF(AND(S58>0,Berechnung!S61<R58),TRUE,FALSE) -> FALSE | U58: TRUE
C59: Maximale zulässige Annuität bei (deutlich) erhöhtem Einsatz von Eigenmitteln | H59: =R59 -> 5.0000 % | K59: TRUE | M59: Maximale zulässige Annuität bei (deutlich) erhöhtem Einsatz von Eigenmitteln | Q59: TRUE | R59: 5.0000 % | S59: =IF(AND(Q59=TRUE,H59<>R59),1,0) -> 0 | T59: =IF(AND(S59>0,Berechnung!S62<R59),TRUE,FALSE) -> FALSE | U59: TRUE
C60: Eigenleistungen | K60: TRUE | M60: Eigenleistungen
C61: Mindesteigenleistungen Neubau / Umnutzung | H61: =R61 -> 20.0000 % | I61: =IF(S61=1,"i","") ->  | K61: TRUE | M61: =C61 -> Mindesteigenleistungen Neubau / Umnutzung | Q61: =IF(OR(Q41=TRUE,Q42=TRUE),TRUE,FALSE) -> TRUE | R61: 20.0000 % | S61: =IF(AND(Q61=TRUE,H61<>R61),1,0) -> 0 | T61: =IF(AND(OR(Q41=TRUE,Q42=TRUE),S61>0,Berechnung!T44<R61),TRUE,FALSE) -> FALSE | U61: TRUE
C62: Mindesteigenleistungen Mod / Inst | H62: =R62 -> 15.0000 % | I62: =IF(S62=1,"i","") ->  | K62: TRUE | M62: =C62 -> Mindesteigenleistungen Mod / Inst | Q62: =$Q$43 -> FALSE | R62: 15.0000 % | S62: =IF(AND(Q62=TRUE,H62<>R62),1,0) -> 0 | T62: =IF(AND(Daten!$M$79=TRUE,S62>0),TRUE,FALSE) -> FALSE | U62: TRUE
C63: Mindesteigenleistungen Solo-Aufzug | H63: =R63 -> 15.0000 % | I63: =IF(S63=1,"i","") ->  | K63: =IF(OR(Daten!$L$16=TRUE,Daten!$L$17=TRUE,Daten!$L$18=TRUE),TRUE,FALSE) -> TRUE | M63: =C63 -> Mindesteigenleistungen Solo-Aufzug | Q63: =$Q$50 -> FALSE | R63: 15.0000 % | S63: =IF(AND(Q63=TRUE,H63<>R63),1,0) -> 0 | T63: =IF(AND(Daten!$M$81=TRUE,S63>0),TRUE,FALSE) -> FALSE | U63: TRUE
C64: Bindungsquoten | K64: TRUE | M64: =C64 -> Bindungsquoten
C65: Mindest-Bindungsquote | E65: Neubau sowie Umnutzung / Wiederherstellung | H65: =R65 -> 100.0000 % | I65: =IF(S65=1,"i","") ->  | K65: TRUE | M65: Mindest-Bindungsquote | O65: =E65 -> Neubau sowie Umnutzung / Wiederherstellung | Q65: =$Q$61 -> TRUE | R65: =Daten!$O$63 -> 100.00 % | S65: =IF(AND(Q65=TRUE,H65<>R65,H65<R65),1,0) -> 0 | T65: =IF(AND($T$48=TRUE,S65>0),TRUE,FALSE) -> FALSE | U65: TRUE
E66: Mod / Inst, wenn BV in Gemeinde gem. Anl. 2 der RL | H66: =R66 -> 100.0000 % | K66: TRUE | O66: =E66 -> Mod / Inst, wenn BV in Gemeinde gem. Anl. 2 der RL | Q66: =IF(AND($Q$43=TRUE,$Q$74=TRUE),TRUE,FALSE) -> FALSE | R66: =Daten!$O$63 -> 100.00 % | S66: =IF(AND(Q66=TRUE,H66<>R66,H66<R66),1,0) -> 0 | T66: =IF(AND($T$62=TRUE,S66>0),TRUE,FALSE) -> FALSE | U66: TRUE
E67: Mod / Inst, wenn BV in übriger Gemeinde | H67: =R67 -> 100.0000 % | I67: =IF(S67=1,"i","") ->  | K67: TRUE | O67: =E67 -> Mod / Inst, wenn BV in übriger Gemeinde | Q67: =IF(AND($Q$43=TRUE,$Q$77=TRUE),TRUE,FALSE) -> FALSE | R67: =Daten!$O$65 -> 100.00 % | S67: =IF(AND(Q67=TRUE,H67<>R67,H67<R67),1,0) -> 0 | T67: =IF(AND($T$62=TRUE,S67>0),TRUE,FALSE) -> FALSE | U67: TRUE
E68: Solo-Förderung Aufzüge | H68: =R68 -> 100.0000 % | K68: =Daten!$L$16 -> FALSE | O68: =E68 -> Solo-Förderung Aufzüge | Q68: =$Q$50 -> FALSE | R68: =Daten!$O$67 -> 100.00 % | S68: =IF(AND(Q68=TRUE,H68<>R68,H68<R68),1,0) -> 0 | T68: =IF(AND(Daten!$M$81=TRUE,S68>0),TRUE,FALSE) -> FALSE | U68: TRUE
C69: … davon 1. EK-Grenze (Minimum) | H69: =R69 -> 35.0000 % | K69: TRUE | M69: =C69 -> … davon 1. EK-Grenze (Minimum) | Q69: TRUE | R69: =Daten!$O$69 -> 35.00 % | S69: =IF(AND(Q69=TRUE,H69<>R69,H69<R69),1,0) -> 0 | T69: =IF(S69>0,TRUE,FALSE) -> FALSE | U69: TRUE
C70: … davon 2. EK-Grenze (Rest - abhängig von Bindungen in 1. EK-Grenze) | H70: =R70 -> 35.0000 % | K70: TRUE | M70: =C70 -> … davon 2. EK-Grenze (Rest - abhängig von Bindungen in 1. EK-Grenze) | Q70: TRUE | R70: =Daten!$O$70 -> 35.00 % | S70: =IF(AND(Q70=TRUE,H70<>R70),1,0) -> 0 | T70: =IF(S70>0,TRUE,FALSE) -> FALSE | U70: TRUE
C71: … davon 3. EK-Grenze (Rest - abhängig von Bindungen in 1. + 2. EK-Grenze) | H71: =R71 -> 30.0000 % | K71: =Q71 -> TRUE | M71: =C71 -> … davon 3. EK-Grenze (Rest - abhängig von Bindungen in 1. + 2. EK-Grenze) | Q71: =IF(OR(Daten!L17=TRUE,Daten!L18=TRUE),TRUE,FALSE) -> TRUE | R71: =Daten!$O$71 -> 30.00 % | S71: =IF(AND(Q71=TRUE,H71<>R71),1,0) -> 0 | T71: =IF(S71>0,TRUE,FALSE) -> FALSE | U71: TRUE
C72: Bindungsquoten müssen auch für die Anzahl der Wohneinheiten erfüllt werden | H72: =R72 -> TRUE | K72: TRUE | M72: Bindungsquoten müssen auch für die Anzahl der Wohneinheiten erfüllt werden | Q72: TRUE | R72: TRUE | S72: =IF(AND(Q72=TRUE,H72<>R72),1,0) -> 0 | T72: =IF(S72>0,TRUE,FALSE) -> FALSE | U72: TRUE
C73: Höchstmieten | K73: TRUE | M73: =C73 -> Höchstmieten
C74: Gemeinde gemäß Anlage 3 der RL | E74: Max. Miete für 1. EK-Grenze Anlage 3 RL | H74: =R74 -> 7.00 € | I74: =IF(S74=1,"i","") ->  | K74: TRUE | M74: Gemeinde gemäß Anlage 3 der RL | O74: =E74 -> Max. Miete für 1. EK-Grenze Anlage 3 RL | Q74: =IF(LEFT(Berechnung!$K$17,1)="j",TRUE,FALSE) -> FALSE | R74: =INDEX(Daten!$S$12:$S$19,MATCH(TRUE,Daten!$L$12:$L$19,0),1) -> 7.00 € | S74: =IF(AND(Q74=TRUE,H74<>R74),1,0) -> 0 | T74: =IF(AND(S74>0,LEFT(Berechnung!$K$17,1)="j",Berechnung!$V$27<>R74),TRUE,FALSE) -> FALSE | U74: TRUE
E75: Max. Miete für 2. EK-Grenze Anlage 3 RL | H75: =R75 -> 9.50 € | K75: TRUE | O75: Max. Miete für 2. EK-Grenze Anlage 3 RL | Q75: =IF(LEFT(Berechnung!$K$17,1)="j",TRUE,FALSE) -> FALSE | R75: =INDEX(Daten!$T$12:$T$19,MATCH(TRUE,Daten!$L$12:$L$19,0),1) -> 9.50 € | S75: 0 | T75: =IF(AND(S75>0,LEFT(Berechnung!$K$17,1)="j",Berechnung!$V$28<>R75),TRUE,FALSE) -> FALSE | U75: TRUE
E76: Max. Miete für 3. EK-Grenze Anlage 3 RL | H76: =R76 -> 12.50 € | K76: =K71 -> TRUE | O76: Max. Miete für 3. EK-Grenze Anlage 3 RL | Q76: =IF(LEFT(Berechnung!$K$17,1)="j",TRUE,FALSE) -> FALSE | R76: =INDEX(Daten!$U$12:$U$19,MATCH(TRUE,Daten!$L$12:$L$19,0),1) -> 12.50 € | S76: 0 | T76: =IF(AND(S76>0,LEFT(Berechnung!$K$17,1)="j",Berechnung!$V$29<>R76),TRUE,FALSE) -> FALSE | U76: TRUE
C77: Übrige Gemeinden | E77: Max. Miete für 1. EK-Grenze | H77: =R77 -> 6.50 € | K77: TRUE | M77: Übrige Gemeinden | O77: Max. Miete für 1. EK-Grenze | Q77: =IF(OR(Berechnung!$K$17="",LEFT(Berechnung!$K$17,1)="n"),TRUE,FALSE) -> TRUE | R77: =INDEX(Daten!$V$12:$V$19,MATCH(TRUE,Daten!$L$12:$L$19,0),1) -> 6.50 € | S77: 0 | T77: =IF(AND(S77>0,LEFT(Berechnung!$K$17,1)="n",Berechnung!$V$27<>R77),TRUE,FALSE) -> FALSE | U77: TRUE
E78: Max. Miete für 2. EK-Grenze | H78: =R78 -> 8.50 € | K78: TRUE | O78: Max. Miete für 2. EK-Grenze | Q78: =IF(OR(Berechnung!$K$17="",LEFT(Berechnung!$K$17,1)="n"),TRUE,FALSE) -> TRUE | R78: =INDEX(Daten!$W$12:$W$19,MATCH(TRUE,Daten!$L$12:$L$19,0),1) -> 8.50 € | S78: 0 | T78: =IF(AND(S78>0,LEFT(Berechnung!$K$17,1)="n",Berechnung!$V$28<>R78),TRUE,FALSE) -> FALSE | U78: TRUE
E79: Max. Miete für 3. EK-Grenze | H79: =R79 -> 10.50 € | K79: =K76 -> TRUE | O79: Max. Miete für 3. EK-Grenze | Q79: =IF(OR(Berechnung!$K$17="",LEFT(Berechnung!$K$17,1)="n"),TRUE,FALSE) -> TRUE | R79: =INDEX(Daten!$X$12:$X$19,MATCH(TRUE,Daten!$L$12:$L$19,0),1) -> 10.50 € | S79: 0 | T79: =IF(AND(S79>0,LEFT(Berechnung!$K$17,1)="n",Berechnung!$V$29<>R79),TRUE,FALSE) -> FALSE | U79: TRUE
C80: EK-Verzinsung | I80: =IF(S80=1,"i","") ->  | K80: TRUE | M80: =C80 -> EK-Verzinsung
C81: EK-Verzinsung auf die ersten | E81: =O81 -> 15.0000 % | F81: der Gesamtkosten | H81: =R81 -> 2.0000 % | K81: TRUE | M81: EK-Verzinsung auf die ersten | O81: 15.0000 % | P81: der Mindesteigenleistungen | Q81: TRUE | R81: =IFERROR(INDEX(Daten!$AH$12:$AH$19,MATCH(TRUE,Daten!$L$12:$L$19,0),1),2%) -> 2.00 % | S81: =IF(AND(Q81=TRUE,OR(AND(H81<>R81,H81>R81),AND(E81<>O81,E81<O81))),1,0) -> 0 | T81: =IF(S81>0,TRUE,FALSE) -> FALSE | U81: FALSE
C82: EK-Verzinsung auf darüber hinausgehende Eigenleistungen (Abstimmung mit MIL) | H82: =R82 -> 4.0000 % | K82: TRUE | M82: EK-Verzinsung auf darüber hinausgehende Eigenleistungen (Abstimmung mit MIL) | Q82: TRUE | R82: =IFERROR(INDEX(Daten!$AI$12:$AI$19,MATCH(TRUE,Daten!$L$12:$L$19,0),1),3%) -> 4.00 % | S82: =IF(AND(Q82=TRUE,H82<>R82,H82>R82),1,0) -> 0 | T82: =IF(S82>0,TRUE,FALSE) -> FALSE | U82: FALSE
C83: Besetzungsrechte | K83: =IF(Daten!$M$12=TRUE,TRUE,FALSE) -> FALSE | M83: =C83 -> Besetzungsrechte
C84: Pauschalaufwand für Besetzungsrechte | H84: =R84 -> 25.0000 % | K84: =K83 -> FALSE | M84: Pauschalaufwand für Besetzungsrechte | Q84: =Daten!$M$12 -> FALSE | R84: 25.0000 % | S84: =IF(AND(Q84=TRUE,H84<>R84),1,0) -> 0 | T84: =IF(S84>0,TRUE,FALSE) -> FALSE | U84: FALSE
C85: Bewirtschaftungskosten | K85: TRUE | M85: =C85 -> Bewirtschaftungskosten
C86: Verwaltungskosten p. a. | E86: pro Wohneinheit | H86: =R86 -> 372.46 € | K86: TRUE | M86: =C86 -> Verwaltungskosten p. a. | O86: =E86 -> pro Wohneinheit | P86: =IF(H86="",R86,H86) -> 372.46 € | Q86: TRUE | R86: =VLOOKUP(Daten!$O$3,Grunddaten!$B$11:$I$35,5) -> 372.46 € | S86: =IF(AND(Q86=TRUE,P86<>R86),1,0) -> 0 | T86: =IF(S86>0,TRUE,FALSE) -> FALSE | U86: FALSE
E87: pro Garage / Carport | H87: =R87 -> 48.58 € | I87: =IF(S87=1,"i","") ->  | K87: TRUE | O87: =E87 -> pro Garage / Carport | P87: =IF(H87="",R87,H87) -> 48.58 € | Q87: =IF(Berechnung!$G$71>0,TRUE,FALSE) -> FALSE | R87: =VLOOKUP(Daten!$O$3,Grunddaten!$B$11:$I$35,6) -> 48.58 € | S87: 0 | T87: FALSE | U87: FALSE
C88: Instandhaltungskosten p. a. | E88: pro m² Wohnfläche | H88: =R88 -> 11.50 € | K88: TRUE | M88: =C88 -> Instandhaltungskosten p. a. | O88: =E88 -> pro m² Wohnfläche | P88: =IF(H88="",R88,H88) -> 11.50 € | Q88: TRUE | R88: =VLOOKUP(Daten!$O$3,Grunddaten!$B$11:$I$35,2) -> 11.50 € | S88: 0 | T88: FALSE | U88: FALSE
E89: pro m² Wohnfläche Zuschlag für Aufzug | H89: =R89 -> 1.63 € | K89: TRUE | O89: Zuschlag Aufzug pro m² | P89: 1.63 € | Q89: =IF(OR(Daten!$H$77=TRUE,LEFT(Berechnung!$G$72,1)="J"),TRUE,FALSE) -> FALSE | R89: =VLOOKUP(Daten!$O$3,Grunddaten!$B$11:$I$35,3) -> 1.63 € | S89: 0 | T89: FALSE | U89: FALSE
E90: pro Garage / Carport | H90: =R90 -> 110.13 € | I90: =IF(S90=1,"i","") ->  | K90: TRUE | O90: =E90 -> pro Garage / Carport | P90: 110.13 € | Q90: =$Q$87 -> FALSE | R90: =VLOOKUP(Daten!$O$3,Grunddaten!$B$11:$I$35,4) -> 110.13 € | S90: 0 | T90: FALSE | U90: FALSE
C91: Mietausfallwagnis pro Jahr | H91: =R91 -> 2.0000 % | K91: TRUE | M91: =C91 -> Mietausfallwagnis pro Jahr | P91: 2.0000 % | Q91: TRUE | R91: =VLOOKUP(Daten!$O$3,Grunddaten!$B$11:$I$35,7) -> 2.0000 % | S91: 0 | T91: FALSE | U91: FALSE
C92: Nicht umlegbare Betriebskosten pro m² Leerstand pro Monat | H92: =R92 -> 0.00 € | K92: TRUE | M92: =C92 -> Nicht umlegbare Betriebskosten pro m² Leerstand pro Monat | P92: 0.00 € | Q92: TRUE | R92: 0.00 € | S92: 0 | T92: FALSE | U92: TRUE
C93: Pauschaler Ansatz für Anteil von Modernisierungskosten | H93: =R93 -> 60.0000 % | K93: =IF(OR(Daten!M79=TRUE,Daten!M80=TRUE),TRUE,FALSE) -> FALSE | M93: Pauschaler Ansatz für Anteil von Modernisierungskosten | Q93: TRUE | R93: 60.00 % | S93: =IF(AND(Q93=TRUE,H93<>R93),1,0) -> 0 | T93: FALSE | U93: =K93 -> FALSE
C94: Zielwertberechnung des Baudarlehens (Maßnahme) | K94: =IF(Daten!$M$3=TRUE,TRUE,FALSE) -> FALSE | M94: Zielwertberechnung des Baudarlehens (Maßnahme)
C95: Anzahl maximaler Durchläufe (Iterationen) für die Zielwertberechnung | H95: =R95 -> 100 | K95: =IF(Daten!$M$3=TRUE,TRUE,FALSE) -> FALSE | M95: Anzahl maximaler Durchläufe (Iterationen) für die Zielwertberechnung | P95: 100 | Q95: TRUE | R95: 100 | S95: =IF(AND(Q95=TRUE,H95<>R95),1,0) -> 0 | T95: =IF(S95>0,TRUE,FALSE) -> FALSE | U95: FALSE
C96: Anzahl der automatischen Erhöhungen der Durchläufe (Iterationen) für die Zielwertsuche | H96: =R96 -> 3 | K96: =IF(Daten!$M$3=TRUE,TRUE,FALSE) -> FALSE | M96: Anzahl der automatischen Erhöhungen der Durchläufe (Iterationen) für die Zielwertsuche | P96: - | Q96: TRUE | R96: 3 | S96: =IF(AND(Q96=TRUE,H96<>R96),1,0) -> 0 | T96: =IF(S96>0,TRUE,FALSE) -> FALSE | U96: FALSE
C97: Berechnungsgenauigkeit der Zielwertberechnung | H97: =R97 -> 0.0100 | K97: =IF(Daten!$M$3=TRUE,TRUE,FALSE) -> FALSE | M97: Berechnungsgenauigkeit der Zielwertberechnung | P97: 0.0010 | Q97: TRUE | R97: 0.0100 | S97: =IF(AND(Q97=TRUE,H97<>R97),1,0) -> 0 | T97: =IF(S97>0,TRUE,FALSE) -> FALSE | U97: FALSE
K98: FALSE | M98: Änderungen erfolgt? | P98: - | Q98: =IF(OR(Daten!$C$5=TRUE,Daten!$H$2=FALSE,$G$1=FALSE),TRUE,FALSE) -> TRUE | R98: - | S98: =SUM(S41:S48,S57:S58,S61:S63,S50:S53,S65:S70,S74:S79,S81:S82,S84,S86:S93) -> 0 | T98: =SUMIF(T41:T93,TRUE,S41:S93) -> 0 | U98: =IF(Daten!$C$5="",FALSE,IF(AND(Daten!$C$5=TRUE,Daten!$M$3=TRUE),TRUE,FALSE)) -> FALSE

Sheet Programmversionen (hidden)
B1: Daten gesichert: | D1: TRUE | E1: - | F1: - | G1: - | H1: - | I1: - | J1: - | K1: - | M1: FALSE | O1: FALSE
B2: - | C2: - | D2: - | E2: - | F2: - | G2: - | H2: - | I2: - | J2: - | K2: - | M2: FALSE | O2: FALSE
B3: - | C3: - | D3: - | E3: - | F3: - | G3: - | H3: - | I3: - | J3: - | K3: - | M3: FALSE | O3: FALSE
M4: TRUE | O4: FALSE
B5: =VLOOKUP(TODAY(),$B$10:$C$109,1) -> 2026-03-23 | D5: Programmversionen: MWB-Förderrechner | J5: ="Version: "&VLOOKUP(TODAY(),$B$10:$C$109,2)&" " -> Version: 26.02 | M5: TRUE | O5: FALSE
M6: TRUE | O6: FALSE
M7: TRUE | O7: FALSE
M8: TRUE | O8: FALSE
B9: Datum Version | C9: Nummer Version | D9: geänderte Tabellen | H9: Änderungen | M9: TRUE | O9: FALSE
B10: 2016-05-10 | C10: 16.01 | D10: Alle | E10: Neuerstellung der Berechnung | M10: =IF(B10="",FALSE,TRUE) -> TRUE | O10: =IF(AND(B10<>"",B10<=Daten!$O$5,OR(B11="",B11>Daten!$O$5)),TRUE,FALSE) -> FALSE
B11: 2016-07-22 | C11: 16.02 | D11: Startseite | E11: Einführung Startseite mit Hinweisen für den Nutzer (zur Unterstützung Internetauftritt) | M11: =IF(B11="",FALSE,TRUE) -> TRUE | O11: =IF(AND(B11<>"",B11<=Daten!$O$5,OR(B12="",B12>Daten!$O$5)),TRUE,FALSE) -> FALSE
B12: 2016-08-12 | C12: 16.02 | D12: Grunddaten | E12: Einführung Grunddatenseite | M12: TRUE | O12: =IF(AND(B12<>"",B12<=Daten!$O$5,OR(B13="",B13>Daten!$O$5)),TRUE,FALSE) -> FALSE
B13: 2016-09-29 | C13: 16.03 | D13: Berechnung | E13: Aufteilung Belegungsbindung jetzt auch nach Wohnfläche | M13: TRUE | O13: =IF(AND(B13<>"",B13<=Daten!$O$5,OR(B14="",B14>Daten!$O$5)),TRUE,FALSE) -> FALSE
B14: 2016-10-17 | C14: 16.04 | D14: Berechnung | E14: Erstellung Version fürs LBV | M14: TRUE | O14: =IF(AND(B14<>"",B14<=Daten!$O$5,OR(B15="",B15>Daten!$O$5)),TRUE,FALSE) -> FALSE
B15: 2016-12-15 | C15: 16.05 | D15: Grunddaten | E15: Anpassung Bewirtschaftungskosten ab 01.01.2017 | M15: TRUE | O15: =IF(AND(B15<>"",B15<=Daten!$O$5,OR(B16="",B16>Daten!$O$5)),TRUE,FALSE) -> FALSE
B16: 2017-03-29 | C16: 17.01 | D16: VBA, Verschiedene | E16: Steuerung Anzeige Dialogfelder angepasst. Umstellung Berechung auf jährliche Daten. Abschaltung Solver. Ermittlung Förderhöhe mit Zielwertsuche. Alle errechneten Fördermittel (auch Zuschüsse) werden auf volle Hundert Euro aufgerundet. Berechnung für Vergleich OW vor und nach Maßnahme bei ModInst wurde angepasst. Umsetzung der ersten Änderung der Richtlinie vom 08.03.2017 (Wegfall der Berechnungen bzgl. der Besetzungsrechte, Tilgung des Förderdarlehens nicht mehr starr auf 2 % festgelegt, sondern als Mindestilgung) | M16: TRUE | O16: =IF(AND(B16<>"",B16<=Daten!$O$5,OR(B17="",B17>Daten!$O$5)),TRUE,FALSE) -> FALSE
B17: 2017-09-12 | C17: 17.02 | D17: Berechnung | E17: Redaktionelle Anpassung Bezeichnung sonst. Einnahmen. Umstellung sonst. Einnahmen auf Jahressumme. | M17: TRUE | O17: =IF(AND(B17<>"",B17<=Daten!$O$5,OR(B18="",B18>Daten!$O$5)),TRUE,FALSE) -> FALSE
B18: 2017-10-25 | C18: 17.03 | D18: VBA | E18: Erweiterung Berechtigte für RL-Kennzahlen | M18: TRUE | O18: =IF(AND(B18<>"",B18<=Daten!$O$5,OR(B19="",B19>Daten!$O$5)),TRUE,FALSE) -> FALSE
B19: 2018-07-24 | C19: 18.01 | D19: Grunddaten | E19: Korrektur BWK (Instandhaltungskosten Garage) | M19: TRUE | O19: =IF(AND(B19<>"",B19<=Daten!$O$5,OR(B20="",B20>Daten!$O$5)),TRUE,FALSE) -> FALSE
B20: 2018-09-06 | C20: 18.02 | D20: Grunddaten, Berechnung | E20: Anpassung der RL-Kennziffern an neue RL, Einbau Abfrage Anzahl Garagen | M20: TRUE | O20: =IF(AND(B20<>"",B20<=Daten!$O$5,OR(B21="",B21>Daten!$O$5)),TRUE,FALSE) -> FALSE
B21: 2018-12-05 | C21: 18.03 | D21: Berechnung | E21: Alle Formeln aus dieser Seite herausgelöst und ins Sheet "Daten" geschrieben | M21: TRUE | O21: =IF(AND(B21<>"",B21<=Daten!$O$5,OR(B22="",B22>Daten!$O$5)),TRUE,FALSE) -> FALSE
B22: 2019-04-04 | C22: 19.01 | D22: VBA | E22: Anpassung einer Abfrage an geänderte Formelhinterlegung | M22: TRUE | O22: =IF(AND(B22<>"",B22<=Daten!$O$5,OR(B23="",B23>Daten!$O$5)),TRUE,FALSE) -> FALSE
B23: 2019-08-07 | C23: 19.02 | D23: Verschiedene | E23: Entfernung von Referenzen zu Flüchtlingen als Voraussetzung für einen Zuschuss Nutzung von Bildschirmfixierungen, um Kontrollelemente verfügbar zu halten | M23: TRUE | O23: =IF(AND(B23<>"",B23<=Daten!$O$5,OR(B24="",B24>Daten!$O$5)),TRUE,FALSE) -> FALSE
B24: 2019-11-25 | C24: 19.03 | D24: Verschiedene | E24: Anpassung Bewirtschaftungskosten ab 01.012020 Anpassung von Richtlinienreferenzen an neue Richtlinie vom 10.10.2019 Einführung einer Auswahloption für den Ansatz der BWK (nur bei ILB interner Version) | M24: TRUE | O24: =IF(AND(B24<>"",B24<=Daten!$O$5,OR(B25="",B25>Daten!$O$5)),TRUE,FALSE) -> FALSE
B25: 2019-11-28 | C25: 19.04 | D25: Berechnung | E25: Korrektur von Rechtschreibfehlern Korrektur von falscher Berechnung der BWK, wenn eine manuelle Auswahl des Stichtages erfolgte | M25: TRUE | O25: =IF(AND(B25<>"",B25<=Daten!$O$5,OR(B26="",B26>Daten!$O$5)),TRUE,FALSE) -> FALSE
B26: 2020-04-29 | C26: 20.01 | D26: Berechnung | E26: Korrektur von bedingten Formatierungen wenn Mod/Inst ausgewählt wurde | M26: TRUE | O26: =IF(AND(B26<>"",B26<=Daten!$O$5,OR(B27="",B27>Daten!$O$5)),TRUE,FALSE) -> FALSE
B27: 2021-07-13 | C27: 21.01 | D27: Daten, VBA | E27: Zweitprüfung Höhe Zuschuss wenn Förderdarlehen = 0 und Überschuss > Maximalbetrag Anpassung Passwörter gemäß neuer Passwortrichtlinie | M27: TRUE | O27: =IF(AND(B27<>"",B27<=Daten!$O$5,OR(B28="",B28>Daten!$O$5)),TRUE,FALSE) -> FALSE
B28: 2022-04-25 | C28: 22.01 | D28: Alle | E28: Anpassungen für neue Richtlinie vom 17.03.2022 (insbesondere Aufnahme Aufzugsförderung) Verbesserungen in Benutzerführung Anpassungen von VBA-Modulen an IDV-Richtlinie Korrekturen in der Berechnung des gekürzten Förderdarlehen bei Mod / Inst Bereitstellung eines Dialoges zur Löschung / Bereinigung der Eingaben Ausweis einer Durchschnittsmiete über alle Wohnflächen Option, eine manuelle Basis für die Eigenkapitalverzinsung festzulegen Die grundsätzlich möglichen Förderbeträge werden jetzt auch bei fehlender Objektwirtschaftlichkeit ausgewiesen Option, ausgewählte Grunddaten ohne Passwort für eine manuelle Anpassung freigeben zu können | M28: TRUE | O28: =IF(AND(B28<>"",B28<=Daten!$O$5,OR(B29="",B29>Daten!$O$5)),TRUE,FALSE) -> FALSE
B29: 2022-05-02 | C29: 22.02 | D29: Alle | E29: Korrektur der Berechnung, wenn sonstige Zuschüsse vorhanden sind Anpassungen bei vollständiger Freigabe der Grunddaten Möglichkeit, Förderbeträge ohne Einsatz von Eigenleistungen berechnen zu können | M29: TRUE | O29: =IF(AND(B29<>"",B29<=Daten!$O$5,OR(B30="",B30>Daten!$O$5)),TRUE,FALSE) -> FALSE
B30: 2022-05-03 | C30: 22.03 | D30: VBA | E30: Entfernung der Fehlermeldung bei Aufruf des Dialogfeldes zur Mitarbeiterfreigabe der Grunddaten | M30: TRUE | O30: =IF(AND(B30<>"",B30<=Daten!$O$5,OR(B31="",B31>Daten!$O$5)),TRUE,FALSE) -> FALSE
B31: 2022-05-09 | C31: 22.04 | D31: Berechnung | E31: Korrektur der Aufrundung der "Notwendigen Restfinanzierung" auf volle 100 EUR, sofern diese 0,00 EUR beträgt | M31: TRUE | O31: =IF(AND(B31<>"",B31<=Daten!$O$5,OR(B32="",B32>Daten!$O$5)),TRUE,FALSE) -> FALSE
B32: 2022-06-08 | C32: 22.05 | D32: Alle | E32: Option, Antragsnummer in der Berechnung zu hinterlegen Erweiterung der Plausiprüfung der Höhe des Baudarlehens innerhalb der Zielwertsuche Anpassung der Exceleinstellungen für erhöhte Anzahl von möglichen Iterationen innerhalb einer Zielwertsuche Anpassung der Exceleinstellungen für Berechnungsgenauigkeit einer Zielwertsuche Möglichkeit, manuell eine Neuberechnung der Förderbeträge anzustossen zu können (via Schaltfläche) Option, alternative Berechnungsmethode via "Solver" zu nutzen (benötigt installiertes und aktiviertes Excel-Add-In) Option, Basis für Eigenkapitalverzinsung anpassen zu lassen, um Objektwirtschaftlichkeit herstellen zu können Ausweis der durchschnittlich erzielten Eigenkapitalverzinsung p. a. (in Prozent) Möglichkeit eines dialoggesteuerten Exportes des Förderrechners als PDF-Datei Anpassungen / Korrekturen für LBV-spezifische Version des Förderrechners | M32: TRUE | O32: =IF(AND(B32<>"",B32<=Daten!$O$5,OR(B33="",B33>Daten!$O$5)),TRUE,FALSE) -> FALSE
B33: 2022-07-22 | C33: 22.06 | D33: Alle | E33: Aufnahme Zuschuss "Klimabaustein" (Ausblendung bis Freigabe durch MIL) Möglichkeit, bis zu 5 Berechnungen "zwischenspeichern" und "wiederherstellen" zu können Ausweis des Anteils der Kosten- und Finanzierungsbestandteile an den Gesamtkosten Option, die durch einen geförderten Aufzug erschlossene Wohnfläche erfassen zu können Option, das Baudarlehen automatisch kappen zu lassen, sofern Höchstförderung (i. V. m. Aufzug) überschritten wird Korrektur, dass für Baudarlehen bei freigeschalteteten Grunddaten ein Tilgungssatz < 2% zugelassen wird Ausweis des Datums der Berechnung (mit Option, Datum manuell zu überschreiben) | M33: TRUE | O33: =IF(AND(B33<>"",B33<=Daten!$O$5,OR(B34="",B34>Daten!$O$5)),TRUE,FALSE) -> FALSE
B34: 2022-08-15 | C34: 22.07 | D34: Berechnung | E34: Korrektur des Ausweises der "Sonstigen Finanzierung" in der Übersicht der Gesamtfinanzierung | M34: TRUE | O34: =IF(AND(B34<>"",B34<=Daten!$O$5,OR(B35="",B35>Daten!$O$5)),TRUE,FALSE) -> FALSE
B35: 2022-10-07 | C35: 22.08 | D35: Alle | E35: Anpassung und Aktivierung der Förderoption "Klimabaustein" | M35: TRUE | O35: =IF(AND(B35<>"",B35<=Daten!$O$5,OR(B36="",B36>Daten!$O$5)),TRUE,FALSE) -> FALSE
B36: 2022-12-07 | C36: 22.09 | D36: Alle | E36: Anpassung der Bewirtschaftungskosten ab 01.01.2023 Aufnahme und Berücksichtigung der Betriebskosten für leerstehende Wohnflächen Getrennte Ermittlung der Instandhaltungskosten bei mit Aufzug nur teilweise erschlossenen Flächen und Ausweis Durchschnittswert Korrektur bei ausgewählter Kappung der Förderbeträge auf Förderhöchstgrenze (Klimabaustein) Korrektur Rechtschreib- und Grammatikfehler | M36: TRUE | O36: =IF(AND(B36<>"",B36<=Daten!$O$5,OR(B37="",B37>Daten!$O$5)),TRUE,FALSE) -> FALSE
B37: 2023-06-06 | C37: 23.01 | D37: Berechnung | E37: Korrektur des Ausweises des maximal möglichen Förderdarlehens bei Nutzung des Klimabausteines in der externen Version Option, einen errechneten Deckungsbeitrag vor Maßnahme zu nutzen, sofern kein verläßlicher bereitgestellt werden konnte (Mod/Inst) Korrektur des Ausweises der Instandhaltungskosten bei vorhandenem Aufzug (wenn keine Aufzugsförderung genutzt wird) Anpassung der Berechnung der notwendigen Bindungen für Maßnahmen mit 3 oder weniger Wohneinheiten Option, notwendiges "echtes" Eigenkapital automatisch berechnen zu lassen Option, Basis für Eigenkapitalverzinsung automatisch anpassen zu lassen, um jährlichen Fehlbetrag ausgleichen zu können Option, Tilgungssatz der Förderdarlehen automatisch anpassen zu lassen, um "Notwendige Restfinanzierung" möglichst zu vermeiden | M37: TRUE | O37: =IF(AND(B37<>"",B37<=Daten!$O$5,OR(B38="",B38>Daten!$O$5)),TRUE,FALSE) -> FALSE
B38: 2023-07-21 | C38: 23.02 | D38: Alle | E38: Korrektur der Berechnung der Belegungsbindungen bei nur 3 Wohneinheiten | M38: TRUE | O38: =IF(AND(B38<>"",B38<=Daten!$O$5,OR(B39="",B39>Daten!$O$5)),TRUE,FALSE) -> FALSE
B39: 2023-11-28 | C39: 23.03 | D39: Alle | E39: Anpassungen für Förderrichtlinie vom 01.12.2023 Aufnahme von Stellplätzen für korrekte Abbildung der Bewirtschaftungskosten Anpassung des automatisch berechneten Deckungsbeitrages bei ModInst-Maßnahmen Diverse Bereinigungen / Korrekturen in Zell-Referenzierungen | M39: TRUE | O39: =IF(AND(B39<>"",B39<=Daten!$O$5,OR(B40="",B40>Daten!$O$5)),TRUE,FALSE) -> FALSE
B40: 2023-12-07 | C40: 23.04 | D40: Berechnung | E40: Reduzierung der Förderobergrenze um Zuschuss für Belegungsbindung für RL vom 01.12.2023 | M40: TRUE | O40: =IF(AND(B40<>"",B40<=Daten!$O$5,OR(B41="",B41>Daten!$O$5)),TRUE,FALSE) -> FALSE
B41: 2024-01-15 | C41: 24.01 | D41: Berechnung | E41: Korrektur des fehlenden Ausweises der notwendigen Restfinanzierung in der Finanzierungszusammenfassung Weitere Anpassung zur Vermeidung einer notwendigen Restfinanzierung von 100,00 EUR oder weniger Option, die Anzahl der Wohneinheiten von der Verteilung der Belegungsbindungsquoten auszuschließen (nur interne Version) Erweiterung der per "Mitarbeiterfreigabe" freigeschalteten Einstellungen in den "Grunddaten" | M41: TRUE | O41: =IF(AND(B41<>"",B41<=Daten!$O$5,OR(B42="",B42>Daten!$O$5)),TRUE,FALSE) -> FALSE
B42: 2024-01-17 | C42: 24.02 | D42: VBA | E42: Anpassung der automatischen Bereinigung von Eingaben wenn eine Änderung der Maßnahmeart erfolgte Korrektur der fehlenden Berücksichtigung eines manuellen Bindungssatzes für die 2. EK bei der Ermittlung der Wohnflächen | M42: TRUE | O42: =IF(AND(B42<>"",B42<=Daten!$O$5,OR(B43="",B43>Daten!$O$5)),TRUE,FALSE) -> FALSE
B43: 2024-01-31 | C43: 24.03 | D43: Berechnung | E43: Korrektur des fehlenden Ausweises einer notwendigen Restfinnazierung bei reiner Aufzugsförderung Korrektur des Ausweises unnötiger Darlehen bei Finanzierung nur aus Eigenkapital und Zuschüssen | M43: TRUE | O43: =IF(AND(B43<>"",B43<=Daten!$O$5,OR(B44="",B44>Daten!$O$5)),TRUE,FALSE) -> FALSE
B44: 2024-07-31 | C44: 24.04 | D44: Berechnung | E44: Korrektur des fehlerhaften Ausweises der Gesamtfinanzierung bei erhöhtem EK-Einsatz in Kombination mit Aufzugsförderung Korrekturen für angepasste LBV-Version des Förderrechners Korrektur der fehlerhaften Instandhaltungskosten wenn Aufzüge nicht alle Wohneinheiten erschließen Gesonderte Erfassung der insgesamt im Objekt per Aufzug erreichbaren Wohnfläche (bei bereits vorhandenen Aufzügen) Option, zusätzliche / sonstige Kosten pro Jahr für das Förderobjekt zu erfassen Option, zwischen neuen und bestehenden Aufzügen zu differenzieren (für korrekte Abbildung der Bewirtschaftungksosten) Option, die auf den Aufzugsein- / anbau entfallenden Kosten nachrichtlich gesondert abzubilden (bei Maßnahmenkombinationen) | M44: TRUE | O44: =IF(AND(B44<>"",B44<=Daten!$O$5,OR(B45="",B45>Daten!$O$5)),TRUE,FALSE) -> FALSE
B45: 2024-09-09 | C45: 24.05 | D45: Berechnung, VBA | E45: Korrektur der Vorbelegung einzelner Auswahl- und Eingabefelder bei Erst- und Neueinrichtung des Förderrechners | M45: TRUE | O45: =IF(AND(B45<>"",B45<=Daten!$O$5,OR(B46="",B46>Daten!$O$5)),TRUE,FALSE) -> FALSE
B46: 2026-01-13 | C46: 26.01 | D46: Berechnung, VBA | E46: Anpassungen für Förderrichtlinie vom … | M46: TRUE | O46: =IF(AND(B46<>"",B46<=Daten!$O$5,OR(B47="",B47>Daten!$O$5)),TRUE,FALSE) -> FALSE
B47: 2026-03-23 | C47: 26.02 | D47: Berechnung, VBA | E47: Option, Einnahmen / Ausgaben für Stellplätze & Garagen nicht in der Berechnung zu berücksichtigen | M47: TRUE | O47: =IF(AND(B47<>"",B47<=Daten!$O$5,OR(B48="",B48>Daten!$O$5)),TRUE,FALSE) -> TRUE
M48: FALSE | O48: =IF(AND(B48<>"",B48<=Daten!$O$5,OR(B49="",B49>Daten!$O$5)),TRUE,FALSE) -> FALSE
M49: FALSE | O49: =IF(AND(B49<>"",B49<=Daten!$O$5,OR(B50="",B50>Daten!$O$5)),TRUE,FALSE) -> FALSE
M50: FALSE | O50: =IF(AND(B50<>"",B50<=Daten!$O$5,OR(B51="",B51>Daten!$O$5)),TRUE,FALSE) -> FALSE
M51: FALSE | O51: =IF(AND(B51<>"",B51<=Daten!$O$5,OR(B52="",B52>Daten!$O$5)),TRUE,FALSE) -> FALSE
M52: FALSE | O52: =IF(AND(B52<>"",B52<=Daten!$O$5,OR(B53="",B53>Daten!$O$5)),TRUE,FALSE) -> FALSE
M53: FALSE | O53: =IF(AND(B53<>"",B53<=Daten!$O$5,OR(B54="",B54>Daten!$O$5)),TRUE,FALSE) -> FALSE
M54: FALSE | O54: =IF(AND(B54<>"",B54<=Daten!$O$5,OR(B55="",B55>Daten!$O$5)),TRUE,FALSE) -> FALSE
M55: FALSE | O55: =IF(AND(B55<>"",B55<=Daten!$O$5,OR(B56="",B56>Daten!$O$5)),TRUE,FALSE) -> FALSE
M56: FALSE | O56: =IF(AND(B56<>"",B56<=Daten!$O$5,OR(B57="",B57>Daten!$O$5)),TRUE,FALSE) -> FALSE
M57: FALSE | O57: =IF(AND(B57<>"",B57<=Daten!$O$5,OR(B58="",B58>Daten!$O$5)),TRUE,FALSE) -> FALSE
M58: FALSE | O58: =IF(AND(B58<>"",B58<=Daten!$O$5,OR(B59="",B59>Daten!$O$5)),TRUE,FALSE) -> FALSE
M59: FALSE | O59: =IF(AND(B59<>"",B59<=Daten!$O$5,OR(B60="",B60>Daten!$O$5)),TRUE,FALSE) -> FALSE
M60: FALSE | O60: =IF(AND(B60<>"",B60<=Daten!$O$5,OR(B61="",B61>Daten!$O$5)),TRUE,FALSE) -> FALSE
M61: FALSE | O61: =IF(AND(B61<>"",B61<=Daten!$O$5,OR(B62="",B62>Daten!$O$5)),TRUE,FALSE) -> FALSE
M62: FALSE | O62: =IF(AND(B62<>"",B62<=Daten!$O$5,OR(B63="",B63>Daten!$O$5)),TRUE,FALSE) -> FALSE
M63: FALSE | O63: =IF(AND(B63<>"",B63<=Daten!$O$5,OR(B64="",B64>Daten!$O$5)),TRUE,FALSE) -> FALSE
M64: FALSE | O64: =IF(AND(B64<>"",B64<=Daten!$O$5,OR(B65="",B65>Daten!$O$5)),TRUE,FALSE) -> FALSE
M65: FALSE | O65: =IF(AND(B65<>"",B65<=Daten!$O$5,OR(B66="",B66>Daten!$O$5)),TRUE,FALSE) -> FALSE
M66: FALSE | O66: =IF(AND(B66<>"",B66<=Daten!$O$5,OR(B67="",B67>Daten!$O$5)),TRUE,FALSE) -> FALSE
M67: FALSE | O67: =IF(AND(B67<>"",B67<=Daten!$O$5,OR(B68="",B68>Daten!$O$5)),TRUE,FALSE) -> FALSE
M68: FALSE | O68: =IF(AND(B68<>"",B68<=Daten!$O$5,OR(B69="",B69>Daten!$O$5)),TRUE,FALSE) -> FALSE
M69: FALSE | O69: =IF(AND(B69<>"",B69<=Daten!$O$5,OR(B70="",B70>Daten!$O$5)),TRUE,FALSE) -> FALSE
M70: FALSE | O70: =IF(AND(B70<>"",B70<=Daten!$O$5,OR(B71="",B71>Daten!$O$5)),TRUE,FALSE) -> FALSE
M71: FALSE | O71: =IF(AND(B71<>"",B71<=Daten!$O$5,OR(B72="",B72>Daten!$O$5)),TRUE,FALSE) -> FALSE
M72: FALSE | O72: =IF(AND(B72<>"",B72<=Daten!$O$5,OR(B73="",B73>Daten!$O$5)),TRUE,FALSE) -> FALSE
M73: FALSE | O73: =IF(AND(B73<>"",B73<=Daten!$O$5,OR(B74="",B74>Daten!$O$5)),TRUE,FALSE) -> FALSE
M74: FALSE | O74: =IF(AND(B74<>"",B74<=Daten!$O$5,OR(B75="",B75>Daten!$O$5)),TRUE,FALSE) -> FALSE
M75: =IF(B75="",FALSE,TRUE) -> FALSE | O75: =IF(AND(B75<>"",B75<=Daten!$O$5,OR(B76="",B76>Daten!$O$5)),TRUE,FALSE) -> FALSE
M76: FALSE | O76: =IF(AND(B76<>"",B76<=Daten!$O$5,OR(B77="",B77>Daten!$O$5)),TRUE,FALSE) -> FALSE
M77: FALSE | O77: =IF(AND(B77<>"",B77<=Daten!$O$5,OR(B78="",B78>Daten!$O$5)),TRUE,FALSE) -> FALSE
M78: FALSE | O78: =IF(AND(B78<>"",B78<=Daten!$O$5,OR(B79="",B79>Daten!$O$5)),TRUE,FALSE) -> FALSE
M79: FALSE | O79: =IF(AND(B79<>"",B79<=Daten!$O$5,OR(B80="",B80>Daten!$O$5)),TRUE,FALSE) -> FALSE
M80: FALSE | O80: =IF(AND(B80<>"",B80<=Daten!$O$5,OR(B81="",B81>Daten!$O$5)),TRUE,FALSE) -> FALSE
M81: FALSE | O81: =IF(AND(B81<>"",B81<=Daten!$O$5,OR(B82="",B82>Daten!$O$5)),TRUE,FALSE) -> FALSE
M82: FALSE | O82: =IF(AND(B82<>"",B82<=Daten!$O$5,OR(B83="",B83>Daten!$O$5)),TRUE,FALSE) -> FALSE
M83: FALSE | O83: =IF(AND(B83<>"",B83<=Daten!$O$5,OR(B84="",B84>Daten!$O$5)),TRUE,FALSE) -> FALSE
M84: FALSE | O84: =IF(AND(B84<>"",B84<=Daten!$O$5,OR(B85="",B85>Daten!$O$5)),TRUE,FALSE) -> FALSE
M85: FALSE | O85: =IF(AND(B85<>"",B85<=Daten!$O$5,OR(B86="",B86>Daten!$O$5)),TRUE,FALSE) -> FALSE
M86: FALSE | O86: =IF(AND(B86<>"",B86<=Daten!$O$5,OR(B87="",B87>Daten!$O$5)),TRUE,FALSE) -> FALSE
M87: FALSE | O87: =IF(AND(B87<>"",B87<=Daten!$O$5,OR(B88="",B88>Daten!$O$5)),TRUE,FALSE) -> FALSE
M88: FALSE | O88: =IF(AND(B88<>"",B88<=Daten!$O$5,OR(B89="",B89>Daten!$O$5)),TRUE,FALSE) -> FALSE
M89: FALSE | O89: =IF(AND(B89<>"",B89<=Daten!$O$5,OR(B90="",B90>Daten!$O$5)),TRUE,FALSE) -> FALSE
M90: FALSE | O90: =IF(AND(B90<>"",B90<=Daten!$O$5,OR(B91="",B91>Daten!$O$5)),TRUE,FALSE) -> FALSE
M91: FALSE | O91: =IF(AND(B91<>"",B91<=Daten!$O$5,OR(B92="",B92>Daten!$O$5)),TRUE,FALSE) -> FALSE
M92: FALSE | O92: =IF(AND(B92<>"",B92<=Daten!$O$5,OR(B93="",B93>Daten!$O$5)),TRUE,FALSE) -> FALSE
M93: FALSE | O93: =IF(AND(B93<>"",B93<=Daten!$O$5,OR(B94="",B94>Daten!$O$5)),TRUE,FALSE) -> FALSE
M94: FALSE | O94: =IF(AND(B94<>"",B94<=Daten!$O$5,OR(B95="",B95>Daten!$O$5)),TRUE,FALSE) -> FALSE
M95: FALSE | O95: =IF(AND(B95<>"",B95<=Daten!$O$5,OR(B96="",B96>Daten!$O$5)),TRUE,FALSE) -> FALSE
M96: FALSE | O96: =IF(AND(B96<>"",B96<=Daten!$O$5,OR(B97="",B97>Daten!$O$5)),TRUE,FALSE) -> FALSE
M97: FALSE | O97: =IF(AND(B97<>"",B97<=Daten!$O$5,OR(B98="",B98>Daten!$O$5)),TRUE,FALSE) -> FALSE
M98: FALSE | O98: =IF(AND(B98<>"",B98<=Daten!$O$5,OR(B99="",B99>Daten!$O$5)),TRUE,FALSE) -> FALSE
M99: FALSE | O99: =IF(AND(B99<>"",B99<=Daten!$O$5,OR(B100="",B100>Daten!$O$5)),TRUE,FALSE) -> FALSE
M100: FALSE | O100: =IF(AND(B100<>"",B100<=Daten!$O$5,OR(B101="",B101>Daten!$O$5)),TRUE,FALSE) -> FALSE
M101: FALSE | O101: =IF(AND(B101<>"",B101<=Daten!$O$5,OR(B102="",B102>Daten!$O$5)),TRUE,FALSE) -> FALSE
M102: FALSE | O102: =IF(AND(B102<>"",B102<=Daten!$O$5,OR(B103="",B103>Daten!$O$5)),TRUE,FALSE) -> FALSE
M103: FALSE | O103: =IF(AND(B103<>"",B103<=Daten!$O$5,OR(B104="",B104>Daten!$O$5)),TRUE,FALSE) -> FALSE
M104: FALSE | O104: =IF(AND(B104<>"",B104<=Daten!$O$5,OR(B105="",B105>Daten!$O$5)),TRUE,FALSE) -> FALSE
M105: FALSE | O105: =IF(AND(B105<>"",B105<=Daten!$O$5,OR(B106="",B106>Daten!$O$5)),TRUE,FALSE) -> FALSE
M106: FALSE | O106: =IF(AND(B106<>"",B106<=Daten!$O$5,OR(B107="",B107>Daten!$O$5)),TRUE,FALSE) -> FALSE
M107: FALSE | O107: =IF(AND(B107<>"",B107<=Daten!$O$5,OR(B108="",B108>Daten!$O$5)),TRUE,FALSE) -> FALSE
M108: FALSE | O108: =IF(AND(B108<>"",B108<=Daten!$O$5,OR(B109="",B109>Daten!$O$5)),TRUE,FALSE) -> FALSE
M109: FALSE | O109: =IF(AND(B109<>"",B109<=Daten!$O$5,OR(B110="",B110>Daten!$O$5)),TRUE,FALSE) -> FALSE

Sheet Daten (hidden)
B2: Testversion gültig bis: | D2: Administrator: | F2: Arbeitsmappenschutz an: | H2: TRUE | I2: Druckmodus | J2: FALSE | L2: Rechner-Version | M2: =IF(M3=TRUE,"ILB (Intern)",IF(M4=TRUE,"Kunde (Extern)",IF(M5=TRUE,"LBV / MIL (Extern)","Unbekannt"))) -> Kunde (Extern) | O2: Datum BWK | Q2: Anzahl Iterationen | R2: Anzahl Erhöhungen | S2: Iterationsanpassung? | U2: Auto-Zielwert?
B3: Einstellungsmodus: | C3: FALSE | D3: TRUE | F3: Leztes Aktives Blatt: | H3: Startseite | L3: Intern | M3: FALSE | O3: =IF(OR(J4="",J4="-",J4=O23,M3=FALSE,J4=O48),O5,J4) -> 2026-04-07 | Q3: =IF(Grunddaten!H95="",Grunddaten!R95,ROUNDUP(Grunddaten!H95,0)) -> 100 | R3: =IF(Grunddaten!$H$96="",Grunddaten!$R$96,Grunddaten!$H$96) -> 3 | S3: TRUE | U3: TRUE
B4: Programmiermodus: | C4: FALSE | D4: Kennzahlen: | F4: Laufende Überwachung: | H4: TRUE | I4: Auswahl BWK | J4: =IF(O49="","-",O49) -> - | L4: Extern | M4: TRUE | O4: Tagesdatum | Q4: Genauigkeit | R4: Ergebnisproblem? | S4: Solo - Aufzug? | U4: Kappung Förderung?
B5: Mitarbeiterfreigabe: | C5: TRUE | D5: TRUE | F5: Druckbereich: | H5: =ADDRESS(ROW(Berechnung!C6),COLUMN(Berechnung!C6),1,1)&":"&ADDRESS(ROW(Berechnung!Y167),COLUMN(Berechnung!Y167),1,1) -> $C$6:$Y$167 | I5: Seitenanzahl | J5: =IF(OR($C$4=TRUE,$G$60=TRUE),2,1) -> 1 | L5: LBV | M5: FALSE | O5: =TODAY() -> 2026-04-07 | Q5: =IF(Grunddaten!H97="",Grunddaten!R97,Grunddaten!H97) -> 0.0100 | R5: =IF(AND($G$53=FALSE,$D$47>0),TRUE,FALSE) -> FALSE | S5: =O81 -> TRUE | U5: =Grunddaten!H40 -> TRUE
B7: Zusammenfassung der wesentlichen Daten für die Förderdarlehensberechnung (Zielwertsuche)
B8: Gesamtwohnfläche der gef. Wohnungen | G8: =Berechnung!K19 -> 0.00 m² | J8: Gewählte Version | K8: Richtlinenversionen | M8: Besetzungs- rechte | N8: Text Startseite | P8: Höchstförderung Darlehen bei Neubau, Umnutzung ohne Zuschuss | Q8: Höchstförderung Darlehen bei Neubau, Umnutzung mit Zuschuss | R8: Höchstförderung Darlehen bei ModInst | S8: Mietobergrenzen | Y8: Belegungsbindung | AA8: Bindungsquoten | AH8: Eigenkapitalverzinsung
B9: Maximalförderung pro m² Wohnfläche | G9: =D72 -> 2,200.00 € | S9: Anlage 2 | V9: Sonstige | Y9: Zuschuss | Z9: Jahre | AA9: Neubau, Umnutzung, Widerherstellung | AB9: ModInst, Solo-Aufzüge | AC9: Solo-Aufzüge | AD9: Einkommensgrenzen | AH9: … auf die ersten 15% EK-Anteil | AI9: … auf den über 15% liegenden EK Anteil
B10: Förderfähige Gesamtkosten (gef. Whg.) | G10: =IF(Berechnung!I44="",0,Berechnung!I44) -> 0.00 € | S10: 1. EK | T10: 2. EK | U10: 3. EK | V10: 1. EK | W10: 2. EK | X10: 3. EK | AD10: 1. EK | AE10: 2. EK | AF10: 3. EK | AG10: Anzahl EK
B11: Eigenleistungen (geförderte Whg.) | G11: =IF(Berechnung!V44="",0,Berechnung!V44) -> 0.00 € | K11: ="'Daten'!"&ADDRESS(ROW(K12),COLUMN(K12),1)&":"&ADDRESS(ROW(K12)+COUNTA(K12:K19)-1,COLUMN(K12),1) -> 'Daten'!$K$12:$K$18 | L11: 5
B12: Eigenleistungen mit Eigenkapitalverzinsung (gef. Whg.) | G12: =IF(AND(M3=TRUE,Berechnung!$V$78<>""),MIN(G11,Berechnung!$V$78),G11) -> 0.00 € | J12: =IF(COUNTIF(L12:L19,TRUE)=0,"...",INDEX($K$12:$K$19,MATCH(TRUE,$L$12:$L$19,0),1)) -> 2026-01-01 | K12: 2016-02-23 | L12: FALSE | M12: =IF(L12=TRUE,TRUE,FALSE) -> FALSE | P12: 1,800.00 € | Q12: 1,450.00 € | R12: 1,100.00 € | S12: 5.50 € | T12: 7.00 € | U12: 0.00 € | V12: 4.90 € | W12: 6.00 € | X12: 0.00 € | Y12: =P12-Q12 -> 350.00 € | Z12: 25 | AA12: 75.00 % | AB12: 50.00 % | AC12: 50.00 % | AD12: 50.00 % | AE12: 50.00 % | AF12: 0.00 % | AG12: =IF(K12="","",SUMPRODUCT((AD12:AF12>0)*1)) -> 2 | AH12: 2.00 % | AI12: 3.00 %
B13: Zuschüsse (geförderte Whg.) | G13: =SUM(Berechnung!V50:X54) -> 0.00 € | K13: 2017-03-08 | L13: FALSE | N13: in der Fassung der ersten Änderung vom 08.03.2017 | P13: 1,800.00 € | Q13: 1,450.00 € | R13: 1,100.00 € | S13: 5.50 € | T13: 7.00 € | U13: 0.00 € | V13: 4.90 € | W13: 6.00 € | X13: 0.00 € | Y13: =P13-Q13 -> 350.00 € | Z13: 25 | AA13: 75.00 % | AB13: 50.00 % | AC13: 50.00 % | AD13: 50.00 % | AE13: 50.00 % | AF13: 0.00 % | AG13: 2 | AH13: 2.00 % | AI13: 3.00 %
B14: ="Einnahmen (geförderte Whg.)" -> Einnahmen (geförderte Whg.) | G14: =IF(Berechnung!V35="",0,Berechnung!V35) -> 0.00 € | K14: 2018-08-17 | L14: FALSE | N14: in der Fassung der zweiten Änderung vom 04.09.2018 | P14: 2,500.00 € | Q14: 2,150.00 € | R14: 1,800.00 € | S14: 5.50 € | T14: 7.00 € | U14: 0.00 € | V14: 4.90 € | W14: 6.00 € | X14: 0.00 € | Y14: =P14-Q14 -> 350.00 € | Z14: 25 | AA14: 75.00 % | AB14: 50.00 % | AC14: 50.00 % | AD14: 50.00 % | AE14: 50.00 % | AF14: 0.00 % | AG14: 2 | AH14: 2.00 % | AI14: 3.00 %
B15: Kapitaldienst aus bereits bestehenden Finanzierungen (gef. Whg.) | G15: =Berechnung!V60 -> 0.00 € | K15: 2019-10-10 | L15: FALSE | P15: 2,500.00 € | Q15: 2,150.00 € | R15: 1,800.00 € | S15: 5.50 € | T15: 7.00 € | U15: 0.00 € | V15: 4.90 € | W15: 6.00 € | X15: 0.00 € | Y15: =P15-Q15 -> 350.00 € | Z15: 25 | AA15: 75.00 % | AB15: 50.00 % | AC15: 50.00 % | AD15: 50.00 % | AE15: 50.00 % | AF15: 0.00 % | AG15: 2 | AH15: 2.00 % | AI15: 3.00 %
B16: Bewirtschaftungskosten und sonstige Kosten (gef. Whg.) | G16: =SUM(Berechnung!V69:X72)+Berechnung!V75 -> 0.00 € | K16: 2022-03-17 | L16: FALSE | N16: in der Fassung der ersten Änderung vom 04.10.2022 | P16: 2,800.00 € | Q16: 2,450.00 € | R16: 1,800.00 € | S16: 6.00 € | T16: 7.50 € | U16: 0.00 € | V16: 5.40 € | W16: 6.50 € | X16: 0.00 € | Y16: =P16-Q16 -> 350.00 € | Z16: 25 | AA16: 75.00 % | AB16: 50.00 % | AC16: 50.00 % | AD16: 50.00 % | AE16: 50.00 % | AF16: 0.00 % | AG16: 2 | AH16: 2.00 % | AI16: 3.00 %
B17: Eigenkapitalverzinsung (gef. Whg.) | G17: =SUM(Berechnung!V80:X81) -> 0.00 € | K17: 2023-12-01 | L17: FALSE | P17: 3,000.00 € | Q17: 3,000.00 € | R17: 2,000.00 € | S17: 6.50 € | T17: 9.00 € | U17: 12.00 € | V17: 6.00 € | W17: 8.00 € | X17: 10.00 € | Y17: 200.00 € | Z17: 35 | AA17: 100.00 % | AB17: 100.00 % | AC17: 100.00 % | AD17: 45.00 % | AE17: 30.00 % | AF17: =ROUND(100-AD17-AE17,2) -> 25.00 % | AG17: 3 | AH17: 2.00 % | AI17: 3.00 %
B18: Konditionen Finanzierung | E18: Zinssatz | F18: Tilgungssatz | G18: Annuität | K18: 2026-01-01 | L18: TRUE | P18: 2,200.00 € | Q18: 2,200.00 € | R18: 2,000.00 € | S18: 7.00 € | T18: 9.50 € | U18: 12.50 € | V18: 6.50 € | W18: 8.50 € | X18: 10.50 € | Y18: 0.00 € | Z18: 0 | AA18: 100.00 % | AB18: 100.00 % | AC18: 100.00 % | AD18: 35.00 % | AE18: 35.00 % | AF18: 30.00 % | AG18: 3 | AH18: 2.00 % | AI18: 4.00 %
B19: Freie Finanzierung Förderung | E19: =Berechnung!Q65 -> 4.0000 % | F19: =Berechnung!S65 -> 2.0000 % | G19: =SUM(E19:F19) -> 6.0000 %
B20: Förderdarlehen (Maßnahme) | E20: =Berechnung!Q61 -> 0.5000 % | F20: =Berechnung!S61 -> 2.0000 % | G20: =SUM(E20:F20) -> 2.5000 %
B21: =IF(Berechnung!D64="","-",Berechnung!D64) -> - | E21: =Berechnung!Q64 -> 0.0000 % | F21: =Berechnung!S64 -> 0.0000 % | G21: =SUM(E21:F21) -> 0.0000 %
B22: 1. Weitere Finanzierung | E22: 0.0000 % | F22: 0.0000 % | G22: =SUM(E22:F22) -> 0.0000 % | J22: Angaben | L22: Soll | M22: Ist | O22: =IF(O50=TRUE,"Daten!"&SUBSTITUTE(ADDRESS(1,COLUMN(O48),4),1,)&ROW(O48)&":"&SUBSTITUTE(ADDRESS(1,COLUMN(O48),4),1,)&ROW(O48),"Daten!"&SUBSTITUTE(ADDRESS(1,COLUMN(O23),4),1,)&ROW(O23)&":"&SUBSTITUTE(ADDRESS(1,COLUMN(O23),4),1,)&(SUMPRODUCT((O24:O46<>"")*1)+ROW(O23))) -> Daten!O23:O28 | R22: Blatt | S22: Spalte | T22: Spalte | U22: Start | V22: Ende | X22: Infotext zur Belegungsbindung
B23: 2. Weitere Finanzierung | E23: 0.0000 % | F23: 0.0000 % | G23: =SUM(E23:F23) -> 0.0000 % | J23: Objet- und Maßnahmeinformationen | O23: Aktuell gültig | R23: Sichtbarkeitsbereich für Ein- und Ausblendung von Zeilen | X23: =IF(OR(Daten!$M$83="",Daten!$M$83=0),"",IF(OR($L$17=TRUE,$L$18=TRUE),"Von den notwendigen Bindungen sind mindestens "&TEXT(IF($L$17=TRUE,AD17,AD18),"#.##0,00")&"% der WE an Berechtigte zu überlassen, welche die Einkommensgrenze des §22 (2) BbgWoFG einhalten (1. EK-Grenze)."&" Für "&TEXT(IF($L$17=TRUE,AE17,AE18),"#.##0,00")&"% der gebundenen WE darf diese Einkommensgrenze um nicht mehr als "&TEXT(AF25,"#.##")&"% überschritten werden (2. EK-Grenze) und die verbleibenden "&TEXT(IF($L$17=TRUE,AF17,AF18),"#.##0,00")&"% dürfen diese Einkommensgrenze um nicht mehr als "&TEXT(AF26,"#.##")&"% überschreiten (3. EK-Grenze).","Von den notwendigen Bindungen ist mindestens die Hälfte der WE an Berechtigte zu überlassen, welche die Einkommensgrenze des §22 (2) BbgWoFG einhalten (1. EK-Grenze)."&" Für die übrigen gebundenen WE darf diese Einkommensgrenze um nicht mehr als 20% überschritten werden (2. EK-Grenze).")) -> Von den notwendigen Bindungen sind mindestens 35,00% der WE an Berechtigte zu überlassen, welche die Einkommensgrenze des §22 (2) BbgWoFG einhalten (1. EK-Grenze). Für 35,00% der gebundenen WE darf diese Einkommensgrenze um nicht mehr als 40% überschritten werden (2. EK-Grenze) und die verbleibenden 30,00% dürfen diese Einkommensgrenze um nicht mehr als 60% überschreiten (3. EK-Grenze). | AD23: 20 | AE23: Fünftel | AF23: 0 | AG23: 1
B24: Deckungsbeitrag p. a. vor Maßnahmebeginn abzgl. BWK (Mod / Inst) | G24: =IF(Berechnung!$V$89="",0,Berechnung!$V$89) -> 0.00 € | J24: Maßnahmeart | L24: TRUE | M24: =IF(OR($M$83="",$M$83=0),FALSE,TRUE) -> TRUE | N24: =IF(L24<>M24,"i","") ->  | O24: =IF(OR(O23="",O23=$O$48),"",IF(AND(COUNTIF($O$23:O23,"<>")>$O$47,$M$3=TRUE,$O$50=TRUE),$O$48,IF(Grunddaten!B11="","",Grunddaten!B11))) -> 2014-01-01 | R24: Startseite | S24: =COLUMN(Startseite!Y1) -> 25 | T24: =SUBSTITUTE(ADDRESS(1,S24,4),1,) -> Y | U24: =ROW(Startseite!Y1) -> 1 | V24: =ROW(Startseite!Y64) -> 64 | AD24: 25 | AE24: Viertel | AF24: 20 | AG24: =IF(AND($L$17=FALSE,$L$18=FALSE),2,0) -> 0
B25: Max. Überdeckung (Neubau und Umnutzung) | G25: =Grunddaten!H48 -> 120.00 € | J25: Name | L25: TRUE | M25: =IF(Berechnung!$G$14<>"",TRUE,FALSE) -> FALSE | N25: i | O25: =IF(OR(O24="",O24=$O$48),"",IF(AND(COUNTIF($O$23:O24,"<>")>$O$47,$M$3=TRUE,$O$50=TRUE),$O$48,IF(Grunddaten!B12="","",Grunddaten!B12))) -> 2017-01-01 | R25: Berechnung | S25: =COLUMN(Berechnung!AB1) -> 28 | T25: =SUBSTITUTE(ADDRESS(1,S25,4),1,) -> AB | U25: =ROW(Berechnung!AB1) -> 1 | V25: =ROW(Berechnung!AB168) -> 168 | AD25: 50 | AE25: Hälfte | AF25: 40 | AG25: =IF(OR($L$17=TRUE,$L$18=TRUE),2,0) -> 2
B26: Maßnahmeart | C26: =J75 -> Neubau ohne Zuschuss Bindung | G26: =M75 -> TRUE | J26: Objektanschrift | L26: TRUE | M26: =IF(Berechnung!$G$15<>"",TRUE,FALSE) -> FALSE | N26: i | O26: =IF(OR(O25="",O25=$O$48),"",IF(AND(COUNTIF($O$23:O25,"<>")>$O$47,$M$3=TRUE,$O$50=TRUE),$O$48,IF(Grunddaten!B13="","",Grunddaten!B13))) -> 2020-01-01 | R26: Programmversionen | S26: =COLUMN(Programmversionen!M1) -> 13 | T26: =SUBSTITUTE(ADDRESS(1,S26,4),1,) -> M | U26: =ROW(Programmversionen!M1) -> 1 | V26: =ROW(Programmversionen!M109) -> 109 | AD26: 75 | AE26: Dreiviertel | AF26: 60 | AG26: =IF(OR($L$17=TRUE,$L$18=TRUE),3,0) -> 3
C27: Neubau mit Zuschuss Bindung | G27: FALSE | J27: Gemeinde gemäß Anlage 3 der RL | L27: TRUE | M27: =IF(AND(Berechnung!$K$17<>"",OR(LEFT(Berechnung!$K$17,1)="J",LEFT(Berechnung!$K$17,1)="N")),TRUE,FALSE) -> FALSE | N27: i | O27: =IF(OR(O26="",O26=$O$48),"",IF(AND(COUNTIF($O$23:O26,"<>")>$O$47,$M$3=TRUE,$O$50=TRUE),$O$48,IF(Grunddaten!B14="","",Grunddaten!B14))) -> 2023-01-01 | R27: Grunddaten | S27: =COLUMN(Grunddaten!K1) -> 11 | T27: =SUBSTITUTE(ADDRESS(1,S27,4),1,) -> K | U27: =ROW(Grunddaten!K1) -> 1 | V27: =ROW(Grunddaten!K98) -> 98 | AD27: 100 | AE27: Gesamt | AF27: 80 | AG27: 0
C28: Umnutzung / Wiederherstellung ohne Zuschuss Bindung | G28: FALSE | J28: Anzahl der Wohneinheiten (WE) | L28: TRUE | M28: =IF(AND(Berechnung!$K$18>0,ISNUMBER(Berechnung!$K$18)),TRUE,FALSE) -> FALSE | N28: i | O28: =IF(OR(O27="",O27=$O$48),"",IF(AND(COUNTIF($O$23:O27,"<>")>$O$47,$M$3=TRUE,$O$50=TRUE),$O$48,IF(Grunddaten!B15="","",Grunddaten!B15))) -> 2026-01-01 | X28: =IF(OR(Daten!$M$83="",Daten!$M$83=0),"",IF(OR($L$17=TRUE,$L$18=TRUE),"Die Bindungen orientieren sich an den Einkommensgrenzen des §22 (2) BbgWoFG, unter welche mindestens "&TEXT(IF($L$17=TRUE,AD17,AD18),"#.##0,00")&"% der WE direkt fallen (1. EK-Grenze). In der Regel gilt für "&TEXT(IF($L$17=TRUE,AE17,AE18),"#.##0,00")&"% der WE diese Einkommensgrenze zzgl. "&TEXT(AF25,"#.##")&"% (2. EK-Grenze) und für die verbleibenden "&TEXT(IF($L$17=TRUE,AF17,AF18),"#.##0,00")&"% gilt die Einkommensgrenze zzgl. "&TEXT(AF26,"#.##")&"% (3. EK-Grenze).","Von den notwendigen Bindungen ist mindestens die Hälfte der WE an Berechtigte zu überlassen, welche die Einkommensgrenze des §22 (2) BbgWoFG einhalten (1. EK-Grenze)."&" Für die übrigen gebundenen WE darf diese Einkommensgrenze um nicht mehr als 20% überschritten werden (2. EK-Grenze).")) -> Die Bindungen orientieren sich an den Einkommensgrenzen des §22 (2) BbgWoFG, unter welche mindestens 35,00% der WE direkt fallen (1. EK-Grenze). In der Regel gilt für 35,00% der WE diese Einkommensgrenze zzgl. 40% (2. EK-Grenze) und für die verbleibenden 30,00% gilt die Einkommensgrenze zzgl. 60% (3. EK-Grenze).
C29: Umnutzung / Wiederherstellung mit Zuschuss Bindung | G29: FALSE | J29: Gesamtwohnfläche | L29: TRUE | M29: =IF(AND(Berechnung!$K$19>0,ISNUMBER(Berechnung!$K$19)),TRUE,FALSE) -> FALSE | N29: i | O29: =IF(OR(O28="",O28=$O$48),"",IF(AND(COUNTIF($O$23:O28,"<>")>$O$47,$M$3=TRUE,$O$50=TRUE),$O$48,IF(Grunddaten!B16="","",Grunddaten!B16))) -> 
C30: Modernisierung / Instandsetzung ohne Zuschuss Bindung | G30: FALSE | J30: Grundstücksgröße | L30: TRUE | M30: =IF(AND(Berechnung!$K$20>0,ISNUMBER(Berechnung!$K$20)),TRUE,FALSE) -> FALSE | N30: i | O30: =IF(OR(O29="",O29=$O$48),"",IF(AND(COUNTIF($O$23:O29,"<>")>$O$47,$M$3=TRUE,$O$50=TRUE),$O$48,IF(Grunddaten!B17="","",Grunddaten!B17))) ->  | R30: Position | S30: Start | U30: Änderung | V30: 30
C31: Modernisierung / Instandsetzung mit Zuschuss Bindung | G31: FALSE | J31: Inanspruchnaahme Aufzugsförderung | L31: =IF(AND(OR($L$16=TRUE,$L$17=TRUE,$L$18=TRUE),$M$81=FALSE),TRUE,FALSE) -> TRUE | M31: =IF(L31=FALSE,FALSE,IF(AND(Berechnung!$K$21<>"",OR(LEFT(Berechnung!$K$21,1)="J",LEFT(Berechnung!$K$21,1)="N")),TRUE,FALSE)) -> FALSE | N31: i | O31: =IF(OR(O30="",O30=$O$48),"",IF(AND(COUNTIF($O$23:O30,"<>")>$O$47,$M$3=TRUE,$O$50=TRUE),$O$48,IF(Grunddaten!B18="","",Grunddaten!B18))) ->  | R31: Links | S31: 120 | T31: 120 | U31: 100 | V31: 100
C32: Solo-Förderung Aufzugsanbau | G32: FALSE | J32: Erreichter Standard "Klimabaustein" | L32: =Berechnung!$AB$22 -> FALSE | M32: =IF(L32=FALSE,FALSE,IF(AND(Berechnung!$K$22<>""),TRUE,FALSE)) -> FALSE | O32: =IF(OR(O31="",O31=$O$48),"",IF(AND(COUNTIF($O$23:O31,"<>")>$O$47,$M$3=TRUE,$O$50=TRUE),$O$48,IF(Grunddaten!B19="","",Grunddaten!B19))) ->  | R32: Rechts | S32: 140 | T32: 150 | U32: 240 | V32: 240
B33: Richtlinenkonformität in allen Punkten | G33: =IF(L71=M71,TRUE,FALSE) -> FALSE | J33: Fördergegenstand "Klimabaustein" | L33: =IF(AND($M$3=TRUE,Berechnung!$AB$22=TRUE,$R$92=TRUE),TRUE,FALSE) -> FALSE | M33: =IF(L33=FALSE,FALSE,IF(AND(Berechnung!$Q$22<>""),TRUE,FALSE)) -> FALSE | O33: =IF(OR(O32="",O32=$O$48),"",IF(AND(COUNTIF($O$23:O32,"<>")>$O$47,$M$3=TRUE,$O$50=TRUE),$O$48,IF(Grunddaten!B20="","",Grunddaten!B20))) ->  | R33: Funktionalität | S33: Offset? | T33: Zulässig? | U33: Anzeige? | V33: Zähler?
B34: Berechnung durchführen | G34: =IF(L71=M71,TRUE,FALSE) -> FALSE | J34: Aufteilung Quoten Belegungsbindungen | L34: =IF(OR($L$17=TRUE,$L$18=TRUE),TRUE,FALSE) -> TRUE | M34: =IF(AND($L$17=FALSE,$L$18=FALSE),FALSE,IF(COUNTIF(Berechnung!AF13:AF14,FALSE)>0,FALSE,TRUE)) -> TRUE | O34: =IF(OR(O33="",O33=$O$48),"",IF(AND(COUNTIF($O$23:O33,"<>")>$O$47,$M$3=TRUE,$O$50=TRUE),$O$48,IF(Grunddaten!B21="","",Grunddaten!B21))) ->  | R34: Startseite
J35: Aufteilung der Wohneinheiten / Einnahmen | O35: =IF(OR(O34="",O34=$O$48),"",IF(AND(COUNTIF($O$23:O34,"<>")>$O$47,$M$3=TRUE,$O$50=TRUE),$O$48,IF(Grunddaten!B22="","",Grunddaten!B22))) ->  | R35: Berechnung | S35: =IF(U35=TRUE,$S$31+((V35-1)*$V$30),0) -> 0 | T35: TRUE | U35: =IF(AND(T35=TRUE,OR($H$2=FALSE,$M$3=TRUE)),TRUE,FALSE) -> FALSE | V35: =IF(U35=FALSE,0,COUNTIF($U35:U$35,TRUE)) -> 0
B36: Nebenrechnungen zur Ermittlung Förderhöhe | E36: EK / Zuschüsse unzureichend? | G36: =IF(Berechnung!$V$44+Berechnung!$V$55>=Berechnung!$I$44,FALSE,TRUE) -> FALSE | J36: WE / m² für 1. EK-Grenze | L36: TRUE | M36: =IF(AND(Berechnung!$AD$136=TRUE,Berechnung!$AD$154=TRUE,Berechnung!$AF$13=TRUE),TRUE,FALSE) -> TRUE | N36: =IF(L36<>M36,"i","") ->  | O36: =IF(OR(O35="",O35=$O$48),"",IF(AND(COUNTIF($O$23:O35,"<>")>$O$47,$M$3=TRUE,$O$50=TRUE),$O$48,IF(Grunddaten!B23="","",Grunddaten!B23))) ->  | R36: Information | S36: =IF(U36=TRUE,$S$31+((V36-1)*$V$30),0) -> 0 | T36: TRUE | U36: =IF(AND(T36=TRUE,OR($H$2=FALSE,$M$3=TRUE)),TRUE,FALSE) -> FALSE | V36: =IF(U36=FALSE,0,COUNTIF($U$35:U36,TRUE)) -> 0
B37: KoFi | E37: Einnahmen/Ausgaben | J37: WE / m² für 2. EK-Grenze | L37: TRUE | M37: =IF(AND(Berechnung!$AE$136=TRUE,Berechnung!$AE$154=TRUE),TRUE,FALSE) -> TRUE | O37: =IF(OR(O36="",O36=$O$48),"",IF(AND(COUNTIF($O$23:O36,"<>")>$O$47,$M$3=TRUE,$O$50=TRUE),$O$48,IF(Grunddaten!B24="","",Grunddaten!B24))) ->  | R37: Grunddaten | S37: =IF(U37=TRUE,$S$32+((V37-1)*$V$30),0) -> 0 | T37: TRUE | U37: =IF(AND(T37=TRUE,OR($H$2=FALSE,$M$3=TRUE)),TRUE,FALSE) -> FALSE | V37: =IF(U37=FALSE,0,COUNTIF($U$37:U37,TRUE)) -> 0
B38: Gesamtkosten (IST) | D38: =G10-H81-D128 -> 0.00 € | E38: Summe Einnahmen p. a. | G38: =G14 -> 0.00 € | J38: =IF(OR($L$17=TRUE,$L$18=TRUE),"WE / m² für 3. EK-Grenze","WE / m² nicht belegungsgebunden") -> WE / m² für 3. EK-Grenze | L38: TRUE | M38: =IF(AND(Berechnung!$AF$136=TRUE,Berechnung!$AF$154=TRUE),TRUE,FALSE) -> TRUE | O38: =IF(OR(O37="",O37=$O$48),"",IF(AND(COUNTIF($O$23:O37,"<>")>$O$47,$M$3=TRUE,$O$50=TRUE),$O$48,IF(Grunddaten!B25="","",Grunddaten!B25))) ->  | R38: Versionen | S38: =IF(U38=TRUE,$S$32+((V38-1)*$V$30),0) -> 0 | T38: TRUE | U38: =IF(AND(T38=TRUE,OR($H$2=FALSE,$M$3=TRUE)),TRUE,FALSE) -> FALSE | V38: =IF(U38=FALSE,0,COUNTIF($U$37:U38,TRUE)) -> 0
B39: Eigenleistungen | D39: =G11-H84 -> 0.00 € | E39: Kosten aus EL | G39: 0.00 € | J39: Summe WE und m² gesamt | L39: TRUE | M39: =IF(AND(SUM(Berechnung!J27:J29)=Berechnung!K18,SUM(Berechnung!L27:L29)=Berechnung!K19),TRUE,FALSE) -> TRUE | O39: =IF(OR(O38="",O38=$O$48),"",IF(AND(COUNTIF($O$23:O38,"<>")>$O$47,$M$3=TRUE,$O$50=TRUE),$O$48,IF(Grunddaten!B26="","",Grunddaten!B26))) -> 
B40: Zuschüsse | D40: =MAX(0,G13-H101-D128) -> 0.00 € | E40: Kosten aus Zuschüssen | G40: 0.00 € | J40: Mit gefördertem Aufzug erreichbare WE | L40: =IF(AND(L16=TRUE,M31=TRUE,Berechnung!K21="Ja"),TRUE,FALSE) -> FALSE | M40: =IF(L40=FALSE,FALSE,IF(AND(Berechnung!$J$34<>"",Berechnung!$J$34<=Berechnung!$K$18),TRUE,FALSE)) -> FALSE | O40: =IF(OR(O39="",O39=$O$48),"",IF(AND(COUNTIF($O$23:O39,"<>")>$O$47,$M$3=TRUE,$O$50=TRUE),$O$48,IF(Grunddaten!B27="","",Grunddaten!B27))) -> 
B41: =B21 -> - | D41: =IF(Berechnung!L64="",0,Berechnung!L64) -> 0.00 € | E41: => Kapitaldienst p. a. | G41: =ROUND(D41*G21/100,2) -> 0.00 € | J41: Davon durch Aufzug barrierefrei erreichbare WE | L41: =L40 -> FALSE | M41: =IF(L41=FALSE,FALSE,IF(AND(Berechnung!$J$35<>"",Berechnung!$J$35<=Berechnung!$J$34),TRUE,FALSE)) -> FALSE | O41: =IF(OR(O40="",O40=$O$48),"",IF(AND(COUNTIF($O$23:O40,"<>")>$O$47,$M$3=TRUE,$O$50=TRUE),$O$48,IF(Grunddaten!B28="","",Grunddaten!B28))) ->  | R41: Berechnung
B42: =B22 -> 1. Weitere Finanzierung | D42: 0.00 € | E42: => Kapitaldienst p. a. | G42: 0.00 € | J42: Miethöhe für WE 1. EK-Grenze | L42: =IF(C87>0,TRUE,FALSE) -> TRUE | M42: =IF(L42=FALSE,FALSE,IF(OR(AND(M3=TRUE,L96=TRUE),AND(Berechnung!V27>=0,ISNUMBER(Berechnung!V27),Berechnung!V27<=Daten!D95)),TRUE,FALSE)) -> FALSE | N42: i | O42: =IF(OR(O41="",O41=$O$48),"",IF(AND(COUNTIF($O$23:O41,"<>")>$O$47,$M$3=TRUE,$O$50=TRUE),$O$48,IF(Grunddaten!B29="","",Grunddaten!B29))) ->  | R42: Startseite | S42: =IF(U42=TRUE,$T$31+((V42-1)*$V$30),0) -> 120 | T42: TRUE | U42: =T42 -> TRUE | V42: =IF(U42=FALSE,0,COUNTIF($U$42:U42,TRUE)) -> 1
B43: =B23 -> 2. Weitere Finanzierung | D43: 0.00 € | E43: => Kapitaldienst p. a. | G43: 0.00 € | J43: Miethöhe für WE 2. EK-Grenze | L43: =IF(C88>0,TRUE,FALSE) -> TRUE | M43: =IF(L43=FALSE,FALSE,IF(OR(AND(M3=TRUE,L96=TRUE),AND(Berechnung!V28>=0,ISNUMBER(Berechnung!V28),Berechnung!V28<=Daten!D97)),TRUE,FALSE)) -> FALSE | N43: i | O43: =IF(OR(O42="",O42=$O$48),"",IF(AND(COUNTIF($O$23:O42,"<>")>$O$47,$M$3=TRUE,$O$50=TRUE),$O$48,IF(Grunddaten!B30="","",Grunddaten!B30))) ->  | R43: Information | S43: =IF(U43=TRUE,$T$31+((V43-1)*$V$30),0) -> 150 | T43: TRUE | U43: =IF(T43=TRUE,TRUE,FALSE) -> TRUE | V43: =IF(U43=FALSE,0,COUNTIF($U$42:U43,TRUE)) -> 2
B44: Notwendige Mittel zur Schließung der Gesamtfinanzierung | D44: =IF(G36=FALSE,0,ROUNDUP(MAX(0,D38-SUM(D39:D43)),E73)) -> 0.00 € | E44: bestehender Kapitaldienst p. a. | G44: =G15 -> 0.00 € | J44: =IF(OR($L$17=TRUE,$L$18=TRUE),"Miethöhe für WE 3. EK-Grenze","Miethöhe für WE nicht belegungsgebunden") -> Miethöhe für WE 3. EK-Grenze | L44: =IF(OR(OR($L$17=FALSE,AND($L$17=TRUE,$C$89>0)),OR($L$18=FALSE,AND($L$18=TRUE,$C$89>0))),TRUE,FALSE) -> TRUE | M44: =IF($L$44=FALSE,FALSE,IF(AND($L$17=FALSE,Berechnung!V29>=0,ISNUMBER(Berechnung!V29)),TRUE,IF(OR(AND(M3=TRUE,L96=TRUE),AND(Berechnung!V29>=0,ISNUMBER(Berechnung!V29),Berechnung!V29<=Daten!D99)),TRUE,FALSE))) -> FALSE | N44: i | O44: =IF(OR(O43="",O43=$O$48),"",IF(AND(COUNTIF($O$23:O43,"<>")>$O$47,$M$3=TRUE,$O$50=TRUE),$O$48,IF(Grunddaten!B31="","",Grunddaten!B31))) ->  | R44: Versionen | S44: =IF(U44=TRUE,$T$31+((V44-1)*$V$30),0) -> 0 | T44: TRUE | U44: =IF(AND(T44=TRUE,$M$3=TRUE),TRUE,FALSE) -> FALSE | V44: =IF(U44=FALSE,0,COUNTIF($U$42:U44,TRUE)) -> 0
E45: Bewirtschaftung / Sonstige p. a. | G45: =G16 -> 0.00 € | J45: Sonstige Einnahmen | L45: =IF(Berechnung!V31="",FALSE,TRUE) -> FALSE | M45: =IF(L45=FALSE,FALSE,IF(OR(Berechnung!V31="",AND(Berechnung!V31>=0,ISNUMBER(Berechnung!V31))),TRUE,FALSE)) -> FALSE | O45: =IF(OR(O44="",O44=$O$48),"",IF(AND(COUNTIF($O$23:O44,"<>")>$O$47,$M$3=TRUE,$O$50=TRUE),$O$48,IF(Grunddaten!B32="","",Grunddaten!B32))) ->  | R45: Grunddaten | S45: =IF(U45=TRUE,$T$31+((V45-1)*$V$30),0) -> 0 | T45: TRUE | U45: =IF(AND(T45=TRUE,$M$3=TRUE),TRUE,FALSE) -> FALSE | V45: =IF(U45=FALSE,0,COUNTIF($U$42:U45,TRUE)) -> 0
B46: Freie Finanzierung geförd. Whg. | D46: =IF(G34=FALSE,0,MAX(-D44,MIN(D44,D38-SUM(D39:D40,ROUNDUP(D47,-2),D41:D43)))) -> 0.00 € | E46: => Kapitaldienst p. a. | G46: =MAX(0,ROUND(D46*G19/100,2)) -> 0.00 € | H46: <= Zielwertsuche | J46: Kosten / Finanzierung | O46: =IF(OR(O45="",O45=$O$48),"",IF(AND(COUNTIF($O$23:O45,"<>")>$O$47,$M$3=TRUE,$O$50=TRUE),$O$48,IF(Grunddaten!B33="","",Grunddaten!B33))) ->  | R46: Ausdruck / Export | S46: =IF(U46=TRUE,$T$31+((V46-1)*$V$30),0) -> 0 | T46: TRUE | U46: =IF(AND(T46=TRUE,$M$3=TRUE),TRUE,FALSE) -> FALSE | V46: =IF(U46=FALSE,0,COUNTIF($U$42:U46,TRUE)) -> 0
B47: Förderdarlehen | D47: =IF(OR(G34=FALSE,G20>G19),0,MAX(-D44,MIN(D44,ROUND(D53*D56,2)))) -> 0.00 € | E47: => Kapitaldienst p. a. | G47: =ROUND((M115+H113)*G20/100,2) -> 0.00 € | J47: =IF(OR(M79=TRUE,M80=TRUE,M81=TRUE),"Baukosten","Grundstückskosten") -> Grundstückskosten | L47: TRUE | M47: =IF(L47=FALSE,FALSE,IF(OR(AND(M79=FALSE,M80=FALSE,Berechnung!I40=""),AND(Berechnung!I40>=0,ISNUMBER(Berechnung!I40))),TRUE,FALSE)) -> TRUE | N47: =IF(L47<>M47,"i","") ->  | O47: =COUNTIF(Grunddaten!$B$11:$B$35,"<>") -> 5 | R47: Hilfe | S47: =IF(U47=TRUE,$T$32+((V47-1)*$V$30),0) -> 150 | T47: TRUE | U47: =T47 -> TRUE | V47: =IF(U47=FALSE,0,COUNTIF($U$47:U47,TRUE)) -> 1
B48: Summe Finanzierung | D48: =SUM(D39:D43,D46:D47) -> 0.00 € | E48: EK-Verzinsung | G48: =G17 -> 0.00 € | J48: =IF(OR(M79=TRUE,M80=TRUE,M81=TRUE),"Baunebenkosten","Erwerbskosten") -> Erwerbskosten | L48: TRUE | M48: =IF(L48=FALSE,FALSE,IF(OR(Berechnung!I41="",AND(Berechnung!I41>=0,ISNUMBER(Berechnung!I41))),TRUE,FALSE)) -> TRUE | O48: Benutzerdefiniert | R48: Bereinigung | S48: =IF(U48=TRUE,$T$32+((V48-1)*$V$30),0) -> 180 | T48: TRUE | U48: =T48 -> TRUE | V48: =IF(U48=FALSE,0,COUNTIF($U$47:U48,TRUE)) -> 2
B49: Maximal zulässige Aufrundung pro m² | D49: =IF(OR(D53="",D53=0),0,99.99/D53) -> 0.00 € | E49: Summe Ausgaben p. a. | G49: =SUM(G39:G48) -> 0.00 € | J49: =IF(AND(M79=FALSE,M80=FALSE,M81=FALSE),"Baukosten","-") -> Baukosten | L49: =IF(AND(M79=FALSE,M80=FALSE,M81=FALSE),TRUE,FALSE) -> TRUE | M49: =IF(L49=FALSE,FALSE,IF(OR(AND(OR(M79=TRUE,M80=TRUE),Berechnung!I42=""),AND(Berechnung!I42>=0,ISNUMBER(Berechnung!I42))),TRUE,FALSE)) -> FALSE | N49: i | O49: =IF(Berechnung!G69="","-",Berechnung!G69) -> - | R49: Backups | S49: =IF(U49=TRUE,$T$32+((V49-1)*$V$30),0) -> 0 | T49: TRUE | U49: =IF(AND(T49=TRUE,OR($M$3=TRUE)),TRUE,FALSE) -> FALSE | V49: =IF(U49=FALSE,0,COUNTIF($U$47:U49,TRUE)) -> 0
B50: Puffer Förderdarlehen pro m² | D50: =IF(OR(D56="",D56=0,G54=FALSE),0,ROUND(G56-D56,2)) -> 0.00 € | E50: Über- / Unterdeckung | G50: =ROUND(G38-G49,2) -> 0.00 € | J50: =IF(AND(M79=FALSE,M80=FALSE,M81=FALSE),"Baunebenkosten","-") -> Baunebenkosten | L50: =IF(AND(M79=FALSE,M80=FALSE,M81=FALSE),TRUE,FALSE) -> TRUE | M50: =IF(L50=FALSE,FALSE,IF(OR(Berechnung!I43="",AND(Berechnung!I43>=0,ISNUMBER(Berechnung!I43))),TRUE,FALSE)) -> TRUE | O50: =IF(COUNTIF(Grunddaten!T86:T91,TRUE)>0,TRUE,FALSE) -> FALSE | R50: Neuberechnung | S50: =IF(U50=TRUE,$T$32+((V50-1)*$V$30),0) -> 0 | T50: TRUE | U50: =IF(AND(T50=TRUE,OR($M$3=TRUE)),TRUE,FALSE) -> FALSE | V50: =IF(U50=FALSE,0,COUNTIF($U$47:U50,TRUE)) -> 0
B51: Rundungsdifferenz Förderdarlehen | D51: =IF(OR(D53=0,D53=""),0,ROUNDUP(D47,-2)/D53-D56) -> 0.00 € | E51: Freie Finanzierung pro m² | G51: =IF(OR(D46<0,D53=0,D53=""),0,D46/D53) -> 0.00 € | J51: Eigenkapital | L51: =IF(Berechnung!V40="",FALSE,TRUE) -> FALSE | M51: =IF(AND(Berechnung!V40>=0,ISNUMBER(Berechnung!V40)),TRUE,FALSE) -> FALSE
B52: Werte für Zielwertermittlung (alle doppelt umrahmten Felder - auch die oberhalb) | J52: Selbsthilfe | L52: =IF(Berechnung!V41="",FALSE,TRUE) -> FALSE | M52: =IF(L52=FALSE,FALSE,IF(AND(Berechnung!V41>=0,ISNUMBER(Berechnung!V41)),TRUE,FALSE)) -> FALSE
B53: Wohnfläche | D53: =G8 -> 0.00 m² | F53: Prüfung max. Überschuss | G53: =IF(ROUNDUP($G$50,0)<=ROUNDUP($D$55+IF(OR($M$79=TRUE,$M$80=TRUE),100,10),0),TRUE,FALSE) -> TRUE | J53: Wert des Baugrundstücks | L53: =IF(Berechnung!V42="",FALSE,TRUE) -> FALSE | M53: =IF(L53=FALSE,FALSE,IF(AND(Berechnung!V42>=0,ISNUMBER(Berechnung!V42)),TRUE,FALSE)) -> FALSE | O53: Höchstbeträge
B54: Max. Förderung pro m² | D54: =$G$9-IF(AND($L$16=TRUE,$R$90=TRUE,$U$5=TRUE),$R$85,IF(AND($L$17=TRUE,$G$72=TRUE,Grunddaten!$H$40=TRUE),G74,0)) -> 2,200.00 € | F54: Prüfung Länge Zielwert (< 15) | G54: =IF(LEN(TRUNC($D$56))>14,FALSE,TRUE) -> TRUE | J54: Wert vorhandener Gebäudeteile | L54: =IF(OR(AND(M77=FALSE,M78=FALSE),Berechnung!V43=""),FALSE,TRUE) -> FALSE | M54: =IF(L54=FALSE,FALSE,IF(AND(Berechnung!V43>=0,ISNUMBER(Berechnung!V43)),TRUE,FALSE)) -> FALSE | O54: Ohne Zuschuss | R54: Grunddaten
B55: Max. Überschuss | D55: =IF(OR(M79=TRUE,M80=TRUE),G24,IF(G32=TRUE,G50,G25)) -> 120.00 € | F55: Prüfung negative Förderung | G55: =IF(D56<1,FALSE,TRUE) -> FALSE | J55: Eigenleistungen (Gesamt) | L55: TRUE | M55: =IF(OR(L55=FALSE,Berechnung!I44=0,AND(D84>0,Berechnung!I44=0)),FALSE,IF(OR(Berechnung!I44=0,AND(D84>0,Berechnung!V44=0),Berechnung!I44=""),FALSE,IF(OR(AND(M3=TRUE,L86=TRUE),ROUND(Berechnung!V44*100/Berechnung!I44,2)>=D84),TRUE,FALSE))) -> FALSE | N55: i | O55: =IF(COUNTIF($L$12:$L$19,TRUE)<>1,MAX($P$12:$P$19),INDEX($P$12:$P$19,MATCH(TRUE,$L$12:$L$19,0),1)) -> 2,200.00 € | R55: Startseite | S55: =IF(U55=TRUE,$U$31+((V55-1)*$V$30),0) -> 100 | T55: TRUE | U55: =T55 -> TRUE | V55: =IF(U55=FALSE,0,COUNTIF($U$55:U55,TRUE)) -> 1
B56: Förderung pro m² (veränderbar) | D56: 0.00 € | E56: <= Zielwertsuche | G56: =IF(D53=0,0,MIN(D54,ROUND(D44/D53,2))) -> 0.00 € | J56: Weitere Zuschüsse | L56: =IF(AND(Berechnung!$V$50="",Berechnung!$V$51=""),FALSE,TRUE) -> FALSE | M56: =IF(L56=FALSE,FALSE,IF(OR(AND(Berechnung!$V$50>=0,ISNUMBER(Berechnung!$V$50)),AND(Berechnung!$V$51>=0,ISNUMBER(Berechnung!$V$51))),TRUE,FALSE)) -> FALSE | O56: Mit Zuschuss | R56: Information | S56: =IF(U56=TRUE,$U$31+((V56-1)*$V$30),0) -> 130 | T56: TRUE | U56: =T56 -> TRUE | V56: =IF(U56=FALSE,0,COUNTIF($U$55:U56,TRUE)) -> 2
J57: Darlehen / laufende Aufwendungen | O57: =IF(COUNTIF($L$12:$L$19,TRUE)<>1,MAX($Q$12:$Q$19),INDEX($Q$12:$Q$19,MATCH(TRUE,$L$12:$L$19,0),1)) -> 2,200.00 € | R57: Versionen | S57: =IF(U57=TRUE,$U$31+((V57-1)*$V$30),0) -> 160 | T57: TRUE | U57: =T57 -> TRUE | V57: =IF(U57=FALSE,0,COUNTIF($U$55:U57,TRUE)) -> 3
J58: Kapitaldienst aus bereits bestehenden Finanzierungen | L58: =IF(Berechnung!V60<>"",TRUE,FALSE) -> FALSE | M58: =IF(L58=FALSE,FALSE,IF(ISNUMBER(Berechnung!V60),TRUE,FALSE)) -> FALSE | N58: =IF(L58<>M58,"i","") ->  | O58: Mod / Inst | R58: Berechnung | S58: =IF(U58=TRUE,$U$31+((V58-1)*$V$30),0) -> 190 | T58: TRUE | U58: =T58 -> TRUE | V58: =IF(U58=FALSE,0,COUNTIF($U$55:U58,TRUE)) -> 4
B59: Nebenrechnung bei Kürzung Förderdarlehen Mod / Inst | J59: Tilgungssatz Förderdarlehen | L59: TRUE | M59: =IF(AND(ISNUMBER(Berechnung!S61),Berechnung!S61>=Grunddaten!$H$58),TRUE,FALSE) -> TRUE | O59: =IF(COUNTIF($L$12:$L$19,TRUE)<>1,MAX($R$12:$R$19),INDEX($R$12:$R$19,MATCH(TRUE,$L$12:$L$19,0),1)) -> 2,000.00 € | R59: Datenpflege | S59: =IF(U59=TRUE,$U$31+((V59-1)*$V$30),0) -> 220 | T59: TRUE | U59: =IF(AND(T59=TRUE,$D$3=TRUE,Grunddaten!$G$1=FALSE),TRUE,FALSE) -> TRUE | V59: =IF(U59=FALSE,0,COUNTIF($U$55:U59,TRUE)) -> 5
B60: Anzeige Erläuterungen wegen Kürzung BD bei ModInst | G60: =IF(AND($M$79=FALSE,$M$80=FALSE),FALSE,IF(OR(AND(G30=FALSE,G31=FALSE),G34=FALSE,AND(D56=0,G50>D55),D46<=0),FALSE,IF(ROUND(D56,2)<ROUND(B64,2),TRUE,FALSE))) -> FALSE | J60: Zinssatz Sonstige vorgesehene Finanzierung | L60: =IF(D41>0,TRUE,FALSE) -> FALSE | M60: =IF(L60=FALSE,FALSE,IF(AND(Berechnung!Q64>=0,ISNUMBER(Berechnung!Q64)),TRUE,FALSE)) -> FALSE | O60: Zuschuss Bindung | R60: Sicherung | S60: =IF(U60=TRUE,$U$32+((V60-1)*$V$30),0) -> 0 | T60: TRUE | U60: =IF(AND(T60=TRUE,$D$3=TRUE,Grunddaten!$G$1=TRUE),TRUE,FALSE) -> FALSE | V60: =IF(U60=FALSE,0,COUNTIF($U$60:U60,TRUE)) -> 0
B61: Maximales Förderdarlehen (Maßnahme) | D61: =IF(G20>G19,0,IF(D53*D54>D44,D44,D53*D54)) -> 0.00 € | E61: => Kapitaldienst | G61: =ROUND(D61*$G$20/100,2) -> 0.00 € | J61: Tilgungssatz Sonstige vorgesehene Finanzierung | L61: =L60 -> FALSE | M61: =IF(L61=FALSE,FALSE,IF(AND(Berechnung!S64>=0,ISNUMBER(Berechnung!S64)),TRUE,FALSE)) -> FALSE | O61: =IF(COUNTIF($L$12:$L$19,TRUE)<>1,MAX($Y$12:$Y$19),INDEX($Y$12:$Y$19,MATCH(TRUE,$L$12:$L$19,0),1)) -> 0.00 €
B62: Maximales Förderdarlehen (Aufzug) | D62: =IF($H$77=FALSE,0,$H$113) -> 0.00 € | E62: => Kapitaldienst | G62: =ROUND(D62*$G$20/100,2) -> 0.00 € | J62: Zinssatz Restfinanzierung | L62: TRUE | M62: =IF(AND(Berechnung!$Q$65>=0,ISNUMBER(Berechnung!$Q$65),Berechnung!$D$67=""),TRUE,FALSE) -> TRUE | O62: Bindungsquote I
B63: Notwendiges Fremddarlehen | D63: =D38-D39-D40-D61 -> 0.00 € | E63: => Kapitaldienst | G63: =ROUND(D63*$G$19/100,2) -> 0.00 € | J63: Tilgungssatz Restfinanzierung | L63: TRUE | M63: =IF(AND(Berechnung!$S$65>=0,ISNUMBER(Berechnung!$S$65),Berechnung!$D$67=""),TRUE,FALSE) -> TRUE | O63: =IF(COUNTIF($L$12:$L$19,TRUE)<>1,MAX($AA$12:$AA$19),INDEX($AA$12:$AA$19,MATCH(TRUE,$L$12:$L$19,0),1)) -> 100.00 % | R63: Programmversionen
B64: =IF(OR(G8="",G8=0),0,D61/G8) -> 0.00 € | C64: pro m² | F64: Über- / Unterdeckung bei voller Förderung | G64: =G38-SUM(G44,G48,G61:G63,G45) -> 0.00 € | J64: Bewirtschaftungskosten | O64: Bindungsquote II | R64: Startseite | S64: =IF(U64=TRUE,$V$31+((V64-1)*$V$30),0) -> 100 | T64: TRUE | U64: =T64 -> TRUE | V64: =IF(U64=FALSE,0,COUNTIF($U$64:U64,TRUE)) -> 1
J65: Zusätzliche Aufzüg(e) vorhanden | L65: TRUE | M65: =IF(L65=FALSE,FALSE,IF(OR(LEFT(Berechnung!G72,1)="J",LEFT(Berechnung!G72,1)="N"),TRUE,FALSE)) -> TRUE | N65: =IF(L65<>M65,"i","") ->  | O65: =IF(COUNTIF($L$12:$L$19,TRUE)<>1,MAX($AB$12:$AB$19),INDEX($AB$12:$AB$19,MATCH(TRUE,$L$12:$L$19,0),1)) -> 100.00 % | R65: Information | S65: =IF(U65=TRUE,$V$31+((V65-1)*$V$30),0) -> 130 | T65: TRUE | U65: =T65 -> TRUE | V65: =IF(U65=FALSE,0,COUNTIF($U$64:U65,TRUE)) -> 2
J66: Anzahl Stellplätze | L66: =IF(AND($L$18=TRUE,OR($M$4=TRUE,$M$5=TRUE,Berechnung!$G$74="Nein")),FALSE,TRUE) -> FALSE | M66: =IF(L66=FALSE,FALSE,IF(AND(OR(Berechnung!V31="",Berechnung!V31=0),Berechnung!G70=""),TRUE,IF(AND(Berechnung!G70<>"",ISNUMBER(Berechnung!G70),Berechnung!G70>=0),TRUE,FALSE))) -> FALSE | N66: =IF(L66<>M66,"i","") ->  | O66: Bindungsquote III | R66: Grunddaten | S66: =IF(U66=TRUE,$V$31+((V66-1)*$V$30),0) -> 160 | T66: TRUE | U66: =T66 -> TRUE | V66: =IF(U66=FALSE,0,COUNTIF($U$64:U66,TRUE)) -> 3
B67: Werte für Berechnung | G67: Zuschuss Bindung | J67: Anzahl Garagen | L67: =L66 -> FALSE | M67: =IF(L67=FALSE,FALSE,IF(AND(OR(Berechnung!V31="",Berechnung!V31=0),Berechnung!G71=""),TRUE,IF(AND(Berechnung!G71<>"",ISNUMBER(Berechnung!G71),Berechnung!G71>=0),TRUE,FALSE))) -> FALSE | N67: =IF(L67<>M67,"i","") ->  | O67: =IF(COUNTIF($L$12:$L$19,TRUE)<>1,MAX($AC$12:$AC$19),INDEX($AC$12:$AC$19,MATCH(TRUE,$L$12:$L$19,0),1)) -> 100.00 % | R67: Berechnung | S67: =IF(U67=TRUE,$V$31+((V67-1)*$V$30),0) -> 190 | T67: TRUE | U67: =T67 -> TRUE | V67: =IF(U67=FALSE,0,COUNTIF($U$64:U67,TRUE)) -> 4
B68: Förderhöhe abhängig vom Vorhaben | G68: Maximaler Zuschuss | J68: Objektwirtschaftlichkeit (Alt) | N68: =IF(L69<>M69,"i","") ->  | O68: Einkommensgrenzen | R68: Datenpflege | S68: =IF(U68=TRUE,$V$31+((V68-1)*$V$30),0) -> 220 | T68: TRUE | U68: =IF(AND(T68=TRUE,D3=TRUE),TRUE,FALSE) -> TRUE | V68: =IF(U68=FALSE,0,COUNTIF($U$64:U68,TRUE)) -> 5
B69: Max. Höhe Förderdarlehen | D69: =D72*D53 -> 0.00 € | E69: Sicherheitspuffer für Überschuss | G69: =Grunddaten!H47 -> 0.00 € | J69: Nichtverfügbarkeit Deckungsbeitrag | L69: =IF(AND($M$3=TRUE,OR($M$79=TRUE,$M$80=TRUE)),TRUE,FALSE) -> FALSE | M69: =IF(L69=FALSE,FALSE,IF(Berechnung!U87<>"",TRUE,FALSE)) -> FALSE | N69: =IF(L70<>M70,"i","") ->  | O69: =IF(COUNTIF($L$12:$L$19,TRUE)<>1,MAX($AD$12:$AD$19),INDEX($AD$12:$AD$19,MATCH(TRUE,$L$12:$L$19,0),1)) -> 35.00 % | R69: Sicherung | S69: =IF(U69=TRUE,$V$32+((V69-1)*$V$30),0) -> 0 | T69: TRUE | U69: =IF(AND(T69=TRUE,D3=TRUE,Programmversionen!$D$1=FALSE),TRUE,FALSE) -> FALSE | V69: =IF(U69=FALSE,0,COUNTIF($U$69:U69,TRUE)) -> 0
G70: =IF(OR(AND(M76=FALSE,M78=FALSE,M80=FALSE),L29<>M29),0,G69*D53) -> 0.00 € | J70: Objektwirtschaftlichkeit vor Maßnahmebeginn | L70: =IF(AND(OR($M$79=TRUE,$M$80=TRUE),OR($M$3=FALSE,Berechnung!U87="Nein",Berechnung!U87="")),TRUE,FALSE) -> FALSE | M70: =IF(L70=FALSE,FALSE,IF(AND(ISNUMBER(Berechnung!V88),Berechnung!V88>=0),TRUE,FALSE)) -> FALSE | N70: =IF(L70<>M70,"i","") ->  | O70: =IF(COUNTIF($L$12:$L$19,TRUE)<>1,MAX($AE$12:$AE$19),INDEX($AE$12:$AE$19,MATCH(TRUE,$L$12:$L$19,0),1)) -> 35.00 %
E71: =IF(OR(M79=TRUE,M80=TRUE),100,10) -> 10.00 € | G71: Zulässiger Zuschuss | J71: Ergebnis / Vergleich | L71: =COUNTIF(L24:L70,TRUE) -> 25 | M71: =COUNTIF(M24:M70,TRUE) -> 13 | N71: =IF(L71<>M71,"i","") -> i | O71: =IF(COUNTIF($L$12:$L$19,TRUE)<>1,MAX($AF$12:$AF$19),INDEX($AF$12:$AF$19,MATCH(TRUE,$L$12:$L$19,0),1)) -> 30.00 %
B72: Max. Gesamtförderung pro m² Wohnfläche | D72: =IF(OR(M75=TRUE,M77=TRUE),Grunddaten!H41,IF(OR(M76=TRUE,M78=TRUE),Grunddaten!H42,IF(OR(M79=TRUE,M80=TRUE),Grunddaten!H43,0))) -> 2,200.00 € | E72: (Auf)Rundung | G72: =IF($L$18=TRUE,FALSE,IF(AND(OR($L$16=TRUE,$L$17=TRUE),OR(AND($M$75=TRUE,$O$75=TRUE),AND($M$77=TRUE,$O$77=TRUE),AND($M$79=TRUE,$O$79=TRUE),AND($M$81=TRUE,$O$81=TRUE))),FALSE,IF(G50<=(D55+E71),TRUE,FALSE))) -> FALSE
B73: Max. Höhe Zuschuss | D73: =$G$70 -> 0.00 € | E73: =IF(OR(M79=TRUE,M80=TRUE),2,-1) -> -1 | G73: =IF(OR(AND(M76=FALSE,M78=FALSE,M80=FALSE),L29<>M29),0,G74*D53) -> 0.00 €
B74: Konditionen | G74: =IF(AND(OR($L$16=TRUE,$L$17=TRUE),$M$81=TRUE),0,MAX(0,MIN(G69,IF(OR(G19=0,D53=0),0,G69-(((G50-D55-E71)/G19*100)/D53))))) -> 0.00 € | J74: Art der Maßnahme (Verknüpfungen sind unter "LinkedCell" in VBA deklariert) | N74: Bindungsquote | O74: Verfügbarkeit | Q74: Standards "Klimabaustein" | R74: Zulässig? | S74: #
B75: Zinssatz | D75: =Berechnung!Q61 -> 0.5000 % | E75: =IF(E76=TRUE,Grunddaten!$H$59-D75,3) -> 3.0000% | J75: Neubau ohne Zuschuss Bindung | L75: 1 | M75: =IF($M$83=L75,TRUE,FALSE) -> TRUE | N75: =Grunddaten!H65 -> 100.0000 % | O75: TRUE | Q75: Nicht zutreffend | R75: FALSE | S75: 0
B76: Tilgungssatz | D76: =Berechnung!S61 -> 2.0000 % | E76: =IF(E85>1,TRUE,FALSE) -> FALSE | G76: Berechnung Förderung Aufzug | J76: Neubau mit Zuschuss Bindung | L76: 2 | M76: FALSE | N76: =Grunddaten!H65 -> 100.0000 % | O76: =IF($L$18=TRUE,FALSE,TRUE) -> FALSE | Q76: Effizienzhaus 40+ | R76: =IF(OR(L17=TRUE,M81=TRUE,M83=6),FALSE,TRUE) -> TRUE | S76: 1
B77: Bewirtschaftungskosten | G77: Berechnung Förderung? | H77: =IF(AND(OR($L$16=TRUE,$L$17=TRUE,$L$18=TRUE),OR($M$81=TRUE,Berechnung!$K$21="Ja")),TRUE,FALSE) -> FALSE | J77: Umnutzung / Wiederherstellung ohne Zuschuss Bindung | L77: 3 | M77: FALSE | N77: =Grunddaten!H65 -> 100.0000 % | O77: TRUE | Q77: Effizienzhaus 40 | R77: =R76 -> TRUE | S77: 2
B78: Verwaltungskosten | D78: - | E78: =IF(OR(Berechnung!V35="",Berechnung!V35=0),0,Berechnung!V73/Berechnung!V35*100) -> 0.0000% | G78: Gesamtkosten Maßnahme | H78: =IF($H$77=FALSE,0,MAX(0,Berechnung!I44)) -> 0.00 € | J78: Umnutzung / Wiederherstellung mit Zuschuss Bindung | L78: 4 | M78: FALSE | N78: =Grunddaten!H65 -> 100.0000 % | O78: =IF($L$18=TRUE,FALSE,TRUE) -> FALSE | Q78: Effizienzhaus 55 | R78: =IF(AND($M$83>0,$M$83<=5),TRUE,FALSE) -> TRUE | S78: 3
G79: Nicht förderfähige Kosten | H79: =IF($H$77=FALSE,0,H78-H81) -> 0.00 € | J79: Modernisierung / Instandsetzung ohne Zuschuss Bindung | L79: 5 | M79: FALSE | N79: =IF(LEFT(Berechnung!$K$17,1)="j",Grunddaten!H66,Grunddaten!H67) -> 100.0000 % | O79: TRUE | Q79: Effizienzhaus 70 | R79: =IF(AND($M$83>0,$M$83<5,$R$92=FALSE),FALSE,IF(OR(AND($R$92=TRUE,$S$104=5),$M$83=5),TRUE,FALSE)) -> FALSE | S79: 4
B80: Instandhaltungskosten | D80: =IF(OR(LEFT(Berechnung!$K$21,1)="J",LEFT(Berechnung!$G$72,1)="J",AND(OR($L$16=TRUE,$L$17=TRUE,$L$18=TRUE),$M$81=TRUE)),Grunddaten!$P$88+Grunddaten!$P$89,Grunddaten!$P$88) -> 11.50 € | G80: Höchstförderung Aufzug / WE | H80: =IF($H$77=FALSE,0,SUM(Grunddaten!$H$50:$H$51)) -> 0.00 € | J80: Modernisierung / Instandsetzung mit Zuschuss Bindung | L80: 7 | M80: FALSE | N80: =N79 -> 100.0000 % | O80: =IF($L$17=TRUE,TRUE,FALSE) -> FALSE | Q80: Effizienzhaus 85 | R80: =IF(AND($M$83>0,$M$83<5,$R$92=FALSE),FALSE,IF(OR(AND($R$92=TRUE,$S$104=5),$M$83=5),TRUE,FALSE)) -> FALSE | S80: 5
D81: =Grunddaten!$P$88 -> 11.50 € | G81: Max. Gesamtkosten Aufzüge | H81: =IF($H$77=FALSE,0,IF(AND($L$16=FALSE,$L$17=FALSE,$L$18=FALSE),0,IF($M$81=FALSE,IF(Berechnung!$I$46<>"",Berechnung!$I$46,H82*H87),Berechnung!I40+Berechnung!I41))) -> 0.00 € | J81: Solo-Förderung Aufzugsanbau | L81: 6 | M81: FALSE | N81: =Grunddaten!H68 -> 100.0000 % | O81: =IF(OR($L$16=TRUE,$L$17=TRUE,$L$18=TRUE),TRUE,FALSE) -> TRUE | Q81: Effizienzhaus 100 | R81: FALSE | S81: 6
B82: MAW | D82: - | G82: Kosten Aufzug pro WE | H82: =IF($H$77=FALSE,0,IF(AND($L$16=FALSE,$L$17=FALSE,$L$18=FALSE),0,IF($M$81=FALSE,IF(AND(Berechnung!$J$34<>"",Berechnung!$J$34>0,Berechnung!$I$46<>""),Berechnung!$I$46/H87,H80/(1-MAX(0,Grunddaten!$H$63,D84)%)),IF(OR(Berechnung!$J$34="",Berechnung!$J$34=0),0,$H$81/H87)))) -> 0.00 € | J82: Studentisches Wohnen | L82: 8 | M82: FALSE | N82: =Grunddaten!H65 -> 100.0000 % | O82: =IF($L$18=TRUE,TRUE,FALSE) -> TRUE | Q82: Effizienzhaus 115 | R82: FALSE | S82: 7
B83: Mindesteigenleistung abhängig vom Vorhaben | G83: Eigenkapitalanteil pro WE | H83: =IF($H$77=FALSE,0,IF(OR(H87="",H87=0),0,(H81*MAX(0,Grunddaten!$H$63%,D84%)/H87))) -> 0.00 € | J83: Auswahl von "Berechnungen" | L83: 1 | M83: 1 | N83: =IF(OR(M83=0,M83=""),MAX(Grunddaten!$R$65:$R$70),INDEX(N75:N82,M83,1)) -> 100.0000 % | O83: -
B84: Mindesteigenleistung | D84: =IF(OR(M75=TRUE,M76=TRUE,M77=TRUE,M78=TRUE),Grunddaten!H61,IF(OR(M79=TRUE,M80=TRUE),Grunddaten!H62,IF(M81=TRUE,Grunddaten!H63,0))) -> 20.0000 % | E84: =IF(OR($G$10=0,$G$11=0),0,$G$11/$G$10*100) -> 0.0000% | G84: Eigenkapitalanteil (Minimum) | H84: =IF($H$77=FALSE,0,H83*H87) -> 0.00 €
E85: =MAX(0,E84-D84) -> 0.0000% | G85: Förderfähige Kosten / WE | H85: =IF($H$77=FALSE,0,MIN(H80,MIN((H80/(1-D84%)),MAX(0,H82-H83)))) -> 0.00 € | Q85: Tat. Förderbetrag pro m² / Wfl.: | R85: =R91 -> 0.00 € | S85: -
B86: Bindungsquoten abhängig vom Vorhaben | G86: Nichtförderf. Kosten / WE | H86: =IF($H$77=FALSE,0,MAX(0,MAX(0,H82-H83)-H85)) -> 0.00 € | J86: Abweichender Anteil der Eigenleistungen: | L86: FALSE | M86: - | Q86: Nutzung Klimabaustein? | R86: TRUE | S86: -
B87: Mindestbindungsquote gesamt | C87: =IF(D143=3,MAX(Grunddaten!$H$69,Berechnung!$O$21),Grunddaten!$H$69) -> 35.0000 % | D87: =N83 -> 100.0000 % | E87: =IF(E91>=D91,TRUE,FALSE) -> TRUE | G87: Anzahl WE mit Aufzug | H87: =IF($H$77=FALSE,0,Berechnung!J34) -> 0 | L87: =IF(OR(L55=FALSE,Berechnung!V44="",Berechnung!I44=""),FALSE,IF(OR(Berechnung!I44="",AND(Daten!D84>0,Berechnung!I44=0)),FALSE,IF(ROUND(SUM(Berechnung!V40:X43)*100/Berechnung!I44,2)>=D84,TRUE,FALSE))) -> FALSE | M87: =M55 -> FALSE | Q87: Zuschuss? | R87: TRUE | S87: -
C88: =IF(D143=3,Berechnung!$S$21,Grunddaten!$H$70) -> 35.0000 % | E88: =IF((E91-D91+E92)>=D92,TRUE,FALSE) -> TRUE | G88: barrierefreie WE mit Aufzug | H88: =IF($H$77=FALSE,0,Berechnung!J35) -> 0 | L88: =D84 -> 20.0000 % | M88: =IF(OR(Berechnung!I44="",Berechnung!I44=0),0,ROUND(SUM(Berechnung!V40:X43)*100/Berechnung!I44,2)) -> 0.0000 % | Q88: Darlehen? | R88: FALSE | S88: -
C89: =IF(D143=3,100-C87-C88,0) -> 30.0000 % | E89: =IF(((E91-D91)+(E92-D92)+E93)>=D93,TRUE,FALSE) -> TRUE | G89: Wohnfläche mit Aufzug | H89: =IF($H$77=FALSE,0,MIN($G$8,O110*H87)) -> 0.00 | J89: =IF(AND(L86=TRUE,L87<>M87),CHAR(10)&"- Gesamtanteil der Eigenleistungen","") ->  | Q89: =IF(Berechnung!K22="","-",Berechnung!K22) -> - | S89: -
B90: entspricht gesamt | C90: =IF(OR($M$27=FALSE,$M$28=FALSE,$M$29=FALSE),0,ROUNDUP(Berechnung!$K$18*D87/100,0)) -> ≙0 WE | D90: =IF(OR($M$27=FALSE,$M$28=FALSE,$M$29=FALSE),0,IF(C90=Berechnung!$K$18,Berechnung!$K$19,ROUND(Berechnung!$K$19*D87/100,2))) -> 0.00 m² | E90: =E91+E92+E93 -> 0.00 m² | G90: Ø Fläche / WE mit Aufzug | H90: =IF(OR($H$77=FALSE,H87=0),0,H89/H87) -> 0.00 | Q90: Erfüllung Voraussetzungen: | R90: =IF($M$3=FALSE,IF($Q$89=$R$94,TRUE,FALSE),IF(OR(AND($R$92=TRUE,$S$104=0),$R$86=FALSE,$Q$89="",$Q$89="-",Grunddaten!$H$55=0,ISERROR(MATCH($Q$89,$Q$75:$Q$82,0))),FALSE,INDEX($R$75:$R$82,MATCH($Q$89,$Q$75:$Q$82,0),1))) -> FALSE | S90: -
B91: davon Mindestanzahl 1 | C91: =IF(Berechnung!$AF$139=FALSE,0,IF(OR($M$27=FALSE,$M$28=FALSE,$M$29=FALSE),0,IF(C90=3,2,ROUNDUP(C90*C87/100,0)))) -> ≙0 WE | D91: =IF(OR($M$27=FALSE,$M$28=FALSE,$M$29=FALSE),0,IF(C87=100,D90,IF(C90=3,ROUND(D90*2/3,2),IF(C90=1,D90,ROUND(D90*Grunddaten!$H$69/100,2))))) -> 0.00 m² | E91: =Berechnung!L27 -> 0.00 m² | G91: Berechnung Zuschuss | J91: Abweichende Belegungsbindung: | L91: FALSE | M91: - | Q91: Max. Förderbetrag pro m² / Wfl.: | R91: =IF(OR(R90=FALSE,Grunddaten!H55=0),0,Grunddaten!H55) -> 0.00 € | S91: -
B92: davon Mindestanzahl 2 | C92: =IF(Berechnung!$AF$139=FALSE,0,IF(OR($M$27=FALSE,$M$28=FALSE,$M$29=FALSE),0,IF(D143=3,IF($C$89=0,$C$90-$C$91,ROUNDUP(C90*C88/100,0)),C90-C91))) -> ≙0 WE | D92: =IF(OR($M$27=FALSE,$M$28=FALSE,$M$29=FALSE),0,IF(D143=3,IF(C88=0,0,IF(C89=0,D90-D91,D90*C88/100)),D90-D91)) -> 0.00 m² | E92: =Berechnung!L28 -> 0.00 m² | G92: Barrierefrei erreichbare WE | J92: WE / m² für 1. EK-Grenze | L92: =IF(L28<>M28,TRUE,IF(AND(Berechnung!J27>0,ISNUMBER(Berechnung!J27),Berechnung!J27>=C91,Berechnung!L27>0,ISNUMBER(Berechnung!L27),Berechnung!L27>=D91),TRUE,FALSE)) -> TRUE | M92: =M36 -> TRUE | Q92: Maßnahmeprüfung? | R92: =IF(AND(OR(M83=3,M83=4),Q89<>Q75),TRUE,FALSE) -> FALSE | S92: -
B93: =IF(D143=3,"davon Mindestanzahl 3","zusätzlich Anzahl freie WE") -> davon Mindestanzahl 3 | C93: =IF(Berechnung!$AF$139=FALSE,0,IF(OR($M$27=FALSE,$M$28=FALSE,$M$29=FALSE),0,MAX(0,IF(D143=3,C90-C91-C92,Berechnung!$K$18-C90)))) -> ≙0 WE | D93: =IF(OR($M$27=FALSE,$M$28=FALSE,$M$29=FALSE),0,IF(D143=3,D90-D91-D92,Berechnung!$K$19-D90)) -> 0.00 m² | E93: =Berechnung!L29 -> 0.00 m² | G93: Förderung pro WE | H93: =IF($H$77=FALSE,0,MIN(H85,Grunddaten!H52)) -> 0.00 € | J93: WE / m² für 2. EK-Grenze | L93: =IF(Berechnung!J27="",TRUE,IF(AND(Berechnung!J28="",Berechnung!J27>=C90),TRUE,IF(AND(Berechnung!J28>=0,ISNUMBER(Berechnung!J28),OR(Berechnung!J28>=C92,SUM(Berechnung!J27:J28)>=C90),Berechnung!L28>=0,ISNUMBER(Berechnung!L28),OR(Berechnung!L28>=D92,SUM(Berechnung!L27:L28)>=D90)),TRUE,FALSE))) -> TRUE | M93: =M37 -> TRUE | Q93: Indirekter Bezug: | R93: =IF(M3=TRUE,"'Daten'!"&ADDRESS(ROW(Q75),COLUMN(Q75))&":"&ADDRESS(ROW(Q82),COLUMN(Q82)),"'Daten'!"&ADDRESS(ROW(R94),COLUMN(R94))&":"&ADDRESS(ROW(R95),COLUMN(R95))) -> 'Daten'!$R$94:$R$95
B94: Höchstmieten abhängig vom Vorhaben | G94: Anzahl WE | H94: =H88 -> 0 | J94: WE / m² für 3. EK-Grenze | Q94: Maßnahmearten: | R94: Ja | S94: -
B95: Max. Miete 1. EK-Grenze | D95: =IF(LEFT(Berechnung!$K$17,1)="J",Grunddaten!H74,Grunddaten!H77) -> 6.50 € | E95: - | G95: Zuschuss Teil 1: | H95: =H93*H94 -> 0.00 € | J95: =IF(AND(L91=TRUE,OR(L92<>M92,L93<>M93)),CHAR(10)&"- Quoten für die Belegungsbindung der Wohneinheiten","") ->  | R95: Nein | S95: -
E96: - | G96: Sonstige erreichbare WE | J96: Abweichende Mietansätze: | L96: FALSE | M96: - | Q96: Wiederherstellung Wohngebäude | S96: =S80 -> 5
B97: Max. Miete 2. EK-Grenze | D97: =IF(LEFT(Berechnung!$K$17,1)="J",Grunddaten!H75,Grunddaten!H78) -> 8.50 € | E97: - | G97: Förderung pro WE | H97: =IF($H$77=FALSE,0,MIN(H85,Grunddaten!H50)) -> 0.00 € | J97: Miethöhe für WE 1. EK-Grenze | L97: =IF(L42=FALSE,FALSE,IF(AND(Berechnung!V27>=0,ISNUMBER(Berechnung!V27),Berechnung!V27<=D95),TRUE,FALSE)) -> FALSE | M97: =M42 -> FALSE | Q97: Erweiterung Wohngebäude | S97: =S80 -> 5
E98: - | G98: Anzahl WE | H98: =MAX(0,H87-H88) -> 0 | J98: Miethöhe für WE 2. EK-Grenze | L98: =IF(L43=FALSE,FALSE,IF(AND(Berechnung!V28>=0,ISNUMBER(Berechnung!V28),Berechnung!V28<=D97),TRUE,FALSE)) -> FALSE | M98: =M43 -> FALSE | Q98: Anpassung Wohnbedürfnisse | S98: =S80 -> 5
B99: Max. Miete 3. EK-Grenze | D99: =IF(LEFT(Berechnung!$K$17,1)="J",Grunddaten!H76,Grunddaten!H79) -> 10.50 € | E99: - | G99: Zuschuss Teil 2: | H99: =H97*H98 -> 0.00 € | J99: Miethöhe für WE 3. EK-Grenze | L99: =IF(AND($L$17=FALSE,$L$18=FALSE),TRUE,IF(L44=FALSE,FALSE,IF(AND(Berechnung!V29>=0,ISNUMBER(Berechnung!V29),Berechnung!V29<=D99),TRUE,FALSE))) -> FALSE | M99: =M44 -> FALSE | Q99: Nutzungsänderung unbeheizt (Standard) | S99: =S78 -> 3
E100: - | G100: Summe alle WE | J100: =IF(AND(L96=TRUE,OR(L97<>M97,L98<>M98)),CHAR(10)&"- Miethöhen für die belegungsgebundenen Wohneinheiten","") ->  | Q100: Nutzungsänderung unbeheizt (Denkmal) | S100: =S80 -> 5
B101: Aufsplittung EL nach MEL für EK-Verzinsung | G101: Zuschuss (Gesamt): | H101: =H95+H99 -> 0.00 € | J101: =IF(OR(J89<>"",J95<>"",J100<>""),"Für diese Berechnung wurden folgende Abweichungen von der Richtlinie festgestellt:"&J89&IF(AND(J89<>"",OR(J95<>"",J100<>"")),",","")&J95&IF(AND(J95<>"",J100<>""),",","")&J100&".","") ->  | Q101: Nutzungsänderung beheizte Fläche | S101: =S80 -> 5
B102: Tatsächlich eingesetzte Eigenleistungen: | D102: =Berechnung!V44 -> 0.00 € | E102: - | G102: Zuschuss (pro WE): | H102: =IF(H87=0,0,H101/H87) -> 0.00 €
B103: Zu verzinsende Mindesteigenleistungen: | D103: =IF(OR(Berechnung!V44="",Berechnung!V44=0,Berechnung!I44="",Berechnung!I44=0),0,MAX(0,MIN(G12,IF(Berechnung!V44>Berechnung!I44*15/100,Berechnung!I44*15/100,Berechnung!V44)))) -> 0.00 € | E103: =Grunddaten!H81 -> 2.0000% | G103: Berechnung Darlehen
B104: Zu verzinsendes zusätzliches Eigenkapital: | D104: =IF(OR(Berechnung!V44="",Berechnung!V44=0,Berechnung!I44="",Berechnung!I44=0),0,MAX(0,MIN(G12-D103,IF(Berechnung!V44>D103,Berechnung!V44-D103,0)))) -> 0.00 € | E104: =Grunddaten!H82 -> 4.0000% | G104: Barrierefrei erreichbare WE | Q104: =IF(Berechnung!Q22="","-",Berechnung!Q22) -> - | S104: =IF(OR(Q104="",Q104="-"),0,IF(ISERROR(INDEX(S96:S101,MATCH(Q104,Q96:Q101,0),1)),0,INDEX(S96:S101,MATCH(Q104,Q96:Q101,0),1))) -> 0
B105: … entspricht Ø Eigenkapitalverzinsung p. a.: | D105: =Berechnung!V80+Berechnung!V81 -> 0.00 € | E105: =IF((D103+D104)=0,0,D105/D102*100) -> 0.0000% | G105: Förderung pro WE | H105: =IF($H$77=FALSE,0,MIN(H85-H93,Grunddaten!H53)) -> 0.00 €
B106: … ohne Eigenkapitalverzinsung: | D106: =MAX(0,D102-D103-D104) -> 0.00 € | E106: - | G106: Anzahl WE | H106: =H94 -> 0
B107: Besetzungsrechte | G107: Darlehen Teil 1: | H107: =H105*H106 -> 0.00 € | J107: Variablen:
B108: Aufstock. BW-Kosten | D108: =IF(OR(M12=FALSE,M75=TRUE,M77=TRUE,M79=TRUE,M80=TRUE),0,ROUND(SUM(Berechnung!V69:X71)*Grunddaten!H84/100,2)) -> 0.00 € | E108: - | G108: Sonstige erreichbare WE | J108: Gesamtförderung: | K108: =SUM(N112:N116)+IF(AND(Q141=TRUE,L141=FALSE),N141,0) -> 0.00 € | L108: # Zuschüsse: | M108: =COUNTIF($L$138:$L$141,TRUE) -> 0 | N108: Anzahl WE: | O108: =IF(Berechnung!$K$18="",0,Berechnung!$K$18) -> 0 | P108: Ausnahme MIL: | Q108: =IF(AND(OR($L$16=TRUE,$L$17=TRUE),$R$90=TRUE,($K$109-IF($R$90=TRUE,IF($R$85<>"",$R$85,$R$91),0))>($D$72+IF($G$73>0,$G$74,0)),M$79=FALSE,$M$80=FALSE,$M$81=FALSE),TRUE,FALSE) -> FALSE
B109: Besetzungsrechte | G109: Förderung pro WE | H109: =IF($H$77=FALSE,0,MIN(H85-H97,Grunddaten!H51)) -> 0.00 € | J109: … pro m²: | K109: =IF(OR($G$8="",$G$8=0),0,$K$108/$G$8) -> 0.00 € | L109: # Darlehen: | M109: =COUNTIF($Q$143:$Q$145,TRUE) -> 1 | N109: Wohnfläche: | O109: =IF(Berechnung!$K$19="",0,Berechnung!$K$19) -> 0.00 m² | P109: Überförderung: | Q109: =MAX(0,K109-(D72+IF(G73>0,G74,0))-IF(R90=TRUE,IF(R85<>"",R85,R91),0)) -> 0.00 €
B110: Anzahl förderfähiger WE | D110: =Berechnung!$K$18 -> 0 | E110: - | G110: Anzahl WE | H110: =H98 -> 0 | J110: … pro WE: | K110: =IF(OR($D$110="",$D$110=0),0,$K$108/$D$110) -> 0.00 € | L110: # Förderbestandteile: | M110: =M108+M109 -> 1 | N110: Ø Fläche / WE: | O110: =IF($O$108=0,0,$O$109/$O$108) -> 0.00 m² | P110: Gesamtanteil: | Q110: =IF(OR(G10="",G10=0),0,SUM(M112:M117)/G10*100) -> 0.00%
G111: Darlehen Teil 1: | H111: =H109*H110 -> 0.00 € | J111: Textbausteine I:
G112: Summe alle WE | J112: Zuschüsse | K112: =IF($Q112=0,"",INDEX($K$138:$K$141,$Q112,1)) ->  | M112: =IF($Q112=0,"",INDEX($M$138:$M$141,$Q112,1)) ->  | N112: =IF($Q112=0,"",INDEX($N$138:$N$141,$Q112,1)) ->  | O112: =IF($Q112=0,"",INDEX($O$138:$O$141,$Q112,1)) ->  | P112: =IF($Q112=0,"",INDEX($P$138:$P$141,$Q112,1)) ->  | Q112: =IF($M$108=0,0,MATCH(TRUE,EXACT(TRUE,$Q$138:$Q$141),0)) -> 0
B113: Ergebnisse für Solver-Lauf | G113: Darlehen (Gesamt): | H113: =IF(OR($G$36=FALSE),0,$H$107+$H$111) -> 0.00 € | K113: =IF($Q113=0,"",INDEX($K$138:$K$141,$Q113,1)) ->  | M113: =IF($Q113=0,"",INDEX($M$138:$M$141,$Q113,1)) ->  | N113: =IF($Q113=0,"",INDEX($N$138:$N$141,$Q113,1)) ->  | O113: =IF($Q113=0,"",INDEX($O$138:$O$141,$Q113,1)) ->  | P113: =IF($Q113=0,"",INDEX($P$138:$P$141,$Q113,1)) ->  | Q113: =IF($M$108<2,0,SMALL(IF((TRUE=$L$138:$L$141)*(TRUE=$Q$138:$Q$141),ROW($Q$138:$Q$141)-ROW($Q$138)+1),2)) -> 0
B114: Erreicher Überschuss / Fehlbetrag | E114: - | G114: Darlehen (pro WE): | H114: =IF(H87=0,0,H113/H87) -> 0.00 € | K114: =IF($Q114=0,"",INDEX($K$138:$K$141,$Q114,1)) ->  | M114: =IF($Q114=0,"",INDEX($M$138:$M$141,$Q114,1)) ->  | N114: =IF($Q114=0,"",INDEX($N$138:$N$141,$Q114,1)) ->  | O114: =IF($Q114=0,"",INDEX($O$138:$O$141,$Q114,1)) ->  | P114: =IF($Q114=0,"",INDEX($P$138:$P$141,$Q114,1)) ->  | Q114: =IF($M$108<3,0,SMALL(IF((TRUE=$L$138:$L$141)*(TRUE=$Q$138:$Q$141),ROW($Q$138:$Q$141)-ROW($Q$138)+1),3)) -> 0
B115: Anzahl Ergebnisse | E115: - | G115: Zusammenfassung | J115: Förderdarlehen | K115: =IF($Q115=0,"",INDEX($K$143:$K$145,$Q115,1)) -> Förderdarlehen (Maßnahme; maximal bis zu 2.200,00 € / m²): | M115: =IF($Q115=0,"",INDEX($M$143:$M$145,$Q115,1)) -> 0.00 € | N115: =IF($Q115=0,"",INDEX($N$143:$N$145,$Q115,1)) -> 0.00 € | O115: =IF($Q115=0,"",INDEX($O$143:$O$145,$Q115,1)) -> 0.00 € | P115: =IF($Q115=0,"",INDEX($P$143:$P$145,$Q115,1)) -> pro m² | Q115: =IF($M$109=0,0,MATCH(TRUE,EXACT(TRUE,$Q$143:$Q$145),0)) -> 1
B116: Erfüllung Nebenbedingung 1 | E116: - | G116: Zuschuss (Gesamt): | H116: =H101 -> 0.00 € | K116: =IF($Q116=0,"",INDEX($K$143:$K$145,$Q116,1)) ->  | M116: =IF($Q116=0,"",INDEX($M$143:$M$145,$Q116,1)) ->  | N116: =IF($Q116=0,"",INDEX($N$143:$N$145,$Q116,1)) ->  | O116: =IF($Q116=0,"",INDEX($O$143:$O$145,$Q116,1)) ->  | P116: =IF($Q116=0,"",INDEX($P$143:$P$145,$Q116,1)) ->  | Q116: =IF($M$109<2,0,SMALL(IF(TRUE=$Q$143:$Q$145,ROW($Q$143:$Q$145)-ROW($Q$143)+1),2)) -> 0
B117: Erfüllung Nebenbedingung 2 | E117: - | G117: Zuschuss (pro WE): | H117: =IF($H$87=0,0,$H$116/$H$87) -> 0.00 € | K117: =IF($Q117=0,"",INDEX($K$143:$K$145,$Q117,1)) ->  | M117: =IF($Q117=0,"",INDEX($M$143:$M$145,$Q117,1)) ->  | N117: =IF($Q117=0,"",INDEX($N$143:$N$145,$Q117,1)) ->  | O117: =IF($Q117=0,"",INDEX($O$143:$O$145,$Q117,1)) ->  | P117: =IF($Q117=0,"",INDEX($P$143:$P$145,$Q117,1)) ->  | Q117: =IF($M$109<3,0,SMALL(IF(TRUE=$Q$143:$Q$145,ROW($Q$143:$Q$145)-ROW($Q$143)+1),3)) -> 0
B118: Erfüllung Nebenbedingung 3 | E118: - | G118: Zuschuss (pro m²): | H118: =IF($H$89=0,0,$H$116/$H$89) -> 0.00 € | J118: Textbausteine II: | N118: Zeile | O118: Spalte | P118: Bereich | Q118: Anpassung?
B119: =IF(D121="","Grundeinstellungen Solver A","Erfüllung Nebenbedingung 4") -> Grundeinstellungen Solver A | E119: - | G119: Darlehen (Gesamt): | H119: =H113 -> 0.00 € | J119: Sonstiger Zuschuss I (bitte benennen): | N119: =CELL("zeile",Berechnung!P50) -> 50 | O119: =CELL("spalte",Berechnung!P50) -> 16 | P119: 3 | Q119: =IF(J119="",FALSE,IF(Berechnung!P50=J119,TRUE,FALSE)) -> TRUE
B120: =IF(D121="","Grundeinstellungen Solver B","Grundeinstellungen Solver A") -> Grundeinstellungen Solver B | E120: - | G120: Darlehen (pro WE): | H120: =IF($H$87=0,0,$H$119/$H$87) -> 0.00 € | J120: Sonstiger Zuschuss II (bitte benennen): | N120: =CELL("zeile",Berechnung!P51) -> 51 | O120: =CELL("spalte",Berechnung!P51) -> 16 | P120: 3 | Q120: =IF(J120="",FALSE,IF(Berechnung!P51=J120,TRUE,FALSE)) -> TRUE
B121: =IF(D121="","-","Grundeinstellungen Solver B") -> - | E121: - | G121: Darlehen (pro m²): | H121: =IF($H$89=0,0,$H$119/$H$89) -> 0.00 € | J121: Sonstiges Darlehen (bitte benennen): | N121: =CELL("zeile",Berechnung!D64) -> 64 | O121: =CELL("spalte",Berechnung!D64) -> 4 | P121: 4 | Q121: =IF(J121="",FALSE,IF(Berechnung!D64=J121,TRUE,FALSE)) -> FALSE
G122: Förderung (Gesamt): | H122: =H116+H119 -> 0.00 € | Q122: =IF(J122="",FALSE,IF(Berechnung!D65=J122,TRUE,FALSE)) -> FALSE
G123: Förderung (pro WE / Aufz.): | H123: =$H$117+$H$120 -> 0.00 € | Q123: =IF(J123="",FALSE,IF(Berechnung!D66=J123,TRUE,FALSE)) -> FALSE
B124: Zuschuss: Klimabaustein | G124: Förderung (pro m² / Aufz.): | H124: =$H$118+$H$121 -> 0.00 € | Q124: =IF(J124="",FALSE,IF(Berechnung!D67=J124,TRUE,FALSE)) -> FALSE
B125: Inanspruchnahme Klimabaustein? | D125: =IF(AND(R90=TRUE,R86=TRUE,G10>0),TRUE,FALSE) -> FALSE | E125: - | G125: Förderung (pro WE / alle): | H125: =IF(OR(O109="",O109=0),0,H122/O109) -> 0.00 € | J125: Standardwerte: | N125: Zeile | O125: Spalte | P125: Bereich | Q125: Vorgabe
B126: Förderfähige Wohnfläche | D126: =G8 -> 0.00 m² | E126: - | G126: Förderung (pro m² / alle): | H126: =IF(OR(O108="",O108=0),0,H122/O108) -> 0.00 € | J126: =Berechnung!D61 -> Förderdarlehen (Maßnahme; maximal bis zu 2.200,00 € / m²): | N126: =CELL("zeile",Berechnung!S61) -> 61 | O126: =CELL("spalte",Berechnung!S61) -> 19 | P126: 4 | Q126: =Grunddaten!H58 -> 2.0000
B127: Fördersatz pro m² Wohnfläche | D127: =IF(AND(ISNUMBER(R85)=TRUE,R85<=R91,R85<>""),R85,R91) -> 0.00 € | E127: - | G127: Restfinanzierung | Q127: -
B128: Zuschuss Klimabaustein | D128: =IF(D125=FALSE,0,D126*D127) -> 0.00 € | E128: - | G128: Notwendiges Zusatzdarlehen | H128: =IF($H$77=FALSE,0,IF(AND($L$16=FALSE,$L$17=FALSE,$L$18=FALSE),0,IF(M81=TRUE,ROUND((H78-Berechnung!$V$44)-H122,2),0))) -> 0.00 € | Q128: -
G129: Gewichtete Förderung pro m² | Q129: -
G130: =G118 -> Zuschuss (pro m²): | H130: =IF($H$77=FALSE,0,($H$116/($O$110*$H$87))*(($O$110*$H$87)/$O$109)) -> 0.00 € | Q130: -
B131: =IF(L18=TRUE,"Zuschuss: Baukosten","Zuschuss: Grundförderung") -> Zuschuss: Baukosten | G131: =G121 -> Darlehen (pro m²): | H131: =IF($H$77=FALSE,0,($H$119/($O$110*$H$87))*(($O$110*$H$87)/$O$109)) -> 0.00 € | Q131: -
B132: Inanspruchnahme Grundförderung? | D132: =IF(AND(OR($L$17=TRUE,$L$18=TRUE),$M$81=FALSE,G10>0),TRUE,FALSE) -> FALSE | E132: - | G132: Förderung (pro m² / alle): | H132: =H130+H131 -> 0.00 € | J132: Hinweistexte:
B133: Förderfähige Wohnfläche | D133: =G8 -> 0.00 m² | E133: - | J133: ="Die Gesamtförderung i. H. v. "&TEXT(K108,"#.##0,00")&" EUR (≙ "&TEXT(Q110,"#.##,00")&"% der Kosten"&IF(L18=TRUE,"; ohne Anrechnung des Aufwendungszuschusses","")&") "&IF(Berechnung!$D$99="","entspricht","entspräche")&" Ø "&TEXT(K109,"#.##0,00")&" EUR pro m² Wohnfläche bzw. Ø "&TEXT(K110,"#.##0,00")&" EUR pro WE." -> Die Gesamtförderung i. H. v. 0,00 EUR (≙ ,00% der Kosten; ohne Anrechnung des Aufwendungszuschusses) entspräche Ø 0,00 EUR pro m² Wohnfläche bzw. Ø 0,00 EUR pro WE.
B134: Fördersatz pro m² Wohnfläche (Neubau / Umnutz.) | D134: 500.00 € | E134: - | G134: Prüfung Ausnahmenotwendigkeit MIL | J134: =IF($H$144=TRUE,"Die maximale Höchstförderung von "&TEXT($H$142,"#.##0,00")&" EUR / m² "&IF(H132>0,"(ohne Aufzugsförderung) ","")&"wird durch den Zuschuss "&CHAR(34)&"Klimabaustein"&CHAR(34)&" um "&TEXT($H$143,"#.##0,00")&" EUR / m² überschritten; eine Förderung ist nur mit Ausnahmegenehmigung durch das MIL möglich.","") -> 
B135: Fördersatz pro m² Wohnfläche (ModInst) | D135: 500.00 € | E135: - | G135: Gesamtförderung pro m²: | H135: =K109 -> 0.00 € | J135: Dateiname:
B136: Zuschuss Grundförderung | D136: =IF($D$132=TRUE,$D$133*IF(OR($M$79=TRUE,$M$80=TRUE),$D$135,$D$134),0) -> 0.00 € | E136: - | G136: Darlehen (Maßnahme) pro m²: | H136: =O143 -> 0.00 € | J136: =IF(Berechnung!V15<>"",Berechnung!V15&" - ","")&IF(Berechnung!G15<>"",Berechnung!G15,"Unbestimmtes Objekt")&" - "&TEXT(NOW(),"JJJJ-MM-TT HH-MM-SS")&" Uhr" -> Unbestimmtes Objekt - 2026-04-07 10-00-28 Uhr
B137: Gegenprüfung Kürzungsbedarf | D137: - | E137: - | G137: Darlehen (Aufzüge) pro m²: | H137: =H131 -> 0.00 € | J137: Zuschusszuordnung: | P137: Korrekturfaktor: | Q137: =IF(AND($Q$141=TRUE,$L$141=FALSE),1,0) -> 1
G138: Zuschuss Bindung pro m²: | H138: =O139 -> 0.00 € | J138: =IF($Q138=FALSE,"-",IF($M$108+Q137=1,"-",IF($Q138=TRUE,ROMAN(COUNTIF($Q$138:$Q138,TRUE)),"-"))) -> - | K138: ="Förderzuschuss "&IF(AND($Q138=TRUE,$M$108+Q137>1),J138&" ","")&IF(L18=TRUE,"(Baukosten)","(Grundf.):") -> Förderzuschuss (Baukosten) | L138: =Q138 -> FALSE | M138: =IF(Q138=FALSE,0,ROUNDUP(D136,-2)) -> 0.00 € | N138: =IF(Q138=FALSE,0,D136) -> 0.00 € | O138: =IF(Q138=FALSE,0,IF(OR(M79=TRUE,M80=TRUE),D135,D134)) -> 0.00 € | P138: pro m² | Q138: =IF(AND(OR($L$17=TRUE,$L$18=TRUE),$M$81=FALSE,$G$10>0),TRUE,FALSE) -> FALSE
G139: Zuschuss Aufzüge pro m²: | H139: =H130 -> 0.00 € | J139: =IF($Q139=FALSE,"-",IF($M$108+Q137=1,"-",IF($Q139=TRUE,ROMAN(COUNTIF($Q$138:$Q139,TRUE)),"-"))) -> - | K139: ="Förderzuschuss "&IF(AND($Q139=TRUE,$M$108+Q137>1),J139&" ","")&"(Bindung):" -> Förderzuschuss (Bindung): | L139: =Q139 -> FALSE | M139: =IF(Q139=FALSE,0,IF(AND(G10-G11>0,G10-G11<ROUNDUP(D73,-2)),ROUNDUP(G10-G11,-2),IF(G10-G11>ROUNDUP(D73,-2),ROUNDUP(D73,-2),0))) -> 0.00 € | N139: =IF(Q139=FALSE,0,IF(AND(G10-G11>0,G10-G11<D73),G10-G11,IF(G10-G11>D73,D73,0))) -> 0.00 € | O139: =IF(Q139=FALSE,0,IF(AND(G10-G11>0,G10-G11<D73),(G10-G11)/O109,IF(G10-G11>D73,D73/O109,0))) -> 0.00 € | P139: pro m² | Q139: =IF(OR($M$76=TRUE,$M$78=TRUE,$M$80=TRUE),TRUE,FALSE) -> FALSE
B140: … | G140: Zuschuss Klimabaustein pro m²: | H140: =O141 ->  | J140: =IF($Q140=FALSE,"-",IF($M$108+Q137=1,"-",IF($Q140=TRUE,ROMAN(COUNTIF($Q$138:$Q140,TRUE)),"-"))) -> - | K140: ="Förderzuschuss "&IF(AND($Q140=TRUE,$M$108+Q137>1),J140&" ","")&"(Aufzug):" -> Förderzuschuss (Aufzug): | L140: =Q140 -> FALSE | M140: =IF(Q140=FALSE,0,ROUNDUP(H116,-2)) -> 0.00 € | N140: =IF(Q140=FALSE,0,H116) -> 0.00 € | O140: =IF(Q140=FALSE,0,H117) -> 0.00 € | P140: pro WE | Q140: =IF($H$77=TRUE,TRUE,FALSE) -> FALSE
B141: Maximaler Kapitaldienst Baudarlehen | D141: =MIN(D69,(G10-G11-G13))*G20% -> 0.00 € | E141: - | G141: Förderung ohne Aufzüge pro m²: | H141: =H136+H138+H140 ->  | J141: =IF($Q141=FALSE,"-",IF($M$108+Q137=1,"-",IF($Q141=TRUE,ROMAN(COUNTIF($Q$138:$Q141,TRUE)),"-"))) -> - | K141: ="Förderzuschuss "&IF(AND($Q141=TRUE,$M$108+Q137>1),J141&" ","")&IF($L$18=TRUE,"(Aufwendg.):","(Klimab.):") -> Förderzuschuss (Aufwendg.): | L141: =IF($L$18=TRUE,FALSE,Q141) -> FALSE | M141: =IF(Q141=FALSE,0,IF($L$18=TRUE,ROUNDUP(D150,-2),ROUNDUP(D128,-2))) -> 0.00 € | N141: =IF(Q141=FALSE,0,IF($L$18=TRUE,D150,D128)) -> 0.00 € | O141: =IF(Q141=FALSE,0,IF($L$18=TRUE,E150,D127)) ->  | P141: pro m² | Q141: =IF(OR($L$18=TRUE,AND(R87=TRUE,R90=TRUE)),TRUE,FALSE) -> TRUE
B142: Minimum Deckungsbeitrag | D142: =(Berechnung!V73+Berechnung!V82+IF(Berechnung!D62<>"",Berechnung!V62,0)+IF(Berechnung!D63<>"",Berechnung!V63,0)+IF(Berechnung!D64<>"",Berechnung!V64,0)+Daten!D141) -> 0.00 € | E142: - | G142: Förderhöchstbetrag pro m²: | H142: =D72+G69 -> 2,200.00 € | J142: Darlehenszuordnung:
B143: Anzahl Einkommensgrenzen | D143: =IFERROR(INDEX(AG12:AG19,MATCH(TRUE,L12:L19,0),1),3) -> 3 | E143: - | G143: Überförderung pro m² | H143: =MAX(0,H141-H142) ->  | J143: =IF($Q143=FALSE,"-",IF($M$109=1,"-",IF($Q143=TRUE,ROMAN(COUNTIF($Q$143:$Q143,TRUE)),"-"))) -> - | K143: ="Förderdarlehen "&IF(AND($Q143=TRUE,$M$109>1),J143&" ","")&"(Maßnahme; maximal bis zu "&TEXT($G$9-IF(AND(OR(AND($L$17=TRUE,$G$72=TRUE),AND($R$90=TRUE,$M$4=TRUE)),OR(Grunddaten!$H$40="",Grunddaten!$H$40=TRUE)),IF(AND($L$17=TRUE,$G$72=TRUE),$G$74,$R$85),0),"#.##0,00")&" € / m²):" -> Förderdarlehen (Maßnahme; maximal bis zu 2.200,00 € / m²): | M143: =IF(Q143=FALSE,0,IF(D47<0,0,IF($L$71<>$M$71,0,ROUNDUP(D47,-2)))) -> 0.00 € | N143: =IF(Q143=FALSE,0,IF($L$71<>$M$71,0,IF(D47<0,0,D47))) -> 0.00 € | O143: =ROUND(IF(Q143=FALSE,0,IF($L$71<>$M$71,0,IF(D56<0,0,N143/G8))),2) -> 0.00 € | P143: pro m² | Q143: =IF($M$81=TRUE,FALSE,TRUE) -> TRUE
E144: - | G144: Ausnahme MIL notwendig? | H144: =IF(AND($L$16=TRUE,$R$90=TRUE,$H$141>$H$142,$U$5=FALSE),TRUE,FALSE) ->  | J144: =IF($Q144=FALSE,"-",IF($M$109=1,"-",IF($Q144=TRUE,ROMAN(COUNTIF($Q$143:$Q144,TRUE)),"-"))) -> - | K144: ="Förderdarlehen "&IF(AND($Q144=TRUE,$M$109>1),J144&" ","")&"(Aufzug):" -> Förderdarlehen (Aufzug): | M144: =IF(Q144=FALSE,0,ROUNDUP(H113,-2)) -> 0.00 € | N144: =IF(Q144=FALSE,0,H119) -> 0.00 € | O144: =IF(Q144=FALSE,0,H120) -> 0.00 € | P144: pro WE | Q144: =IF($H$77=TRUE,TRUE,FALSE) -> FALSE
J145: =IF($Q145=FALSE,"-",IF($M$109=1,"-",IF($Q145=TRUE,ROMAN(COUNTIF($Q$143:$Q145,TRUE)),"-"))) -> - | K145: ="Förderdarlehen "&IF(AND($Q145=TRUE,$M$109>1),J145&" ","")&"(Klimabaustein):" -> Förderdarlehen (Klimabaustein): | M145: 0.00 € | N145: 0.00 € | O145: 0.00 € | P145: pro m² | Q145: =IF(AND(R88=TRUE,R90=TRUE),TRUE,FALSE) -> FALSE
B147: Zuschuss: Aufwendung
B148: Inanspruchnahme Aufwendungszuschuss | D148: =IF(AND($M$79=FALSE,$M$80=FALSE,$M$81=FALSE,$L$18=TRUE),TRUE,FALSE) -> TRUE | E148: -
B149: Förderfähige Wohnfläche | D149: =G8 -> 0.00 m² | E149: Fördersatz pro m² / M
B150: Zuschuss Aufwendung (Gesamt): | D150: =SUMPRODUCT((D151:D155)*3) -> 0.00 € | E150: =D150/D149 -> 
B151: … Jahre 1 - 3; p. a. | D151: =$D$149*E151*12 -> 0.00 € | E151: 2.50
B152: … Jahre 4 - 6; p. a. | D152: =$D$149*E152*12 -> 0.00 € | E152: 2.00
B153: … Jahre 7 - 9; p. a. | D153: =$D$149*E153*12 -> 0.00 € | E153: 1.50
B154: … Jahre 10 - 12; p. a. | D154: =$D$149*E154*12 -> 0.00 € | E154: 1.00
B155: … Jahre 13 - 15; p. a. | D155: =$D$149*E155*12 -> 0.00 € | E155: 0.50

Sheet Hilfe (hidden)
A1: Checkliste für Hilfefunktion
A2: lfd. Nr. | B2: Bereich | C2: Eingabefeld | D2: Soll | E2: Ist | F2: Beschreibung
A3: 1 | B3: Berechnung | C3: =Daten!J24 -> Maßnahmeart | D3: =Daten!L24 -> TRUE | E3: =Daten!M24 -> TRUE | F3: MUSS-Feld Bereich: "Art der Maßnahme" Bitte wählen Sie aus, für welche Maßnahmeart Sie eine Förderberechnung furchführen wollen.
A4: =A3+1 -> 2 | B4: Berechnung | C4: =Daten!J25 -> Name | D4: =Daten!L25 -> TRUE | E4: =Daten!M25 -> FALSE | F4: MUSS-Feld Bereich: "Kunde / Objekt" Bitte geben Sie den Namen / Firmenbezeichnung des Investors an.
A5: 3 | B5: Berechnung | C5: =Daten!J26 -> Objektanschrift | D5: =Daten!L26 -> TRUE | E5: =Daten!M26 -> FALSE | F5: MUSS-Feld Bereich: "Kunde / Objekt" Bitte geben Sie die Anschrift des Investitionsobjektes an.
A6: 4 | B6: Berechnung | C6: =Daten!J27 -> Gemeinde gemäß Anlage 3 der RL | D6: =Daten!L27 -> TRUE | E6: =Daten!M27 -> FALSE | F6: MUSS-Feld Bereich: "Kunde / Objekt" Hier ist anzugeben, ob sich das Förderobjekt in einer Gemeinde gemäß der Anlage 3 der Richtlinie befindet oder nicht. Folgende Schreibweisen sind zulässig: "Ja", "Nein". Groß- / Kleinschreibung ist hierbei unerheblich. Alternativ können Sie auch den Wertepfeil rechts neben dem Eingabefeld benutzen und die entsprechende Angabe auswählen. Diese Angabe hat Einfluss auf die zulässige Höchstmiete der belegungsgebundenen Wohnungen und ist zwingend zu beantworten.
A7: 5 | B7: Berechnung | C7: =Daten!J28 -> Anzahl der Wohneinheiten (WE) | D7: =Daten!L28 -> TRUE | E7: =Daten!M28 -> FALSE | F7: MUSS-Feld Bereich: "Kunde / Objekt" Bitte geben Sie die Gesamtanzahl der Wohneinheiten an für die die Investitionsmaßnahme durchgeführt werden soll. Nicht numerische oder negative Werte sind nicht zulässig.
A8: 6 | B8: Berechnung | C8: =Daten!J29 -> Gesamtwohnfläche | D8: =Daten!L29 -> TRUE | E8: =Daten!M29 -> FALSE | F8: MUSS-Feld Bereich: "Kunde / Objekt" Bitte geben Sie die kumulierte Gesamtwohnfläche aller Wohneinheiten an für die die Investitionsmaßnahme durchgeführt werden soll. Nicht numerische oder negative Werte sind nicht zulässig.
A9: 7 | B9: Berechnung | C9: =Daten!J30 -> Grundstücksgröße | D9: =Daten!L30 -> TRUE | E9: =Daten!M30 -> FALSE | F9: MUSS-Feld Bereich: "Kunde / Objekt" Bitte geben Sie die Grundstücksgröße des Investitionsobjektes an.
A10: =A9+1 -> 8 | B10: Berechnung | C10: =Daten!J31 -> Inanspruchnaahme Aufzugsförderung | D10: =Daten!L31 -> TRUE | E10: =Daten!M31 -> FALSE | F10: MUSS-Feld Bereich: "Kunde / Objekt" Bitte geben Sie an, ob die Förderung zum (nachträglichen) An- oder Einbau eines Aufzuges in Anspruch genommen werden soll.
A11: 9 | B11: Berechnung | C11: =IF(Daten!M3=TRUE,"Erreichter Standard "&CHAR(34)&"Klimabaustein"&CHAR(34),"Erreichung Mindeststandard "&CHAR(34)&"Klimabaustein"&CHAR(34)) -> Erreichung Mindeststandard "Klimabaustein" | D11: =Daten!L32 -> FALSE | E11: =Daten!M32 -> FALSE | F11: MUSS-Feld Bereich: "Kunde / Objekt" Bitte geben Sie an, ob die die Fördervoraussetzungen (Standards) für den Zuschuss "Klimabaustein" erfüllt werden.
A12: 10 | B12: Berechnung | C12: Fördergegenstand "Klimabaustein" | D12: =Daten!L33 -> FALSE | E12: =Daten!M33 -> FALSE | F12: MUSS-Feld Bereich: "Kunde / Objekt" Bitte geben Sie an, welcher Fördergegenstand hauptsächlich auf die Maßnahme zutrifft.
A13: 11 | B13: Berechnung | C13: Aufteilung Quoten für Belegungsbindung | D13: =Daten!L34 -> TRUE | E13: =Daten!M34 -> TRUE | F13: MUSS-Feld Bereich: "Kunde / Objekt" Bitte korrigieren Sie die Aufteilung der Quoten zur Belegungsbindung zwischen den 3 verschiedenen Einkommensgrenzen.
A14: 12 | B14: Berechnung | C14: =Daten!J36 -> WE / m² für 1. EK-Grenze | D14: =Daten!L36 -> TRUE | E14: =Daten!M36 -> TRUE | F14: MUSS-Feld Bereich: "Aufteilung der Wohneinheiten / Einnahmen" Hier sind Anzahl und Wohnflächen der für die 1. Einkommensgrenze vorgesehenen Wohnungen zu pflegen. Beachten Sie hierbei die in blauer Schrift gehaltenen Hinweise zu Mindestanzahl und Mindestwohnflächen, die für die jeweilige EK-Grenze erforderlich sind. Höhere Werte sind jederzeit möglich, sofern die Gesamtanzahl/Gesamtwohnflächen der im Bereich "Kunde / Objekt" angegebenen Wohnungen nicht überschritten werden. Nicht numerische oder negative Werte sind nicht zulässig.
A15: 13 | B15: Berechnung | C15: =Daten!J37 -> WE / m² für 2. EK-Grenze | D15: =Daten!L37 -> TRUE | E15: =Daten!M37 -> TRUE | F15: MUSS-Feld oder KANN-Feld (abhängig von den Eingaben bei der 1. EK-Grenze) Bereich: "Aufteilung der Wohneinheiten / Einnahmen" Hier sind Anzahl und Wohnflächen der für die 2. Einkommensgrenze vorgesehenen Wohnungen zu pflegen. Beachten Sie hierbei die in blauer Schrift gehaltenen Hinweise zu Mindestanzahl und Mindestwohnflächen, die für die jeweilige EK-Grenze erforderlich sind. Höhere Werte sind jederzeit möglich, sofern die Gesamtanzahl/Gesamtwohnflächen der im Bereich "Kunde / Objekt" angegebenen Wohnungen nicht überschritten werden. Nicht numerische oder negative Werte sind nicht zulässig.
A16: 14 | B16: Berechnung | C16: =Daten!J38 -> WE / m² für 3. EK-Grenze | D16: =Daten!L38 -> TRUE | E16: =Daten!M38 -> TRUE | F16: MUSS-Feld oder KANN-Feld (abhängig von den Eingaben bei der 1. und 2. EK-Grenze) Bereich: "Aufteilung der Wohneinheiten / Einnahmen" Dieser Fehler kann folgende Ursachen haben: - Es wurde noch keine Eingabe vorgenommen. - Die Anzahl der WE für die 1. und 2. EK-Grenze wurde korrekt erfasst, jedoch ist die Anzahl der nicht belegungsgebundenen WE oder der WE in der 3. EK-Grenze zu gering. Geben Sie hier die noch offene Differenz ein. Alternativ kann auch die Anzahl der belegungsgebundenen WE entsprechend erhöht werden. Nicht numerische oder negative Werte sind nicht zulässig.
A17: 15 | B17: Berechnung | C17: =Daten!J39 -> Summe WE und m² gesamt | D17: =Daten!L39 -> TRUE | E17: =Daten!M39 -> TRUE | F17: Bereich: "Aufteilung der Wohneinheiten / Einnahmen" Die Summe der in diesem Bereich angegebenen WE und m² muss jeweils mit der Anzahl der WE bzw. der Gesamtwohnfläche übereinstimmen, die im Bereich ''Kunde / Objekt'' angegeben wurde. Bitte entsprechend korrigieren.
A18: 16 | B18: Berechnung | C18: =Daten!J40 -> Mit gefördertem Aufzug erreichbare WE | D18: =Daten!L40 -> FALSE | E18: =Daten!M40 -> FALSE | F18: MUSS-Feld Bereich: "Aufteilung der Wohneinheiten / Einnahmen" Hier sind Anzahl der Wohneinheiten zu hinterlegen, welche durch den zu fördernden Aufzug im Förderobjekt erschlossen werden sollen. Nicht numerische oder negative Werte sind nicht zulässig.
A19: 17 | B19: Berechnung | C19: =Daten!J41 -> Davon durch Aufzug barrierefrei erreichbare WE | D19: =Daten!L41 -> FALSE | E19: =Daten!M41 -> FALSE | F19: MUSS-Feld Bereich: "Aufteilung der Wohneinheiten / Einnahmen" Hier sind Anzahl der Wohneinheiten zu hinterlegen, welche durch den zu fördernden Aufzug im Förderobjekt auch tatsächlich barrierefrei (gemäß DIN 18040-2) erreicht werden können. Nicht numerische oder negative Werte sind nicht zulässig.
A20: 18 | B20: Berechnung | C20: =Daten!J42 -> Miethöhe für WE 1. EK-Grenze | D20: =Daten!L42 -> TRUE | E20: =Daten!M42 -> FALSE | F20: MUSS-Feld Bereich: "Aufteilung der Wohneinheiten / Einnahmen" Hier ist die Miethöhe pro m² pro Monat für die Wohnungen der 1. Einkommensgrenze zu pflegen. Bitte beachten Sie die in blauer Schrift gehaltenen Hinweise zur maximal zulässigen Miete. Nicht numerische oder negative Werte sind nicht zulässig.
A21: 19 | B21: Berechnung | C21: =Daten!J43 -> Miethöhe für WE 2. EK-Grenze | D21: =Daten!L43 -> TRUE | E21: =Daten!M43 -> FALSE | F21: In Abhängigkeit von der Angabe bei der Aufteilung der Wohnungen KANN-Feld oder MUSS-Feld 1. Mieteinnahmen im Durchschnitt: Hier ist die Miethöhe pro m² pro Monat für die Wohnungen der 2. Einkommensgrenze zu pflegen. Bitte beachten Sie die in blauer Schrift gehaltenen Hinweise zur maximal zulässigen Miete. Nicht numerische oder negative Werte sind nicht zulässig.
A22: 20 | B22: Berechnung | C22: =Daten!J44 -> Miethöhe für WE 3. EK-Grenze | D22: =Daten!L44 -> TRUE | E22: =Daten!M44 -> FALSE | F22: In Abhängigkeit von der Angabe bei der Aufteilung der Wohnungen KANN-Feld oder MUSS-Feld Bereich: "Aufteilung der Wohneinheiten / Einnahmen" Hier ist die Miethöhe pro m² pro Monat für die nicht belegungsgebundenen Wohnungen zu pflegen. Die Miethöhe frei eingebbar und richtet sich in der Regel nach der am Markt erzielbaren Miete. Nicht numerische oder negative Werte sind nicht zulässig.
A23: 21 | B23: Berechnung | C23: =Daten!J45 -> Sonstige Einnahmen | D23: =Daten!L45 -> FALSE | E23: =Daten!M45 -> FALSE | F23: KANN-Feld Bereich: "Aufteilung der Wohneinheiten / Einnahmen" Hier sind weitere jährliche Einnahmen (außer Mieteinnahmen) für die "Geförderten Wohnungen" zu pflegen. Nicht numerische oder negative Werte sind nicht zulässig.
A24: 22 | B24: Berechnung | C24: =Daten!J47 -> Grundstückskosten | D24: =Daten!L47 -> TRUE | E24: =Daten!M47 -> TRUE | F24: KANN-Feld Bereich: ''Kosten / Finanzierung'' Bitte überprüfen Sie Ihre Angaben bei den Grundstückskosten. Nicht numerische oder negative Eingaben sind hier nicht zulässig.
A25: 23 | B25: Berechnung | C25: =Daten!J48 -> Erwerbskosten | D25: =Daten!L48 -> TRUE | E25: =Daten!M48 -> TRUE | F25: KANN-Feld Bereich: ''Kosten / Finanzierung'' Bitte überprüfen Sie Ihre Angaben bei den Erwerbskosten. Nicht numerische oder negative Eingaben sind hier nicht zulässig.
A26: 24 | B26: Berechnung | C26: =Daten!J49 -> Baukosten | D26: =Daten!L49 -> TRUE | E26: =Daten!M49 -> FALSE | F26: KANN-Feld Bereich: ''Kosten / Finanzierung'' Bitte überprüfen Sie Ihre Angaben bei den Baukosten. Nicht numerische oder negative Eingaben sind hier nicht zulässig.
A27: 25 | B27: Berechnung | C27: =Daten!J50 -> Baunebenkosten | D27: =Daten!L50 -> TRUE | E27: =Daten!M50 -> TRUE | F27: KANN-Feld Bereich: ''Kosten / Finanzierung'' Bitte überprüfen Sie Ihre Angaben bei den Baunebenkosten. Nicht numerische oder negative Eingaben sind hier nicht zulässig.
A28: 26 | B28: Berechnung | C28: =Daten!J51 -> Eigenkapital | D28: =Daten!L51 -> FALSE | E28: =Daten!M51 -> FALSE | F28: KANN-Feld Bereich: ''Kosten / Finanzierung'' Bitte geben Sie die Höhe des in die Finanzierung einzubringenden Eigenkapitals hier ein. Beachten Sie hierbei die in blauer Schrift gehaltenen Hinweise zu den Mindesteigenleistungen. Sofern die Mindesteigenleistungen durch andere geeignete Mittel (z. B. ausreichender Wert des vorhandenen Baugrundstücks o. ä.) erfüllt werden, muss hier nicht zwingend eine Eingabe erfolgen. Entscheidend ist, dass die Mindesteigenleistungen insgesamt erbracht werden. Nicht numerische oder negative Eingaben sind hier nicht zulässig.
A29: 27 | B29: Berechnung | C29: =Daten!J52 -> Selbsthilfe | D29: =Daten!L52 -> FALSE | E29: =Daten!M52 -> FALSE | F29: KANN-Feld Bereich: ''Kosten / Finanzierung'' Bitte geben Sie die Höhe der in die Finanzierung einzubringenden Selbsthilfeleistungen hier ein. Beachten Sie hierbei die in blauer Schrift gehaltenen Hinweise zu den Mindesteigenleistungen. Sofern die Mindesteigenleistungen durch andere geeignete Mittel (z. B. ausreichende Höhe an Eigenkapital o. ä.) erfüllt werden, muss hier nicht zwingend eine Eingabe erfolgen. Entscheidend ist, dass die Mindesteigenleistungen insgesamt erbracht werden. Nicht numerische oder negative Eingaben sind hier nicht zulässig.
A30: 28 | B30: Berechnung | C30: =Daten!J53 -> Wert des Baugrundstücks | D30: =Daten!L53 -> FALSE | E30: =Daten!M53 -> FALSE | F30: KANN-Feld Bereich: ''Kosten / Finanzierung'' Bitte geben Sie die Höhe der in die Finanzierung einzubringenden Selbsthilfeleistungen hier ein. Beachten Sie hierbei die in blauer Schrift gehaltenen Hinweise zu den Mindesteigenleistungen. Sofern die Mindesteigenleistungen durch andere geeignete Mittel (z. B. ausreichende Höhe an Eigenkapital o. ä.) erfüllt werden, muss hier nicht zwingend eine Eingabe erfolgen. Entscheidend ist, dass die Mindesteigenleistungen insgesamt erbracht werden. Nicht numerische oder negative Eingaben sind hier nicht zulässig.
A31: 29 | B31: Berechnung | C31: =Daten!J54 -> Wert vorhandener Gebäudeteile | D31: =Daten!L54 -> FALSE | E31: =Daten!M54 -> FALSE | F31: KANN-Feld Bereich: ''Kosten / Finanzierung'' Bitte überprüfen Sie Ihre Angaben beim Wert vorh. Gebäudeteile. Nicht numerische oder negative Eingaben sind hier nicht zulässig.
A32: 30 | B32: Berechnung | C32: =Daten!J55 -> Eigenleistungen (Gesamt) | D32: =Daten!L55 -> TRUE | E32: =Daten!M55 -> FALSE | F32: Bereich: ''Kosten / Finanzierung'' Dieser Fehler kann folgende Ursachen haben: - Es wurden noch keine Eingaben bei den Eigenleistungen vorgenommen. - Die Höhe der Eigenleistungen ist zu gering. Bitte beachten Sie die in blauer Schrift gehaltenen Hinweise zu den Mindesteigenleistungen.
A33: 31 | B33: Berechnung | C33: =Daten!J56 -> Weitere Zuschüsse | D33: =Daten!L56 -> FALSE | E33: =Daten!M56 -> FALSE
A34: 32 | B34: Berechnung | C34: =Daten!J58 -> Kapitaldienst aus bereits bestehenden Finanzierungen | D34: =Daten!L58 -> FALSE | E34: =Daten!M58 -> FALSE | F34: KANN-Feld Bereich: "Darlehen / laufende Aufwendungen" Hier ist der Kapitaldienst einzutragen, der bereits existiert und nicht unmittelbar der hier beantragten Maßnahme zuzuordnen ist. Dies kann beispielsweise bei ModInst Maßnahmen der Fall sein, sofern bereits früher aufgenommene Finanzierungen noch existieren. Auch Belastungen aus Erbbauzinsen fallen hierunter. Bitte beachten Sie, dass an dieser Stelle nicht der Zins- oder Tilgungssatz abgefrat wird, sondern der jährliche Betrag in EUR. Nicht numerische oder negative Werte sind nicht zulässig.
A35: 33 | B35: Berechnung | C35: =Daten!J59 -> Tilgungssatz Förderdarlehen | D35: =Daten!L59 -> TRUE | E35: =Daten!M59 -> TRUE | F35: MUSS-Feld Bereich: ''Darlehen / laufende Aufwendungen'' Dieser Fehler kann folgende Ursachen haben: - Es wurde noch keine Eingabe vorgenommen. - Die Eingabe liegt im falschen Format vor. Die Höhe des Tilgungssatzes können Sie der Richtlinie entnehmen. Nicht numerische oder negative Werte sind nicht zulässig.
A36: 34 | B36: Berechnung | C36: =Daten!J60 -> Zinssatz Sonstige vorgesehene Finanzierung | D36: =Daten!L60 -> FALSE | E36: =Daten!M60 -> FALSE | F36: MUSS-Feld Bereich: "Darlehen / laufende Aufwendungen" Bitte geben Sie den bereits bekannten bzw. angenommenen (marktüblichen) Zinssatz für das "Sonstige (vorgesehen) Darlehen" für die geförderten Wohnungen ein. Bitte achten Sie auch darauf, dass der Kapitaldienst dieser Finanzierung HÖHER sein muss, als der des Förderdarlehens. Dies ist darin begründet, dass die Höhe des Förderdarlehens u. a. von der Objektwirtschaftlichkeit abhängig ist. Sollte diese zu hoch sein, muss das Förderdarlehen anteilig gekürzt und die notwendige Restfinanzierung erhöht werden, bis sich die Objektwirtschaftlichkeit soweit "verschlechtert", dass sich ein vorgegebener Wert ergibt. Sofern die Konditionen des Restdarlehens gleich oder besser sind, als die des Förderdarlehens, kann hier eine solche Berechnung nicht durchgeführt werden. In diesem Fall wird davon ausgegangen, dass sich das Vorhaben mit ausschließlich freien Mitteln besser trägt, als mit Förderdarlehen. Nicht numerische oder negative Werte sind nicht zulässig.
A37: 35 | B37: Berechnung | C37: =Daten!J61 -> Tilgungssatz Sonstige vorgesehene Finanzierung | D37: =Daten!L61 -> FALSE | E37: =Daten!M61 -> FALSE | F37: MUSS-Feld Bereich: "Darlehen / laufende Aufwendungen" Bitte geben Sie den bereits bekannten bzw. angenommenen (marktüblichen) Zinssatz für das "Sonstige (vorgesehene) Darlehen" für die geförderten Wohnungen ein. Bitte achten Sie auch darauf, dass der Kapitaldienst dieser freien Finanzierung HÖHER sein muss, als der des Förderdarlehens. Dies ist darin begründet, dass die Höhe des Förderdarlehens u. a. von der Objektwirtschaftlichkeit abhängig ist. Sollte diese zu hoch sein, muss das Förderdarlehen anteilig gekürzt und die notwendige Restfinanzierung erhöht werden, bis sich die Objektwirtschaftlichkeit soweit "verschlechtert", dass sich ein vorgegebener Wert ergibt. Sofern die Konditionen des Restdarlehens gleich oder besser sind, als die des Förderdarlehens, kann hier eine solche Berechnung nicht durchgeführt werden. In diesem Fall wird davon ausgegangen, dass sich das Vorhaben mit ausschließlich freien Mitteln besser trägt, als mit Förderdarlehen. Nicht numerische oder negative Werte sind nicht zulässig.
A38: 36 | B38: Berechnung | C38: =Daten!J62 -> Zinssatz Restfinanzierung | D38: =Daten!L62 -> TRUE | E38: =Daten!M62 -> TRUE | F38: MUSS-Feld Bereich: "Darlehen / laufende Aufwendungen" Bitte geben Sie den bereits bekannten bzw. angenommenen (marktüblichen) Zinssatz für die noch zu ermittelnde Freie Finanzierung der geförderten Wohnungen ein. Auch wenn aus heutiger Sicht bekannt sein sollte, dass eine Freie Finanzierung ggf. nicht erforderlich wird, müssen hier Konditionen eingegeben werden, da andernfalls eine Berechnung des Förderdarlehens nicht erfolgen kann. Bitte achten Sie auch darauf, dass der Kapitaldienst der freien Finanzierung HÖHER sein muss, als der des Förderdarlehens. Dies ist darin begründet, dass die Höhe des Förderdarlehens u. a. von der Objektwirtschaftlichkeit abhängig ist. Sollte diese zu hoch sein, muss das Förderdarlehen anteilig gekürzt und die notwendige Restfinanzierung erhöht werden, bis sich die Objektwirtschaftlichkeit soweit "verschlechtert", dass sich ein vorgegebener Wert ergibt. Sofern die Konditionen des Restdarlehens gleich oder besser sind, als die des Förderdarlehens, kann hier eine solche Berechnung nicht durchgeführt werden. In diesem Fall wird davon ausgegangen, dass sich das Vorhaben mit ausschließlich freien Mitteln besser trägt, als mit Förderdarlehen. Nicht numerische oder negative Werte sind nicht zulässig.
A39: 37 | B39: Berechnung | C39: =Daten!J63 -> Tilgungssatz Restfinanzierung | D39: =Daten!L63 -> TRUE | E39: =Daten!M63 -> TRUE | F39: MUSS-Feld Bereich: "Darlehen / laufende Aufwendungen" Bitte geben Sie den bereits bekannten bzw. angenommenen (marktüblichen) Tilgungssatz für die noch zu ermittelnde Freie Finanzierung der geförderten Wohnungen ein. Auch wenn aus heutiger Sicht bekannt sein sollte, dass eine Freie Finanzierung ggf. nicht erforderlich wird, müssen hier Konditionen eingegeben werden, da andernfalls eine Berechnung des Förderdarlehens nicht erfolgen kann. Bitte achten Sie auch darauf, dass der Kapitaldienst der freien Finanzierung HÖHER sein muss, als der des Förderdarlehens. Dies ist darin begründet, dass die Höhe des Förderdarlehens u. a. von der Objektwirtschaftlichkeit abhängig ist. Sollte diese zu hoch sein, muss das Förderdarlehen anteilig gekürzt und die notwendige Restfinanzierung erhöht werden, bis sich die Objektwirtschaftlichkeit soweit "verschlechtert", dass sich ein vorgegebener Wert ergibt. Sofern die Konditionen des Restdarlehens gleich oder besser sind, als die des Förderdarlehens, kann hier eine solche Berechnung nicht durchgeführt werden. In diesem Fall wird davon ausgegangen, dass sich das Vorhaben mit ausschließlich freien Mitteln besser trägt, als mit Förderdarlehen. Nicht numerische oder negative Werte sind nicht zulässig.
A40: 38 | B40: Berechnung | C40: =Daten!J65 -> Zusätzliche Aufzüg(e) vorhanden | D40: =Daten!L65 -> TRUE | E40: =Daten!M65 -> TRUE | F40: MUSS-Feld Bereich: "Darlehen/laufende Aufwendungen" Bitte geben Sie an, ob sich im Förderobjekt mindestens ein Aufzug befindet oder nicht. Folgende Schreibweisen sind zulässig: "Ja", "Nein". Groß-/Kleinschreibung ist hierbei unerheblich. Alternativ können Sie auch den Wertepfeil rechts neben dem Eingabefeld benutzen und die entsprechende Angabe auswählen. Diese Angabe hat Einfluss auf die Bewirtschaftungskosten und ist zwingend zu beantworten.
A41: 39 | B41: Berechnung | C41: =Daten!J66 -> Anzahl Stellplätze | D41: =Daten!L66 -> FALSE | E41: =Daten!M66 -> FALSE | F41: KANN-Feld Bereich: "Darlehen/laufende Aufwendungen" Bitte geben Sie hier die Anzahl der (nicht überdachten) Stellplätze, die dem zu fördernden Objekt zuzuordnen sind, in der richtigen Form ein. Sind keine Stellplätze vorhanden, kann dieses Feld leer bleiben, sofern keine sostigen Einnahmen aus dem Objekt hinterlegt wurden. Nicht numerische oder negative Werte sind nicht zulässig.
A42: 40 | B42: Berechnung | C42: Anzahl Garagen / Carports | D42: =Daten!L67 -> FALSE | E42: =Daten!M67 -> FALSE | F42: KANN-Feld Bereich: "Darlehen/laufende Aufwendungen" Bitte geben Sie hier die Anzahl der Garagen bzw. überdachten Stellplätze (Carports), die dem zu fördernden Objekt zuzuordnen sind, in der richtigen Form ein. Sind keine Garagen oder Carports vorhanden, kann dieses Feld leer bleiben, sofern keine sonstigen Einnahmen aus dem Objekt hinterlegt wurden. Nicht numerische oder negative Werte sind nicht zulässig.
A43: 41 | B43: Berechnung | C43: =Daten!J69 -> Nichtverfügbarkeit Deckungsbeitrag | D43: =Daten!L69 -> FALSE | E43: =Daten!M69 -> FALSE | F43: MUSS-Feld Bereich: ''Objektwirtschaftlichkeit alt'' Hier ist auszuwählen, ob der Deckungsbeitrag des Förderobjektes vor Maßnahmebeginn bekannt ist und genutzt werden soll, oder ob statt dessen ein fiktiver Deckungsbeitrag auf Basis einer Rückrechnung der Mieteinnahmen nach Fertigstellung abzüglich einer unterstellten Modernisierungumlage verechnet und verwendet werden soll.
A44: =A41+1 -> 40 | B44: Berechnung | C44: =Daten!J70 -> Objektwirtschaftlichkeit vor Maßnahmebeginn | D44: =Daten!L70 -> FALSE | E44: =Daten!M70 -> FALSE | F44: MUSS-Feld Bereich: ''Objektwirtschaftlichkeit alt'' Hier ist die ermittelte Objektwirtschaftlichkeit vor Maßnahmebeginn einzutragen. In der Regel wird zur Ermittlung der von der ILB zur Verfügung gestellte Vordruck "Modernisierung und Instandsetzung von Wohnraum Übersicht zu den Einnahmen und Belastungen zum Zeitpunkt der Antragstellung'' verwendet. Diese Angabe ist erforderlich, da sich die Objektwirtschaftlichkeit nach Förderung nicht besser darstellen darf, als zuvor. Nicht numerische oder negative Eingaben sind hier nicht zulässig.

Sheet Backups (hidden)
B2: Zwischenspeicherung von Datensätzen
D3: Variablen I | G3: Verfügbarkeit? | H3: Anzahl | I3: Variablen II | K3: Belegt: | L3: =IF(SUMPRODUCT((L$11:L$112<>"")*1)>0,TRUE,FALSE) -> FALSE | M3: =IF(SUMPRODUCT((M$11:M$112<>"")*1)>0,TRUE,FALSE) -> FALSE | N3: FALSE | O3: FALSE | P3: FALSE
D4: =IF(G4=FALSE,0,MATCH(FALSE,L3:P3,0)) -> 1 | E4: Start: | F4: =ROW(B11) -> 11 | G4: =IF(H4=5,FALSE,TRUE) -> TRUE | H4: =COUNTIF(L3:P3,TRUE) -> 0 | I4: Spalte 1: | J4: =COLUMN(L3) -> 12 | K4: Hinweis:
D5: =COLUMN(K10) -> 11 | E5: Ende: | F5: =COUNTA($B$11:$B$219)+F4-1 -> 122 | I5: Spalte 2: | J5: =COLUMN(P3) -> 16 | K5: Timestamp:
D6: - | E6: - | F6: - | G6: - | H6: - | I6: Grunddaten … | K6: Änderungen?
D7: - | E7: - | F7: - | G7: - | H7: - | K7: Mitarbeiterfreigabe?
D8: - | E8: - | F8: - | G8: - | H8: - | K8: Vollsperrung?
B9: Datenfeld | C9: Zellenbezug | K9: Aktuelle Berechnung | L9: Backup
B10: Eingabefeld | C10: Adresse | D10: Länge | E10: "]" | F10: "!" | G10: Blatt | H10: Zelle | I10: Formatierung? | J10: Restoration? | K10: Werte | L10: I | M10: II | N10: III | O10: IV | P10: V
B11: Maßnahmeart | C11: =CELL("adresse",Daten!$M$83) -> '[26.02 - MWB-Förderrechner (Extern).xlsm]Daten'!$M$83 | D11: =LEN(C11) -> 54 | E11: =FIND("]",C11) -> 42 | F11: =FIND("!",C11) -> 49 | G11: =MID(C11,E11+1,F11-E11-2) -> Daten | H11: =MID(C11,FIND("!",C11)+1,D11-F11) -> $M$83 | I11: FALSE | J11: TRUE | K11: =IF(Daten!M83="","-",Daten!M83) -> 1
B12: Maßnahmeklasse
B13: Antragsnummer | C13: =CELL("adresse",Berechnung!V15) -> '[26.02 - MWB-Förderrechner (Extern).xlsm]Berechnung'!$V$15 | D13: =LEN(C13) -> 59 | E13: =FIND("]",C13) -> 42 | F13: =FIND("!",C13) -> 54 | G13: =MID(C13,E13+1,F13-E13-2) -> Berechnung | H13: =MID(C13,FIND("!",C13)+1,D13-F13) -> $V$15 | I13: FALSE | J13: TRUE | K13: =IF(Berechnung!V15="","-",Berechnung!V15) -> -
B14: Name | C14: =CELL("adresse",Berechnung!$G$14) -> '[26.02 - MWB-Förderrechner (Extern).xlsm]Berechnung'!$G$14 | D14: 59 | E14: 42 | F14: 54 | G14: Berechnung | H14: $G$14 | I14: FALSE | J14: TRUE | K14: =IF(Berechnung!G14="","-",Berechnung!G14) -> -
B15: Objektanschrift | C15: =CELL("adresse",Berechnung!$G$15) -> '[26.02 - MWB-Förderrechner (Extern).xlsm]Berechnung'!$G$15 | D15: 59 | E15: 42 | F15: 54 | G15: Berechnung | H15: $G$15 | I15: FALSE | J15: TRUE | K15: =IF(Berechnung!G15="","-",Berechnung!G15) -> -
B16: Gemeinde gemäß Anlage 3 der RL | C16: =CELL("adresse",Berechnung!$K$17) -> '[26.02 - MWB-Förderrechner (Extern).xlsm]Berechnung'!$K$17 | D16: 59 | E16: 42 | F16: 54 | G16: Berechnung | H16: $K$17 | I16: FALSE | J16: TRUE | K16: =IF(Berechnung!K17="","-",Berechnung!K17) -> -
B17: Anzahl der Wohneinheiten (WE) | C17: =CELL("adresse",Berechnung!$K$18) -> '[26.02 - MWB-Förderrechner (Extern).xlsm]Berechnung'!$K$18 | D17: 59 | E17: 42 | F17: 54 | G17: Berechnung | H17: $K$18 | I17: FALSE | J17: TRUE | K17: =IF(Berechnung!K18="","-",Berechnung!K18) -> -
B18: Gesamtwohnfläche | C18: =CELL("adresse",Berechnung!$K$19) -> '[26.02 - MWB-Förderrechner (Extern).xlsm]Berechnung'!$K$19 | D18: 59 | E18: 42 | F18: 54 | G18: Berechnung | H18: $K$19 | I18: FALSE | J18: TRUE | K18: =IF(Berechnung!K19="","-",Berechnung!K19) -> -
B19: Grundstücksgröße | C19: =CELL("adresse",Berechnung!$K$20) -> '[26.02 - MWB-Förderrechner (Extern).xlsm]Berechnung'!$K$20 | D19: 59 | E19: 42 | F19: 54 | G19: Berechnung | H19: $K$20 | I19: FALSE | J19: TRUE | K19: =IF(Berechnung!K20="","-",Berechnung!K20) -> -
B20: Inanspruchnaahme Aufzugsförderung | C20: =CELL("adresse",Berechnung!$K$21) -> '[26.02 - MWB-Förderrechner (Extern).xlsm]Berechnung'!$K$21 | D20: 59 | E20: 42 | F20: 54 | G20: Berechnung | H20: $K$21 | I20: FALSE | J20: TRUE | K20: =IF(Berechnung!K21="","-",Berechnung!K21) -> -
B21: Erreichter Standard "Klimabaustein" | C21: =CELL("adresse",Berechnung!$K$22) -> '[26.02 - MWB-Förderrechner (Extern).xlsm]Berechnung'!$K$22 | D21: =LEN(C21) -> 59 | E21: =FIND("]",C21) -> 42 | F21: =FIND("!",C21) -> 54 | G21: =MID(C21,E21+1,F21-E21-2) -> Berechnung | H21: =MID(C21,FIND("!",C21)+1,D21-F21) -> $K$22 | I21: FALSE | J21: TRUE | K21: =IF(Berechnung!K22="","-",Berechnung!K22) -> -
B22: Fördergegenstand "Klimabaustein" | C22: =CELL("adresse",Berechnung!$Q$22) -> '[26.02 - MWB-Förderrechner (Extern).xlsm]Berechnung'!$Q$22 | D22: =LEN(C22) -> 59 | E22: =FIND("]",C22) -> 42 | F22: =FIND("!",C22) -> 54 | G22: =MID(C22,E22+1,F22-E22-2) -> Berechnung | H22: =MID(C22,FIND("!",C22)+1,D22-F22) -> $Q$22 | I22: FALSE | J22: TRUE | K22: =IF(Berechnung!Q22="","-",Berechnung!Q22) -> -
B23: Quote für Bindungen in 1. EK | C23: =CELL("adresse",Berechnung!$O$21) -> '[26.02 - MWB-Förderrechner (Extern).xlsm]Berechnung'!$O$21 | D23: =LEN(C23) -> 59 | E23: =FIND("]",C23) -> 42 | F23: =FIND("!",C23) -> 54 | G23: =MID(C23,E23+1,F23-E23-2) -> Berechnung | H23: =MID(C23,FIND("!",C23)+1,D23-F23) -> $O$21 | I23: FALSE | J23: TRUE | K23: =IF(Berechnung!O21="","-",Berechnung!O21) -> 35.0000 %
B24: Quote für Bindungen in 2. EK | C24: =CELL("adresse",Berechnung!$S$21) -> '[26.02 - MWB-Förderrechner (Extern).xlsm]Berechnung'!$S$21 | D24: =LEN(C24) -> 59 | E24: =FIND("]",C24) -> 42 | F24: =FIND("!",C24) -> 54 | G24: =MID(C24,E24+1,F24-E24-2) -> Berechnung | H24: =MID(C24,FIND("!",C24)+1,D24-F24) -> $S$21 | I24: FALSE | J24: TRUE | K24: =IF(Berechnung!S21="","-",Berechnung!S21) -> 35.0000 %
B25: WE für 1. EK-Grenze | C25: =CELL("adresse",Berechnung!$J$27) -> '[26.02 - MWB-Förderrechner (Extern).xlsm]Berechnung'!$J$27 | D25: 59 | E25: 42 | F25: 54 | G25: Berechnung | H25: $J$27 | I25: FALSE | J25: TRUE | K25: =IF(Berechnung!J27="","-",Berechnung!J27) -> -
B26: WE für 2. EK-Grenze | C26: =CELL("adresse",Berechnung!$J$28) -> '[26.02 - MWB-Förderrechner (Extern).xlsm]Berechnung'!$J$28 | D26: 59 | E26: 42 | F26: 54 | G26: Berechnung | H26: $J$28 | I26: FALSE | J26: TRUE | K26: =IF(Berechnung!J28="","-",Berechnung!J28) -> -
B27: WE für 3. EK-Grenze / nicht belegungsgebunden | C27: =CELL("adresse",Berechnung!$J$29) -> '[26.02 - MWB-Förderrechner (Extern).xlsm]Berechnung'!$J$29 | D27: 59 | E27: 42 | F27: 54 | G27: Berechnung | H27: $J$29 | I27: FALSE | J27: TRUE | K27: =IF(Berechnung!J29="","-",Berechnung!J29) -> -
B28: Wohnfläche für 1. EK-Grenze | C28: =CELL("adresse",Berechnung!L27) -> '[26.02 - MWB-Förderrechner (Extern).xlsm]Berechnung'!$L$27 | D28: 59 | E28: =FIND("]",C28) -> 42 | F28: =FIND("!",C28) -> 54 | G28: =MID(C28,E28+1,F28-E28-2) -> Berechnung | H28: =MID(C28,FIND("!",C28)+1,D28-F28) -> $L$27 | I28: FALSE | J28: TRUE | K28: =IF(Berechnung!L27="","-",Berechnung!L27) -> -
B29: Wohnfläche für 2. EK-Grenze | C29: =CELL("adresse",Berechnung!L28) -> '[26.02 - MWB-Förderrechner (Extern).xlsm]Berechnung'!$L$28 | D29: 59 | E29: =FIND("]",C29) -> 42 | F29: =FIND("!",C29) -> 54 | G29: =MID(C29,E29+1,F29-E29-2) -> Berechnung | H29: =MID(C29,FIND("!",C29)+1,D29-F29) -> $L$28 | I29: FALSE | J29: TRUE | K29: =IF(Berechnung!L28="","-",Berechnung!L28) -> -
B30: Wohnfläche für 3. EK-Grenze / nicht belegungsgebunden | C30: =CELL("adresse",Berechnung!L29) -> '[26.02 - MWB-Förderrechner (Extern).xlsm]Berechnung'!$L$29 | D30: 59 | E30: =FIND("]",C30) -> 42 | F30: =FIND("!",C30) -> 54 | G30: =MID(C30,E30+1,F30-E30-2) -> Berechnung | H30: =MID(C30,FIND("!",C30)+1,D30-F30) -> $L$29 | I30: FALSE | J30: TRUE | K30: =IF(Berechnung!L29="","-",Berechnung!L29) -> -
B31: Mit gefördertem Aufzug erreichbare WE | C31: =CELL("adresse",Berechnung!$J$34) -> '[26.02 - MWB-Förderrechner (Extern).xlsm]Berechnung'!$J$34 | D31: 59 | E31: 42 | F31: 54 | G31: Berechnung | H31: $J$34 | I31: FALSE | J31: TRUE | K31: =IF(Berechnung!J34="","-",Berechnung!J34) -> -
B32: Davon durch Aufzug barrierefrei erreichbare WE | C32: =CELL("adresse",Berechnung!$J$35) -> '[26.02 - MWB-Förderrechner (Extern).xlsm]Berechnung'!$J$35 | D32: 59 | E32: 42 | F32: 54 | G32: Berechnung | H32: $J$35 | I32: FALSE | J32: TRUE | K32: =IF(Berechnung!J35="","-",Berechnung!J35) -> -
B33: Mit gefördertem Aufzug erreichbare Wohnfläche | C33: =CELL("adresse",Berechnung!$L$34) -> '[26.02 - MWB-Förderrechner (Extern).xlsm]Berechnung'!$L$34 | D33: =LEN(C33) -> 59 | E33: =FIND("]",C33) -> 42 | F33: =FIND("!",C33) -> 54 | G33: =MID(C33,E33+1,F33-E33-2) -> Berechnung | H33: =MID(C33,FIND("!",C33)+1,D33-F33) -> $L$34 | I33: FALSE | J33: TRUE | K33: =IF(Berechnung!L34="","-",Berechnung!L34) -> -
B34: Davon durch Aufzug barrierefrei erreichbare Wohnfläche | C34: =CELL("adresse",Berechnung!$L$35) -> '[26.02 - MWB-Förderrechner (Extern).xlsm]Berechnung'!$L$35 | D34: =LEN(C34) -> 59 | E34: =FIND("]",C34) -> 42 | F34: =FIND("!",C34) -> 54 | G34: =MID(C34,E34+1,F34-E34-2) -> Berechnung | H34: =MID(C34,FIND("!",C34)+1,D34-F34) -> $L$35 | I34: FALSE | J34: TRUE | K34: =IF(Berechnung!L35="","-",Berechnung!L35) -> -
B35: Miethöhe für WE 1. EK-Grenze | C35: =CELL("adresse",Berechnung!V27) -> '[26.02 - MWB-Förderrechner (Extern).xlsm]Berechnung'!$V$27 | D35: 59 | E35: 42 | F35: 54 | G35: Berechnung | H35: $V$27 | I35: FALSE | J35: TRUE | K35: =IF(Berechnung!V27="","-",Berechnung!V27) -> -
B36: Miethöhe für WE 2. EK-Grenze | C36: =CELL("adresse",Berechnung!V28) -> '[26.02 - MWB-Förderrechner (Extern).xlsm]Berechnung'!$V$28 | D36: 59 | E36: 42 | F36: 54 | G36: Berechnung | H36: $V$28 | I36: FALSE | J36: TRUE | K36: =IF(Berechnung!V28="","-",Berechnung!V28) -> -
B37: Miethöhe für WE 3. EK-Grenze / nicht belegungsgebunden | C37: =CELL("adresse",Berechnung!V29) -> '[26.02 - MWB-Förderrechner (Extern).xlsm]Berechnung'!$V$29 | D37: 59 | E37: 42 | F37: 54 | G37: Berechnung | H37: $V$29 | I37: FALSE | J37: TRUE | K37: =IF(Berechnung!V29="","-",Berechnung!V29) -> -
B38: Sonstige Einnahmen | C38: =CELL("adresse",Berechnung!V31) -> '[26.02 - MWB-Förderrechner (Extern).xlsm]Berechnung'!$V$31 | D38: 59 | E38: =FIND("]",C38) -> 42 | F38: =FIND("!",C38) -> 54 | G38: =MID(C38,E38+1,F38-E38-2) -> Berechnung | H38: =MID(C38,FIND("!",C38)+1,D38-F38) -> $V$31 | I38: FALSE | J38: TRUE | K38: =IF(Berechnung!V31="","-",Berechnung!V31) -> -
B39: Grundstückskosten | C39: =CELL("adresse",Berechnung!I40) -> '[26.02 - MWB-Förderrechner (Extern).xlsm]Berechnung'!$I$40 | D39: 59 | E39: 42 | F39: 54 | G39: Berechnung | H39: $I$40 | I39: FALSE | J39: TRUE | K39: =IF(Berechnung!I40="","-",Berechnung!I40) -> -
B40: Erwerbskosten | C40: =CELL("adresse",Berechnung!I41) -> '[26.02 - MWB-Förderrechner (Extern).xlsm]Berechnung'!$I$41 | D40: 59 | E40: 42 | F40: 54 | G40: Berechnung | H40: $I$41 | I40: FALSE | J40: TRUE | K40: =IF(Berechnung!I41="","-",Berechnung!I41) -> -
B41: Baukosten | C41: =CELL("adresse",Berechnung!I42) -> '[26.02 - MWB-Förderrechner (Extern).xlsm]Berechnung'!$I$42 | D41: 59 | E41: 42 | F41: 54 | G41: Berechnung | H41: $I$42 | I41: FALSE | J41: TRUE | K41: =IF(Berechnung!I42="","-",Berechnung!I42) -> -
B42: Baunebenkosten | C42: =CELL("adresse",Berechnung!I43) -> '[26.02 - MWB-Förderrechner (Extern).xlsm]Berechnung'!$I$43 | D42: 59 | E42: 42 | F42: 54 | G42: Berechnung | H42: $I$43 | I42: FALSE | J42: TRUE | K42: =IF(Berechnung!I43="","-",Berechnung!I43) -> -
B43: Eigenkapital | C43: =CELL("adresse",Berechnung!V40) -> '[26.02 - MWB-Förderrechner (Extern).xlsm]Berechnung'!$V$40 | D43: 59 | E43: 42 | F43: 54 | G43: Berechnung | H43: $V$40 | I43: FALSE | J43: TRUE | K43: =IF(Berechnung!V40="","-",Berechnung!V40) -> -
B44: Selbsthilfe | C44: =CELL("adresse",Berechnung!V41) -> '[26.02 - MWB-Förderrechner (Extern).xlsm]Berechnung'!$V$41 | D44: 59 | E44: 42 | F44: 54 | G44: Berechnung | H44: $V$41 | I44: FALSE | J44: TRUE | K44: =IF(Berechnung!V41="","-",Berechnung!V41) -> -
B45: Wert des Baugrundstücks | C45: =CELL("adresse",Berechnung!V42) -> '[26.02 - MWB-Förderrechner (Extern).xlsm]Berechnung'!$V$42 | D45: 59 | E45: 42 | F45: 54 | G45: Berechnung | H45: $V$42 | I45: FALSE | J45: TRUE | K45: =IF(Berechnung!V42="","-",Berechnung!V42) -> -
B46: Wert vorhandener Gebäudeteile | C46: =CELL("adresse",Berechnung!V43) -> '[26.02 - MWB-Förderrechner (Extern).xlsm]Berechnung'!$V$43 | D46: 59 | E46: 42 | F46: 54 | G46: Berechnung | H46: $V$43 | I46: FALSE | J46: TRUE | K46: =IF(Berechnung!V43="","-",Berechnung!V43) -> -
B47: Name Sonstiger Zuschuss I | C47: =CELL("adresse",Berechnung!P50) -> '[26.02 - MWB-Förderrechner (Extern).xlsm]Berechnung'!$P$50 | D47: =LEN(C47) -> 59 | E47: =FIND("]",C47) -> 42 | F47: =FIND("!",C47) -> 54 | G47: =MID(C47,E47+1,F47-E47-2) -> Berechnung | H47: =MID(C47,FIND("!",C47)+1,D47-F47) -> $P$50 | I47: TRUE | J47: TRUE | K47: =IF(Berechnung!P50="","-",Berechnung!P50) -> Sonstiger Zuschuss I (bitte benennen):
B48: Betrag Sonstiger Zuschuss I | C48: =CELL("adresse",Berechnung!V50) -> '[26.02 - MWB-Förderrechner (Extern).xlsm]Berechnung'!$V$50 | D48: 59 | E48: 42 | F48: 54 | G48: Berechnung | H48: $V$50 | I48: FALSE | J48: TRUE | K48: =IF(Berechnung!V50="","-",Berechnung!V50) -> -
B49: Name Sonstiger Zuschuss II | C49: =CELL("adresse",Berechnung!P51) -> '[26.02 - MWB-Förderrechner (Extern).xlsm]Berechnung'!$P$51 | D49: 59 | E49: 42 | F49: 54 | G49: Berechnung | H49: $P$51 | I49: TRUE | J49: TRUE | K49: =IF(Berechnung!P51="","-",Berechnung!P51) -> Sonstiger Zuschuss II (bitte benennen):
B50: Betrag Sonstiger Zuschuss II | C50: =CELL("adresse",Berechnung!V51) -> '[26.02 - MWB-Förderrechner (Extern).xlsm]Berechnung'!$V$51 | D50: 59 | E50: 42 | F50: 54 | G50: Berechnung | H50: $V$51 | I50: FALSE | J50: TRUE | K50: =IF(Berechnung!V51="","-",Berechnung!V51) -> -
B51: Kapitaldienst aus bereits bestehenden Finanzierungen | C51: =CELL("adresse",Berechnung!V60) -> '[26.02 - MWB-Förderrechner (Extern).xlsm]Berechnung'!$V$60 | D51: 59 | E51: 42 | F51: 54 | G51: Berechnung | H51: $V$60 | I51: FALSE | J51: TRUE | K51: =IF(Berechnung!V60="","-",Berechnung!V60) -> -
B52: Zinssatz Förderdarlehen | C52: =CELL("adresse",Berechnung!Q61) -> '[26.02 - MWB-Förderrechner (Extern).xlsm]Berechnung'!$Q$61 | D52: =LEN(C52) -> 59 | E52: =FIND("]",C52) -> 42 | F52: =FIND("!",C52) -> 54 | G52: =MID(C52,E52+1,F52-E52-2) -> Berechnung | H52: =MID(C52,FIND("!",C52)+1,D52-F52) -> $Q$61 | I52: FALSE | J52: FALSE | K52: =IF(Berechnung!Q61="","-",Berechnung!Q61) -> 0.5000 %
B53: Tilgungssatz Förderdarlehen | C53: =CELL("adresse",Berechnung!S61) -> '[26.02 - MWB-Förderrechner (Extern).xlsm]Berechnung'!$S$61 | D53: 59 | E53: 42 | F53: 54 | G53: Berechnung | H53: $S$61 | I53: FALSE | J53: TRUE | K53: =IF(Berechnung!S61="","-",Berechnung!S61) -> 2.0000 %
B54: Name Sonstige vorgesehene Finanzierung | C54: =CELL("adresse",Berechnung!D64) -> '[26.02 - MWB-Förderrechner (Extern).xlsm]Berechnung'!$D$64 | D54: 59 | E54: 42 | F54: 54 | G54: Berechnung | H54: $D$64 | I54: TRUE | J54: TRUE | K54: =IF(Berechnung!D64="","-",Berechnung!D64) -> -
B55: Betrag Sonstige vorgesehene Finanzierung | C55: =CELL("adresse",Berechnung!L64) -> '[26.02 - MWB-Förderrechner (Extern).xlsm]Berechnung'!$L$64 | D55: 59 | E55: 42 | F55: 54 | G55: Berechnung | H55: $L$64 | I55: FALSE | J55: TRUE | K55: =IF(Berechnung!L64="","-",Berechnung!L64) -> -
B56: Zinssatz Sonstige vorgesehene Finanzierung | C56: =CELL("adresse",Berechnung!Q64) -> '[26.02 - MWB-Förderrechner (Extern).xlsm]Berechnung'!$Q$64 | D56: 59 | E56: 42 | F56: 54 | G56: Berechnung | H56: $Q$64 | I56: FALSE | J56: TRUE | K56: =IF(Berechnung!Q64="","-",Berechnung!Q64) -> -
B57: Tilgungssatz Sonstige vorgesehene Finanzierung | C57: =CELL("adresse",Berechnung!S64) -> '[26.02 - MWB-Förderrechner (Extern).xlsm]Berechnung'!$S$64 | D57: 59 | E57: 42 | F57: 54 | G57: Berechnung | H57: $S$64 | I57: FALSE | J57: TRUE | K57: =IF(Berechnung!S64="","-",Berechnung!S64) -> -
B58: Zinssatz Restfinanzierung | C58: =CELL("adresse",Berechnung!Q65) -> '[26.02 - MWB-Förderrechner (Extern).xlsm]Berechnung'!$Q$65 | D58: 59 | E58: 42 | F58: 54 | G58: Berechnung | H58: $Q$65 | I58: FALSE | J58: TRUE | K58: =IF(Berechnung!Q65="","-",Berechnung!Q65) -> 4.0000 %
B59: Tilgungssatz Restfinanzierung | C59: =CELL("adresse",Berechnung!S65) -> '[26.02 - MWB-Förderrechner (Extern).xlsm]Berechnung'!$S$65 | D59: 59 | E59: 42 | F59: 54 | G59: Berechnung | H59: $S$65 | I59: FALSE | J59: TRUE | K59: =IF(Berechnung!S65="","-",Berechnung!S65) -> 2.0000 %
B60: Bewirtschaftungskosten | C60: =CELL("adresse",Berechnung!G69) -> '[26.02 - MWB-Förderrechner (Extern).xlsm]Berechnung'!$G$69 | D60: 59 | E60: 42 | F60: 54 | G60: Berechnung | H60: $G$69 | I60: FALSE | J60: TRUE | K60: =IF(Berechnung!G69="","-",Berechnung!G69) -> -
B61: Anzahl Stellplätze | C61: =CELL("adresse",Berechnung!G70) -> '[26.02 - MWB-Förderrechner (Extern).xlsm]Berechnung'!$G$70 | D61: =LEN(C61) -> 59 | E61: =FIND("]",C61) -> 42 | F61: =FIND("!",C61) -> 54 | G61: =MID(C61,E61+1,F61-E61-2) -> Berechnung | H61: =MID(C61,FIND("!",C61)+1,D61-F61) -> $G$70 | I61: FALSE | J61: TRUE | K61: =IF(Berechnung!G70="","-",Berechnung!G70) -> -
B62: Anzahl Garagen / Carports | C62: =CELL("adresse",Berechnung!G71) -> '[26.02 - MWB-Förderrechner (Extern).xlsm]Berechnung'!$G$71 | D62: 59 | E62: 42 | F62: 54 | G62: Berechnung | H62: $G$71 | I62: FALSE | J62: TRUE | K62: =IF(Berechnung!G71="","-",Berechnung!G71) -> -
B63: Aufzug vorhanden | C63: =CELL("adresse",Berechnung!G72) -> '[26.02 - MWB-Förderrechner (Extern).xlsm]Berechnung'!$G$72 | D63: 59 | E63: 42 | F63: 54 | G63: Berechnung | H63: $G$72 | I63: FALSE | J63: TRUE | K63: =IF(Berechnung!G72="","-",Berechnung!G72) -> Nein
B64: Basis Eigenkapitalverzinsung | C64: =CELL("adresse",Berechnung!V78) -> '[26.02 - MWB-Förderrechner (Extern).xlsm]Berechnung'!$V$78 | D64: 59 | E64: 42 | F64: 54 | G64: Berechnung | H64: $V$78 | I64: FALSE | J64: TRUE | K64: =IF(Berechnung!V78="","-",Berechnung!V78) -> -
B65: Nichtverfügbarkeit Deckungsbeitrag | C65: =CELL("adresse",Berechnung!U87) -> '[26.02 - MWB-Förderrechner (Extern).xlsm]Berechnung'!$U$87 | D65: =LEN(C65) -> 59 | E65: =FIND("]",C65) -> 42 | F65: =FIND("!",C65) -> 54 | G65: =MID(C65,E65+1,F65-E65-2) -> Berechnung | H65: =MID(C65,FIND("!",C65)+1,D65-F65) -> $U$87 | I65: FALSE | J65: TRUE | K65: =IF(Berechnung!U87="","-",Berechnung!U87) -> -
B66: Objektwirtschaftlichkeit vor Maßnahmebeginn | C66: =CELL("adresse",Berechnung!V88) -> '[26.02 - MWB-Förderrechner (Extern).xlsm]Berechnung'!$V$88 | D66: 59 | E66: 42 | F66: 54 | G66: Berechnung | H66: $V$88 | I66: FALSE | J66: TRUE | K66: =IF(Berechnung!V88="","-",Berechnung!V88) -> -
B67: Notwendige Restfinanzierung | C67: =CELL("adresse",Berechnung!L65) -> '[26.02 - MWB-Förderrechner (Extern).xlsm]Berechnung'!$L$65 | D67: =LEN(C67) -> 59 | E67: =FIND("]",C67) -> 42 | F67: =FIND("!",C67) -> 54 | G67: =MID(C67,E67+1,F67-E67-2) -> Berechnung | H67: =MID(C67,FIND("!",C67)+1,D67-F67) -> $L$65 | I67: FALSE | J67: FALSE | K67: =Berechnung!L65 -> 0.00 €
B68: Baudarlehen I (Maßnahme) | C68: =CELL("adresse",Daten!M143) -> '[26.02 - MWB-Förderrechner (Extern).xlsm]Daten'!$M$143 | D68: =LEN(C68) -> 55 | E68: =FIND("]",C68) -> 42 | F68: =FIND("!",C68) -> 49 | G68: =MID(C68,E68+1,F68-E68-2) -> Daten | H68: =MID(C68,FIND("!",C68)+1,D68-F68) -> $M$143 | I68: FALSE | J68: FALSE | K68: =Daten!M143 -> 0.00 €
B69: Baudarlehen II (Aufzug) | C69: =CELL("adresse",Daten!M144) -> '[26.02 - MWB-Förderrechner (Extern).xlsm]Daten'!$M$144 | D69: 55 | E69: 42 | F69: 49 | G69: Daten | H69: $M$144 | I69: FALSE | J69: FALSE | K69: =Daten!M144 -> 0.00 €
B70: Baudarlehen III (Klimabaustein) | C70: =CELL("adresse",Daten!M145) -> '[26.02 - MWB-Förderrechner (Extern).xlsm]Daten'!$M$145 | D70: 55 | E70: 42 | F70: 49 | G70: Daten | H70: $M$145 | I70: FALSE | J70: FALSE | K70: =Daten!M145 -> 0.00 €
B71: Förderzuschuss I (Bindung / Baukosten) | C71: =CELL("adresse",Daten!M139) -> '[26.02 - MWB-Förderrechner (Extern).xlsm]Daten'!$M$139 | D71: 55 | E71: 42 | F71: 49 | G71: Daten | H71: $M$139 | I71: FALSE | J71: FALSE | K71: =Daten!M139 -> 0.00 €
B72: Förderzuschuss II (Aufzug) | C72: =CELL("adresse",Daten!M140) -> '[26.02 - MWB-Förderrechner (Extern).xlsm]Daten'!$M$140 | D72: 55 | E72: 42 | F72: 49 | G72: Daten | H72: $M$140 | I72: FALSE | J72: FALSE | K72: =Daten!M140 -> 0.00 €
B73: Förderzuschuss III (Klimabaustein) | C73: =CELL("adresse",Daten!M141) -> '[26.02 - MWB-Förderrechner (Extern).xlsm]Daten'!$M$141 | D73: 55 | E73: 42 | F73: 49 | G73: Daten | H73: $M$141 | I73: FALSE | J73: FALSE | K73: =Daten!M141 -> 0.00 €
B74: Kappung des Darlehens bei Förderung über Höchstförderung | C74: =CELL("adresse",Grunddaten!H40) -> '[26.02 - MWB-Förderrechner (Extern).xlsm]Grunddaten'!$H$40 | D74: 59 | E74: 42 | F74: 54 | G74: Grunddaten | H74: $H$40 | I74: FALSE | J74: =IF(Grunddaten!$U$98=TRUE,TRUE,FALSE) -> FALSE | K74: =Grunddaten!H40 -> TRUE
B75: Höchstförderung Darlehen - Neubau, Umnutzung ohne Zuschuss | C75: =CELL("adresse",Grunddaten!H41) -> '[26.02 - MWB-Förderrechner (Extern).xlsm]Grunddaten'!$H$41 | D75: =LEN(C75) -> 59 | E75: =FIND("]",C75) -> 42 | F75: =FIND("!",C75) -> 54 | G75: =MID(C75,E75+1,F75-E75-2) -> Grunddaten | H75: =MID(C75,FIND("!",C75)+1,D75-F75) -> $H$41 | I75: FALSE | J75: =$J$74 -> FALSE | K75: =Grunddaten!H41 -> 2,200.00 €
B76: Höchstförderung Darlehen - Neubau, Umnutzung mit Zuschuss | C76: =CELL("adresse",Grunddaten!H42) -> '[26.02 - MWB-Förderrechner (Extern).xlsm]Grunddaten'!$H$42 | D76: 59 | E76: 42 | F76: 54 | G76: Grunddaten | H76: $H$42 | I76: FALSE | J76: FALSE | K76: =Grunddaten!H42 -> 2,200.00 €
B77: Höchstförderung Darlehen - ModInst | C77: =CELL("adresse",Grunddaten!H43) -> '[26.02 - MWB-Förderrechner (Extern).xlsm]Grunddaten'!$H$43 | D77: 59 | E77: 42 | F77: 54 | G77: Grunddaten | H77: $H$43 | I77: FALSE | J77: FALSE | K77: =Grunddaten!H43 -> 2,000.00 €
B78: Höchstförderung Darlehen - Aufzug (nur informativ) | C78: =CELL("adresse",Grunddaten!H44) -> '[26.02 - MWB-Förderrechner (Extern).xlsm]Grunddaten'!$H$44 | D78: 59 | E78: 42 | F78: 54 | G78: Grunddaten | H78: $H$44 | I78: FALSE | J78: FALSE | K78: =Grunddaten!H44 -> 25,000.00 €
B79: Höchstförderung Zuschuss - Grundförderung (Neubau / Umnutzung) | C79: =CELL("adresse",Grunddaten!H45) -> '[26.02 - MWB-Förderrechner (Extern).xlsm]Grunddaten'!$H$45 | D79: =LEN(C79) -> 59 | E79: =FIND("]",C79) -> 42 | F79: =FIND("!",C79) -> 54 | G79: =MID(C79,E79+1,F79-E79-2) -> Grunddaten | H79: =MID(C79,FIND("!",C79)+1,D79-F79) -> $H$45 | I79: FALSE | J79: FALSE | K79: =Grunddaten!H45 -> 500.00 €
B80: Höchstförderung Zuschuss - Grundförderung (ModInst) | C80: =CELL("adresse",Grunddaten!H46) -> '[26.02 - MWB-Förderrechner (Extern).xlsm]Grunddaten'!$H$46 | D80: =LEN(C80) -> 59 | E80: =FIND("]",C80) -> 42 | F80: =FIND("!",C80) -> 54 | G80: =MID(C80,E80+1,F80-E80-2) -> Grunddaten | H80: =MID(C80,FIND("!",C80)+1,D80-F80) -> $H$46 | I80: FALSE | J80: FALSE | K80: =Grunddaten!H46 -> 500.00 €
B81: Höchstförderung Zuschuss - Verlängerung Belegungsbindung | C81: =CELL("adresse",Grunddaten!H47) -> '[26.02 - MWB-Förderrechner (Extern).xlsm]Grunddaten'!$H$47 | D81: 59 | E81: 42 | F81: 54 | G81: Grunddaten | H81: $H$47 | I81: FALSE | J81: FALSE | K81: =Grunddaten!H47 -> 0.00 €
B82: Maximale Überdeckung p. a. (nur Neubau und Umnutzung) | C82: =CELL("adresse",Grunddaten!H48) -> '[26.02 - MWB-Förderrechner (Extern).xlsm]Grunddaten'!$H$48 | D82: 59 | E82: 42 | F82: 54 | G82: Grunddaten | H82: $H$48 | I82: FALSE | J82: FALSE | K82: =Grunddaten!H48 -> 120.00 €
B83: Zuschuss für NICHT barrierefrei erreichbare Wohneinheiten | C83: =CELL("adresse",Grunddaten!H50) -> '[26.02 - MWB-Förderrechner (Extern).xlsm]Grunddaten'!$H$50 | D83: 59 | E83: 42 | F83: 54 | G83: Grunddaten | H83: $H$50 | I83: FALSE | J83: FALSE | K83: =Grunddaten!H50 -> 5,000.00 €
B84: Darlehen für NICHT barrierefrei erreichbare Wohneinheiten | C84: =CELL("adresse",Grunddaten!H51) -> '[26.02 - MWB-Förderrechner (Extern).xlsm]Grunddaten'!$H$51 | D84: 59 | E84: 42 | F84: 54 | G84: Grunddaten | H84: $H$51 | I84: FALSE | J84: FALSE | K84: =Grunddaten!H51 -> 20,000.00 €
B85: Zuschuss für barrierefrei erreichbare Wohneinheiten | C85: =CELL("adresse",Grunddaten!H52) -> '[26.02 - MWB-Förderrechner (Extern).xlsm]Grunddaten'!$H$52 | D85: =LEN(C85) -> 59 | E85: =FIND("]",C85) -> 42 | F85: =FIND("!",C85) -> 54 | G85: Grunddaten | H85: $H$52 | I85: FALSE | J85: FALSE | K85: =Grunddaten!H52 -> 10,000.00 €
B86: Darlehen für barrierefrei erreichbare Wohneinheiten | C86: =CELL("adresse",Grunddaten!H53) -> '[26.02 - MWB-Förderrechner (Extern).xlsm]Grunddaten'!$H$53 | D86: 59 | E86: 42 | F86: 54 | G86: Grunddaten | H86: $H$53 | I86: FALSE | J86: FALSE | K86: =Grunddaten!H53 -> 15,000.00 €
B87: Zuschuss pro m² für Wohnfläche mit erreichten Standard | C87: =CELL("adresse",Grunddaten!H55) -> '[26.02 - MWB-Förderrechner (Extern).xlsm]Grunddaten'!$H$55 | D87: 59 | E87: 42 | F87: 54 | G87: Grunddaten | H87: $H$55 | I87: FALSE | J87: FALSE | K87: =Grunddaten!H55 -> 300.00 €
B88: Zinssatz bzw. LVKB Förderdarlehen | C88: =CELL("adresse",Grunddaten!H57) -> '[26.02 - MWB-Förderrechner (Extern).xlsm]Grunddaten'!$H$57 | D88: 59 | E88: 42 | F88: 54 | G88: Grunddaten | H88: $H$57 | I88: FALSE | J88: FALSE | K88: =Grunddaten!H57 -> 0.5000 %
B89: Tilgungssatz Förderdarlehen | C89: =CELL("adresse",Grunddaten!H58) -> '[26.02 - MWB-Förderrechner (Extern).xlsm]Grunddaten'!$H$58 | D89: 59 | E89: 42 | F89: 54 | G89: Grunddaten | H89: $H$58 | I89: FALSE | J89: FALSE | K89: =Grunddaten!H58 -> 2.0000 %
B90: Maximale zulässige Annuität bei (deutlich) erhöhtem Einsatz von Eigenmitteln | C90: =CELL("adresse",Grunddaten!H59) -> '[26.02 - MWB-Förderrechner (Extern).xlsm]Grunddaten'!$H$59 | D90: =LEN(C90) -> 59 | E90: =FIND("]",C90) -> 42 | F90: =FIND("!",C90) -> 54 | G90: =MID(C90,E90+1,F90-E90-2) -> Grunddaten | H90: =MID(C90,FIND("!",C90)+1,D90-F90) -> $H$59 | I90: FALSE | J90: FALSE | K90: =Grunddaten!H59 -> 5.0000 %
B91: Mindesteigenleistungen Neubau / Umnutzung | C91: =CELL("adresse",Grunddaten!H61) -> '[26.02 - MWB-Förderrechner (Extern).xlsm]Grunddaten'!$H$61 | D91: 59 | E91: 42 | F91: 54 | G91: Grunddaten | H91: $H$61 | I91: FALSE | J91: FALSE | K91: =Grunddaten!H65 -> 100.0000 %
B92: Mindesteigenleistungen Mod / Inst | C92: =CELL("adresse",Grunddaten!H62) -> '[26.02 - MWB-Förderrechner (Extern).xlsm]Grunddaten'!$H$62 | D92: 59 | E92: 42 | F92: 54 | G92: Grunddaten | H92: $H$62 | I92: FALSE | J92: FALSE | K92: =Grunddaten!H66 -> 100.0000 %
B93: Mindesteigenleistungen Solo-Aufzug | C93: =CELL("adresse",Grunddaten!H63) -> '[26.02 - MWB-Förderrechner (Extern).xlsm]Grunddaten'!$H$63 | D93: 59 | E93: 42 | F93: 54 | G93: Grunddaten | H93: $H$63 | I93: FALSE | J93: FALSE | K93: =Grunddaten!H67 -> 100.0000 %
B94: BB Neubau sowie Umnutzung / Wiederherstellung | C94: =CELL("adresse",Grunddaten!H65) -> '[26.02 - MWB-Förderrechner (Extern).xlsm]Grunddaten'!$H$65 | D94: 59 | E94: 42 | F94: 54 | G94: Grunddaten | H94: $H$65 | I94: FALSE | J94: FALSE | K94: =Grunddaten!H65 -> 100.0000 %
B95: BB Mod / Inst, wenn BV in Gemeinde gem. Anl. 2 der RL | C95: =CELL("adresse",Grunddaten!H66) -> '[26.02 - MWB-Förderrechner (Extern).xlsm]Grunddaten'!$H$66 | D95: 59 | E95: 42 | F95: 54 | G95: Grunddaten | H95: $H$66 | I95: FALSE | J95: FALSE | K95: =Grunddaten!H66 -> 100.0000 %
B96: BB Mod / Inst, wenn BV in übriger Gemeinde | C96: =CELL("adresse",Grunddaten!H67) -> '[26.02 - MWB-Förderrechner (Extern).xlsm]Grunddaten'!$H$67 | D96: 59 | E96: 42 | F96: 54 | G96: Grunddaten | H96: $H$67 | I96: FALSE | J96: FALSE | K96: =Grunddaten!H67 -> 100.0000 %
B97: BB Solo-Förderung Aufzüge | C97: =CELL("adresse",Grunddaten!H68) -> '[26.02 - MWB-Förderrechner (Extern).xlsm]Grunddaten'!$H$68 | D97: =LEN(C97) -> 59 | E97: =FIND("]",C97) -> 42 | F97: =FIND("!",C97) -> 54 | G97: =MID(C97,E97+1,F97-E97-2) -> Grunddaten | H97: =MID(C97,FIND("!",C97)+1,D97-F97) -> $H$68 | I97: FALSE | J97: FALSE | K97: =Grunddaten!H68 -> 100.0000 %
B98: BB davon 1. EK-Grenze (Minimum) | C98: =CELL("adresse",Grunddaten!H69) -> '[26.02 - MWB-Förderrechner (Extern).xlsm]Grunddaten'!$H$69 | D98: =LEN(C98) -> 59 | E98: =FIND("]",C98) -> 42 | F98: =FIND("!",C98) -> 54 | G98: =MID(C98,E98+1,F98-E98-2) -> Grunddaten | H98: =MID(C98,FIND("!",C98)+1,D98-F98) -> $H$69 | I98: FALSE | J98: FALSE | K98: =Grunddaten!H69 -> 35.0000 %
B99: BB davon 2. EK-Grenze (Rest - anhängig von Bindungen in 1. EK-Grenze) | C99: =CELL("adresse",Grunddaten!H70) -> '[26.02 - MWB-Förderrechner (Extern).xlsm]Grunddaten'!$H$70 | D99: =LEN(C99) -> 59 | E99: =FIND("]",C99) -> 42 | F99: =FIND("!",C99) -> 54 | G99: =MID(C99,E99+1,F99-E99-2) -> Grunddaten | H99: =MID(C99,FIND("!",C99)+1,D99-F99) -> $H$70 | I99: FALSE | J99: FALSE | K99: =Grunddaten!H70 -> 35.0000 %
B100: BB davon 3. EK-Grenze (Rest - anhängig von Bindungen in 2. EK-Grenze) | C100: =CELL("adresse",Grunddaten!H71) -> '[26.02 - MWB-Förderrechner (Extern).xlsm]Grunddaten'!$H$71 | D100: =LEN(C100) -> 59 | E100: =FIND("]",C100) -> 42 | F100: =FIND("!",C100) -> 54 | G100: =MID(C100,E100+1,F100-E100-2) -> Grunddaten | H100: =MID(C100,FIND("!",C100)+1,D100-F100) -> $H$71 | I100: FALSE | J100: FALSE | K100: =Grunddaten!H71 -> 30.0000 %
B101: Bindungsquoten müssen auch für die Anzahl der Wohneinheiten erfüllt werden | C101: =CELL("adresse",Grunddaten!H72) -> '[26.02 - MWB-Förderrechner (Extern).xlsm]Grunddaten'!$H$72 | D101: =LEN(C101) -> 59 | E101: =FIND("]",C101) -> 42 | F101: =FIND("!",C101) -> 54 | G101: =MID(C101,E101+1,F101-E101-2) -> Grunddaten | H101: =MID(C101,FIND("!",C101)+1,D101-F101) -> $H$72 | I101: FALSE | J101: FALSE | K101: =Grunddaten!H72 -> TRUE
B102: Max. Miete für 1. EK-Grenze Anlage 3 RL | C102: =CELL("adresse",Grunddaten!H74) -> '[26.02 - MWB-Förderrechner (Extern).xlsm]Grunddaten'!$H$74 | D102: 59 | E102: 42 | F102: 54 | G102: Grunddaten | H102: $H$74 | I102: FALSE | J102: FALSE | K102: =Grunddaten!H74 -> 7.00 €
B103: Max. Miete für 2. EK-Grenze Anlage 3 RL | C103: =CELL("adresse",Grunddaten!H75) -> '[26.02 - MWB-Förderrechner (Extern).xlsm]Grunddaten'!$H$75 | D103: =LEN(C103) -> 59 | E103: =FIND("]",C103) -> 42 | F103: =FIND("!",C103) -> 54 | G103: =MID(C103,E103+1,F103-E103-2) -> Grunddaten | H103: =MID(C103,FIND("!",C103)+1,D103-F103) -> $H$75 | I103: FALSE | J103: FALSE | K103: =Grunddaten!H75 -> 9.50 €
B104: Max. Miete für 3. EK-Grenze Anlage 3 RL | C104: =CELL("adresse",Grunddaten!H76) -> '[26.02 - MWB-Förderrechner (Extern).xlsm]Grunddaten'!$H$76 | D104: =LEN(C104) -> 59 | E104: =FIND("]",C104) -> 42 | F104: =FIND("!",C104) -> 54 | G104: =MID(C104,E104+1,F104-E104-2) -> Grunddaten | H104: =MID(C104,FIND("!",C104)+1,D104-F104) -> $H$76 | I104: FALSE | J104: FALSE | K104: =Grunddaten!H76 -> 12.50 €
B105: Max. Miete für 1. EK-Grenze Übrige | C105: =CELL("adresse",Grunddaten!H77) -> '[26.02 - MWB-Förderrechner (Extern).xlsm]Grunddaten'!$H$77 | D105: =LEN(C105) -> 59 | E105: =FIND("]",C105) -> 42 | F105: =FIND("!",C105) -> 54 | G105: =MID(C105,E105+1,F105-E105-2) -> Grunddaten | H105: =MID(C105,FIND("!",C105)+1,D105-F105) -> $H$77 | I105: FALSE | J105: FALSE | K105: =Grunddaten!H77 -> 6.50 €
B106: Max. Miete für 2. EK-Grenze Übrige | C106: =CELL("adresse",Grunddaten!H78) -> '[26.02 - MWB-Förderrechner (Extern).xlsm]Grunddaten'!$H$78 | D106: =LEN(C106) -> 59 | E106: =FIND("]",C106) -> 42 | F106: =FIND("!",C106) -> 54 | G106: =MID(C106,E106+1,F106-E106-2) -> Grunddaten | H106: =MID(C106,FIND("!",C106)+1,D106-F106) -> $H$78 | I106: FALSE | J106: FALSE | K106: =Grunddaten!H78 -> 8.50 €
B107: Max. Miete für 3. EK-Grenze Übrige | C107: =CELL("adresse",Grunddaten!H79) -> '[26.02 - MWB-Förderrechner (Extern).xlsm]Grunddaten'!$H$79 | D107: =LEN(C107) -> 59 | E107: =FIND("]",C107) -> 42 | F107: =FIND("!",C107) -> 54 | G107: =MID(C107,E107+1,F107-E107-2) -> Grunddaten | H107: =MID(C107,FIND("!",C107)+1,D107-F107) -> $H$79 | I107: FALSE | J107: FALSE | K107: =Grunddaten!H79 -> 10.50 €
B108: EK-Verzinsung auf die ersten | C108: =CELL("adresse",Grunddaten!H81) -> '[26.02 - MWB-Förderrechner (Extern).xlsm]Grunddaten'!$H$81 | D108: 59 | E108: 42 | F108: 54 | G108: Grunddaten | H108: $H$81 | I108: FALSE | J108: FALSE | K108: =Grunddaten!H81 -> 2.0000 %
B109: EK-Verzinsung auf darüber hinausgehende Eigenleistungen (Abstimmung mit MIL) | C109: =CELL("adresse",Grunddaten!H82) -> '[26.02 - MWB-Förderrechner (Extern).xlsm]Grunddaten'!$H$82 | D109: 59 | E109: 42 | F109: 54 | G109: Grunddaten | H109: $H$82 | I109: FALSE | J109: FALSE | K109: =Grunddaten!H82 -> 4.0000 %
B110: Anteil für erste Stufe EK-Verzinsung | C110: =CELL("adresse",Grunddaten!E81) -> '[26.02 - MWB-Förderrechner (Extern).xlsm]Grunddaten'!$E$81 | D110: =LEN(C110) -> 59 | E110: =FIND("]",C110) -> 42 | F110: =FIND("!",C110) -> 54 | G110: =MID(C110,E110+1,F110-E110-2) -> Grunddaten | H110: =MID(C110,FIND("!",C110)+1,D110-F110) -> $E$81 | I110: FALSE | J110: FALSE | K110: =Grunddaten!E81 -> 15.0000 %
B111: Pauschalaufwand für Besetzungsrechte | C111: =CELL("adresse",Grunddaten!H84) -> '[26.02 - MWB-Förderrechner (Extern).xlsm]Grunddaten'!$H$84 | D111: 59 | E111: 42 | F111: 54 | G111: Grunddaten | H111: $H$84 | I111: FALSE | J111: FALSE | K111: =Grunddaten!H84 -> 25.0000 %
B112: VWK pro Wohneinheit | C112: =CELL("adresse",Grunddaten!H86) -> '[26.02 - MWB-Förderrechner (Extern).xlsm]Grunddaten'!$H$86 | D112: 59 | E112: 42 | F112: 54 | G112: Grunddaten | H112: $H$86 | I112: FALSE | J112: FALSE | K112: =Grunddaten!H86 -> 372.46 €
B113: VWK pro Garage / Carport | C113: =CELL("adresse",Grunddaten!H87) -> '[26.02 - MWB-Förderrechner (Extern).xlsm]Grunddaten'!$H$87 | D113: 59 | E113: 42 | F113: 54 | G113: Grunddaten | H113: $H$87 | I113: FALSE | J113: FALSE | K113: =Grunddaten!H87 -> 48.58 €
B114: IHK pro m² Wohnfläche | C114: =CELL("adresse",Grunddaten!H88) -> '[26.02 - MWB-Förderrechner (Extern).xlsm]Grunddaten'!$H$88 | D114: 59 | E114: 42 | F114: 54 | G114: Grunddaten | H114: $H$88 | I114: FALSE | J114: FALSE | K114: =Grunddaten!H88 -> 11.50 €
B115: IHK Zuschlag Aufzug pro m² | C115: =CELL("adresse",Grunddaten!H89) -> '[26.02 - MWB-Förderrechner (Extern).xlsm]Grunddaten'!$H$89 | D115: =LEN(C115) -> 59 | E115: =FIND("]",C115) -> 42 | F115: =FIND("!",C115) -> 54 | G115: =MID(C115,E115+1,F115-E115-2) -> Grunddaten | H115: =MID(C115,FIND("!",C115)+1,D115-F115) -> $H$89 | I115: FALSE | J115: FALSE | K115: =Grunddaten!H89 -> 1.63 €
B116: IHK pro Garage / Carport | C116: =CELL("adresse",Grunddaten!H90) -> '[26.02 - MWB-Förderrechner (Extern).xlsm]Grunddaten'!$H$90 | D116: =LEN(C116) -> 59 | E116: =FIND("]",C116) -> 42 | F116: =FIND("!",C116) -> 54 | G116: =MID(C116,E116+1,F116-E116-2) -> Grunddaten | H116: =MID(C116,FIND("!",C116)+1,D116-F116) -> $H$90 | I116: FALSE | J116: FALSE | K116: =Grunddaten!H90 -> 110.13 €
B117: Mietausfallwagnis pro Jahr | C117: =CELL("adresse",Grunddaten!H91) -> '[26.02 - MWB-Förderrechner (Extern).xlsm]Grunddaten'!$H$91 | D117: =LEN(C117) -> 59 | E117: =FIND("]",C117) -> 42 | F117: =FIND("!",C117) -> 54 | G117: =MID(C117,E117+1,F117-E117-2) -> Grunddaten | H117: =MID(C117,FIND("!",C117)+1,D117-F117) -> $H$91 | I117: FALSE | J117: FALSE | K117: =Grunddaten!H91 -> 2.0000 %
B118: Betriebskosten pro m² Leerstand pro Monat | C118: =CELL("adresse",Grunddaten!H92) -> '[26.02 - MWB-Förderrechner (Extern).xlsm]Grunddaten'!$H$92 | D118: =LEN(C118) -> 59 | E118: =FIND("]",C118) -> 42 | F118: =FIND("!",C118) -> 54 | G118: =MID(C118,E118+1,F118-E118-2) -> Grunddaten | H118: =MID(C118,FIND("!",C118)+1,D118-F118) -> $H$92 | I118: FALSE | J118: FALSE | K118: =Grunddaten!H92 -> 0.00 €
B119: Pauschaler Ansatz für Anteil von Modernisierungskosten | C119: =CELL("adresse",Grunddaten!H93) -> '[26.02 - MWB-Förderrechner (Extern).xlsm]Grunddaten'!$H$93 | D119: =LEN(C119) -> 59 | E119: =FIND("]",C119) -> 42 | F119: =FIND("!",C119) -> 54 | G119: =MID(C119,E119+1,F119-E119-2) -> Grunddaten | H119: =MID(C119,FIND("!",C119)+1,D119-F119) -> $H$93 | I119: FALSE | J119: FALSE | K119: =Grunddaten!H93 -> 60.0000 %
B120: Anzahl maximaler Durchläufe (Iterationen) für die Zielwertberechnung | C120: =CELL("adresse",Grunddaten!H95) -> '[26.02 - MWB-Förderrechner (Extern).xlsm]Grunddaten'!$H$95 | D120: 59 | E120: 42 | F120: 54 | G120: Grunddaten | H120: $H$95 | I120: FALSE | J120: FALSE | K120: =Grunddaten!H95 -> 100
B121: Anzahl der automatischen Erhöhungen der Durchläufe (Iterationen) für die Zielwertsuche | C121: =CELL("adresse",Grunddaten!H96) -> '[26.02 - MWB-Förderrechner (Extern).xlsm]Grunddaten'!$H$96 | D121: 59 | E121: 42 | F121: 54 | G121: Grunddaten | H121: $H$96 | I121: FALSE | J121: FALSE | K121: =Grunddaten!H96 -> 3
B122: Berechnungsgenauigkeit der Zielwertberechnung | C122: =CELL("adresse",Grunddaten!H97) -> '[26.02 - MWB-Förderrechner (Extern).xlsm]Grunddaten'!$H$97 | D122: 59 | E122: 42 | F122: 54 | G122: Grunddaten | H122: $H$97 | I122: FALSE | J122: FALSE | K122: =Grunddaten!H97 -> 0.0100
